Publisher Label,Publisher URI,Body Name,Service Area Categorisation,Service Division Categorisation,Expenses Type,Date,Transaction Number,Amount,Capital or Revenue,Supplier Name,Merchant Category
Peterborough,http://opendatacommunities.org/id/unitary-authority/peterborough,Peterborough City Council,Capital,Capital,Capital Pending Update to BS,01/07/2015 00:00,616041,31658.34,CAPITAL,Enterprise Managed Services Limited,CONSULTANTS FEES
Peterborough,http://opendatacommunities.org/id/unitary-authority/peterborough,Peterborough City Council,Capital,Capital,Capital Pending Update to BS,01/07/2015 00:00,668349,9073.09,CAPITAL,Enterprise Managed Services Limited,PROPERTY SERVICES FEES
Peterborough,http://opendatacommunities.org/id/unitary-authority/peterborough,Peterborough City Council,Capital,Capital,Capital Pending Update to BS,01/07/2015 00:00,668350,1260,CAPITAL,Enterprise Managed Services Limited,CONSULTANTS FEES
Peterborough,http://opendatacommunities.org/id/unitary-authority/peterborough,Peterborough City Council,Capital,Capital,Capital Pending Update to BS,01/07/2015 00:00,693005,10800,CAPITAL,Enterprise Managed Services Limited,BUILDING AND SITE WORKS
Peterborough,http://opendatacommunities.org/id/unitary-authority/peterborough,Peterborough City Council,Children's & Education Services - Education,Secondary,Supplies and Services,01/07/2015 00:00,700502,8399.32,REVENUE,IIC by Education (P'boro) Ltd,SERVICE CHARGE
Peterborough,http://opendatacommunities.org/id/unitary-authority/peterborough,Peterborough City Council,Adult Social Care,Older People,Supplies and Services,01/07/2015 00:00,710106,3105.52,REVENUE,Avery House (Peterborough) t/a Brighterkind,RESIDENTIAL CARE
Peterborough,http://opendatacommunities.org/id/unitary-authority/peterborough,Peterborough City Council,Children's & Education Services - Education,Other Education and Community Budget,Supplies and Services - Transfer Payments,01/07/2015 00:00,712144,-2669.67,REVENUE,Knossington Grange School Ltd,BOARDING OUT ALLOWANCES
Peterborough,http://opendatacommunities.org/id/unitary-authority/peterborough,Peterborough City Council,Children's & Education Services - Children's Social Care,Family Support Services,Supplies and Services,01/07/2015 00:00,726928,3721.2,REVENUE,R82 UK Ltd,EQUIPMENT
Peterborough,http://opendatacommunities.org/id/unitary-authority/peterborough,Peterborough City Council,Adult Social Care,Older People,Supplies and Services,01/07/2015 00:00,734043,1080.44,REVENUE,Maxey House Res Home,RESIDENTIAL CARE
Peterborough,http://opendatacommunities.org/id/unitary-authority/peterborough,Peterborough City Council,Children's & Education Services - Children's Social Care,Children Looked After,Supplies and Services - Transfer Payments,01/07/2015 00:00,735230,3504,REVENUE,Archway Care Ltd,BOARDING OUT ALLOWANCES
Peterborough,http://opendatacommunities.org/id/unitary-authority/peterborough,Peterborough City Council,Public Health,Obesity,More than one Expenses Type,01/07/2015 00:00,738031,4833.33,REVENUE,Cambridgeshire Community Services,THIRD PARTY PAYMENTS - CONTRACT
Peterborough,http://opendatacommunities.org/id/unitary-authority/peterborough,Peterborough City Council,Children's & Education Services - Children's Social Care,Children Looked After,Supplies and Services - Transfer Payments,01/07/2015 00:00,739304,3620.8,REVENUE,Archway Care Ltd,BOARDING OUT ALLOWANCES
Peterborough,http://opendatacommunities.org/id/unitary-authority/peterborough,Peterborough City Council,Support Services,Support Services,Premises,01/07/2015 00:00,740731,954.89,REVENUE,Beebys Ltd,CLEANING
Peterborough,http://opendatacommunities.org/id/unitary-authority/peterborough,Peterborough City Council,Children's & Education Services - Education,Other Education and Community Budget,Employees,01/07/2015 00:00,742199,995,REVENUE,Eastern Leadership Centre,TRAINING
Peterborough,http://opendatacommunities.org/id/unitary-authority/peterborough,Peterborough City Council,Support Services,Support Services,Supplies and Services,01/07/2015 00:00,742255,930.79,REVENUE,Global Radio Services Ltd,ADVERTISING
Peterborough,http://opendatacommunities.org/id/unitary-authority/peterborough,Peterborough City Council,Children's & Education Services - Children's Social Care,Children Looked After,Supplies and Services - Transfer Payments,01/07/2015 00:00,742356,1326,REVENUE,IAS TACT,BOARDING OUT ALLOWANCES
Peterborough,http://opendatacommunities.org/id/unitary-authority/peterborough,Peterborough City Council,Highways and Transport Services,Parking Services,Supplies and Services,01/07/2015 00:00,742609,913.08,REVENUE,Loomis UK Ltd,CASH COLLECTION SERVICES
Peterborough,http://opendatacommunities.org/id/unitary-authority/peterborough,Peterborough City Council,Support Services,Support Services,Employees,01/07/2015 00:00,742688,8268,REVENUE,CIPFA Business Ltd,EXTERNAL TEMPORARY STAFF
Peterborough,http://opendatacommunities.org/id/unitary-authority/peterborough,Peterborough City Council,Children's & Education Services - Children's Social Care,Family Support Services,Supplies and Services,01/07/2015 00:00,742694,2733.6,REVENUE,Jenx Ltd,EQUIPMENT
Peterborough,http://opendatacommunities.org/id/unitary-authority/peterborough,Peterborough City Council,Capital,Capital,Capital Pending Update to BS,01/07/2015 00:00,742707,909.16,CAPITAL,Ken Stimpson Community School,BUILDING AND SITE WORKS
Peterborough,http://opendatacommunities.org/id/unitary-authority/peterborough,Peterborough City Council,Children's & Education Services - Children's Social Care,Other Children's & Families Services,Supplies and Services - Transfer Payments,01/07/2015 00:00,743217,857.14,REVENUE,PC Homes,BOARDING OUT ALLOWANCES
Peterborough,http://opendatacommunities.org/id/unitary-authority/peterborough,Peterborough City Council,Support Services,Support Services,Employees,01/07/2015 00:00,743277,1417.5,REVENUE,Venn Group Ltd,EXTERNAL TEMPORARY STAFF
Peterborough,http://opendatacommunities.org/id/unitary-authority/peterborough,Peterborough City Council,Support Services,Support Services,Supplies and Services,01/07/2015 00:00,743426,1976.58,REVENUE,Child and Family Psychological Assessment Services,JURORS/EXPERT WITNESSES
Peterborough,http://opendatacommunities.org/id/unitary-authority/peterborough,Peterborough City Council,Support Services,Support Services,Supplies and Services,01/07/2015 00:00,743430,6163.14,REVENUE,Child and Family Psychological Assessment Services,JURORS/EXPERT WITNESSES
Peterborough,http://opendatacommunities.org/id/unitary-authority/peterborough,Peterborough City Council,Support Services,Support Services,Supplies and Services,01/07/2015 00:00,743435,2483.7,REVENUE,Child and Family Psychological Assessment Services,JURORS/EXPERT WITNESSES
Peterborough,http://opendatacommunities.org/id/unitary-authority/peterborough,Peterborough City Council,Children's & Education Services - Education,Secondary,Employees,01/07/2015 00:00,743648,968.68,REVENUE,IIC by Education (P'boro) Ltd,PENSIONS
Peterborough,http://opendatacommunities.org/id/unitary-authority/peterborough,Peterborough City Council,Children's & Education Services - Education,Secondary,Supplies and Services,01/07/2015 00:00,743651,4854.59,REVENUE,IIC by Education (P'boro) Ltd,SERVICE CHARGE
Peterborough,http://opendatacommunities.org/id/unitary-authority/peterborough,Peterborough City Council,Adult Social Care,Older People,Supplies and Services,01/07/2015 00:00,743683,512.43,REVENUE,Bluebird Care (Leicester),HOME CARE
Peterborough,http://opendatacommunities.org/id/unitary-authority/peterborough,Peterborough City Council,Children's & Education Services - Education,Secondary,Supplies and Services,01/07/2015 00:00,743767,21490.44,REVENUE,IIC by Education (P'boro) Ltd,CONTRACT SERVICES
Peterborough,http://opendatacommunities.org/id/unitary-authority/peterborough,Peterborough City Council,Children's & Education Services - Children's Social Care,Family Support Services,Supplies and Services,01/07/2015 00:00,743780,2110.77,REVENUE,Allied Healthcare (UK) Ltd,PURCHASED SOCIAL CARE SERVICES
Peterborough,http://opendatacommunities.org/id/unitary-authority/peterborough,Peterborough City Council,Support Services,Support Services,Supplies and Services,01/07/2015 00:00,743788,695,REVENUE,Everprint Ltd,PRINTING
Peterborough,http://opendatacommunities.org/id/unitary-authority/peterborough,Peterborough City Council,Children's & Education Services - Children's Social Care,Family Support Services,Supplies and Services,01/07/2015 00:00,743792,525.17,REVENUE,Allied Healthcare (UK) Ltd,PURCHASED SOCIAL CARE SERVICES
Peterborough,http://opendatacommunities.org/id/unitary-authority/peterborough,Peterborough City Council,Adult Social Care,Older People,Supplies and Services,01/07/2015 00:00,743815,3045,REVENUE,Castleview Nursing Home,RESIDENTIAL CARE
Peterborough,http://opendatacommunities.org/id/unitary-authority/peterborough,Peterborough City Council,Support Services,Support Services,Supplies and Services,01/07/2015 00:00,743878,1080,REVENUE,"Fender, Mr Carl",LEGAL COSTS
Peterborough,http://opendatacommunities.org/id/unitary-authority/peterborough,Peterborough City Council,Environmental and Regulatory Services,Regulatory services,Supplies and Services,01/07/2015 00:00,743883,720,REVENUE,"Snelling, Mr Charles",LEGAL COSTS
Peterborough,http://opendatacommunities.org/id/unitary-authority/peterborough,Peterborough City Council,Children's & Education Services - Education,Other Education and Community Budget,Supplies and Services - Transfer Payments,01/07/2015 00:00,743914,20393.33,REVENUE,Knossington Grange School Ltd,BOARDING OUT ALLOWANCES
Peterborough,http://opendatacommunities.org/id/unitary-authority/peterborough,Peterborough City Council,Adult Social Care,Older People,Supplies and Services,01/07/2015 00:00,743938,1014.68,REVENUE,ABBEYGATE REST HOME,RESIDENTIAL CARE
Peterborough,http://opendatacommunities.org/id/unitary-authority/peterborough,Peterborough City Council,Adult Social Care,Older People,Supplies and Services,01/07/2015 00:00,743940,1014.68,REVENUE,ABBEYGATE REST HOME,RESIDENTIAL CARE
Peterborough,http://opendatacommunities.org/id/unitary-authority/peterborough,Peterborough City Council,Adult Social Care,Older People,Supplies and Services,01/07/2015 00:00,743943,1014.68,REVENUE,ABBEYGATE REST HOME,RESIDENTIAL CARE
Peterborough,http://opendatacommunities.org/id/unitary-authority/peterborough,Peterborough City Council,Adult Social Care,Social Care Activities,Employees,01/07/2015 00:00,743967,1407,REVENUE,Caritas Recruitment,EXTERNAL TEMPORARY STAFF
Peterborough,http://opendatacommunities.org/id/unitary-authority/peterborough,Peterborough City Council,Adult Social Care,Social Care Activities,Employees,01/07/2015 00:00,743969,1554,REVENUE,Caritas Recruitment,EXTERNAL TEMPORARY STAFF
Peterborough,http://opendatacommunities.org/id/unitary-authority/peterborough,Peterborough City Council,Adult Social Care,Social Care Activities,Employees,01/07/2015 00:00,743970,840,REVENUE,Caritas Recruitment,EXTERNAL TEMPORARY STAFF
Peterborough,http://opendatacommunities.org/id/unitary-authority/peterborough,Peterborough City Council,Adult Social Care,Social Care Activities,Employees,01/07/2015 00:00,743972,1581,REVENUE,Caritas Recruitment,EXTERNAL TEMPORARY STAFF
Peterborough,http://opendatacommunities.org/id/unitary-authority/peterborough,Peterborough City Council,Support Services,Support Services,Supplies and Services,01/07/2015 00:00,743983,960,REVENUE,"Lee, Miss Jessica",LEGAL COSTS
Peterborough,http://opendatacommunities.org/id/unitary-authority/peterborough,Peterborough City Council,Support Services,Support Services,Supplies and Services,01/07/2015 00:00,743992,954,REVENUE,"Mitchell, Mr Jonathan",LEGAL COSTS
Peterborough,http://opendatacommunities.org/id/unitary-authority/peterborough,Peterborough City Council,Support Services,Support Services,Supplies and Services,01/07/2015 00:00,744007,1690.47,REVENUE,Rossendales C B Ltd,DEBT COLLECTION
Peterborough,http://opendatacommunities.org/id/unitary-authority/peterborough,Peterborough City Council,Children's & Education Services - Children's Social Care,Children Looked After,Supplies and Services - Transfer Payments,01/07/2015 00:00,744009,984.21,REVENUE,Key2,BOARDING OUT ALLOWANCES
Peterborough,http://opendatacommunities.org/id/unitary-authority/peterborough,Peterborough City Council,Children's & Education Services - Children's Social Care,Other Children's & Families Services,Employees,01/07/2015 00:00,744137,1065.6,REVENUE,Service Care Solutions Ltd,EXTERNAL TEMPORARY STAFF
Peterborough,http://opendatacommunities.org/id/unitary-authority/peterborough,Peterborough City Council,Adult Social Care,Assistive Equipment and Technology,Supplies and Services,01/07/2015 00:00,744141,102281.79,REVENUE,NRS Healthcare,OCCUPATIONAL THERAPY EQUIPMENT
Peterborough,http://opendatacommunities.org/id/unitary-authority/peterborough,Peterborough City Council,Children's & Education Services - Education,Other Education and Community Budget,Supplies and Services,01/07/2015 00:00,744330,6894,REVENUE,Claudia Wade Ltd,CONSULTANTS FEES
Peterborough,http://opendatacommunities.org/id/unitary-authority/peterborough,Peterborough City Council,Children's & Education Services - Children's Social Care,Children Looked After,Employees,01/07/2015 00:00,744384,930,REVENUE,Wrixon Care Services,EXTERNAL TEMPORARY STAFF
Peterborough,http://opendatacommunities.org/id/unitary-authority/peterborough,Peterborough City Council,Children's & Education Services - Children's Social Care,Children Looked After,Employees,01/07/2015 00:00,744387,750,REVENUE,Wrixon Care Services,EXTERNAL TEMPORARY STAFF
Peterborough,http://opendatacommunities.org/id/unitary-authority/peterborough,Peterborough City Council,Children's & Education Services - Children's Social Care,Children Looked After,Employees,01/07/2015 00:00,744388,638.4,REVENUE,Wrixon Care Services,EXTERNAL TEMPORARY STAFF
Peterborough,http://opendatacommunities.org/id/unitary-authority/peterborough,Peterborough City Council,Children's & Education Services - Children's Social Care,Children Looked After,Employees,01/07/2015 00:00,744391,984,REVENUE,Wrixon Care Services,EXTERNAL TEMPORARY STAFF
Peterborough,http://opendatacommunities.org/id/unitary-authority/peterborough,Peterborough City Council,Adult Social Care,Learning Disability Support - Adults (18-64),Employees,01/07/2015 00:00,744407,650.3,REVENUE,Jark Healthcare,EXTERNAL TEMPORARY STAFF
Peterborough,http://opendatacommunities.org/id/unitary-authority/peterborough,Peterborough City Council,More than one Service Area Category,More than one Service Division,Balance Sheet,01/07/2015 00:00,744492,5692.95,Balance Sheet,Mirage Cosmetics Retail Ltd,DEPOSITS REPAID
Peterborough,http://opendatacommunities.org/id/unitary-authority/peterborough,Peterborough City Council,Children's & Education Services - Children's Social Care,Other Children's & Families Services,Employees,01/07/2015 00:00,744540,1145.52,REVENUE,Sanctuary Personnel Ltd,EXTERNAL TEMPORARY STAFF
Peterborough,http://opendatacommunities.org/id/unitary-authority/peterborough,Peterborough City Council,Children's & Education Services - Children's Social Care,Other Children's & Families Services,Employees,01/07/2015 00:00,744542,2097.9,REVENUE,Sanctuary Personnel Ltd,EXTERNAL TEMPORARY STAFF
Peterborough,http://opendatacommunities.org/id/unitary-authority/peterborough,Peterborough City Council,Children's & Education Services - Children's Social Care,Other Children's & Families Services,Employees,01/07/2015 00:00,744555,1998,REVENUE,Sanctuary Personnel Ltd,EXTERNAL TEMPORARY STAFF
Peterborough,http://opendatacommunities.org/id/unitary-authority/peterborough,Peterborough City Council,Adult Social Care,Social Care Activities,Third Party Payments,01/07/2015 00:00,744556,2736,REVENUE,Sanctuary Personnel Ltd,THIRD PARTY PAYMENTS - CONTRACT
Peterborough,http://opendatacommunities.org/id/unitary-authority/peterborough,Peterborough City Council,Children's & Education Services - Children's Social Care,Other Children's & Families Services,Employees,01/07/2015 00:00,744566,2144.52,REVENUE,Sanctuary Personnel Ltd,EXTERNAL TEMPORARY STAFF
Peterborough,http://opendatacommunities.org/id/unitary-authority/peterborough,Peterborough City Council,Children's & Education Services - Children's Social Care,Other Children's & Families Services,Employees,01/07/2015 00:00,744569,2144.52,REVENUE,Sanctuary Personnel Ltd,EXTERNAL TEMPORARY STAFF
Peterborough,http://opendatacommunities.org/id/unitary-authority/peterborough,Peterborough City Council,Children's & Education Services - Children's Social Care,Other Children's & Families Services,Employees,01/07/2015 00:00,744570,1076.4,REVENUE,Sanctuary Personnel Ltd,EXTERNAL TEMPORARY STAFF
Peterborough,http://opendatacommunities.org/id/unitary-authority/peterborough,Peterborough City Council,Children's & Education Services - Children's Social Care,Other Children's & Families Services,Employees,01/07/2015 00:00,744571,2092.8,REVENUE,Sanctuary Personnel Ltd,EXTERNAL TEMPORARY STAFF
Peterborough,http://opendatacommunities.org/id/unitary-authority/peterborough,Peterborough City Council,Children's & Education Services - Children's Social Care,Other Children's & Families Services,Employees,01/07/2015 00:00,744572,2144.52,REVENUE,Sanctuary Personnel Ltd,EXTERNAL TEMPORARY STAFF
Peterborough,http://opendatacommunities.org/id/unitary-authority/peterborough,Peterborough City Council,Children's & Education Services - Children's Social Care,Other Children's & Families Services,Employees,01/07/2015 00:00,744586,1286.71,REVENUE,Sanctuary Personnel Ltd,EXTERNAL TEMPORARY STAFF
Peterborough,http://opendatacommunities.org/id/unitary-authority/peterborough,Peterborough City Council,Children's & Education Services - Children's Social Care,Other Children's & Families Services,Employees,01/07/2015 00:00,744587,2144.52,REVENUE,Sanctuary Personnel Ltd,EXTERNAL TEMPORARY STAFF
Peterborough,http://opendatacommunities.org/id/unitary-authority/peterborough,Peterborough City Council,Adult Social Care,Social Care Activities,Third Party Payments,01/07/2015 00:00,744590,912,REVENUE,Sanctuary Personnel Ltd,THIRD PARTY PAYMENTS - CONTRACT
Peterborough,http://opendatacommunities.org/id/unitary-authority/peterborough,Peterborough City Council,Children's & Education Services - Children's Social Care,Other Children's & Families Services,Employees,01/07/2015 00:00,744593,2109,REVENUE,Sanctuary Personnel Ltd,EXTERNAL TEMPORARY STAFF
Peterborough,http://opendatacommunities.org/id/unitary-authority/peterborough,Peterborough City Council,Children's & Education Services - Children's Social Care,Other Children's & Families Services,Employees,01/07/2015 00:00,744596,1800,REVENUE,Sanctuary Personnel Ltd,EXTERNAL TEMPORARY STAFF
Peterborough,http://opendatacommunities.org/id/unitary-authority/peterborough,Peterborough City Council,Children's & Education Services - Children's Social Care,Other Children's & Families Services,Employees,01/07/2015 00:00,744598,2144.52,REVENUE,Sanctuary Personnel Ltd,EXTERNAL TEMPORARY STAFF
Peterborough,http://opendatacommunities.org/id/unitary-authority/peterborough,Peterborough City Council,Children's & Education Services - Children's Social Care,Other Children's & Families Services,Employees,01/07/2015 00:00,744599,2144.52,REVENUE,Sanctuary Personnel Ltd,EXTERNAL TEMPORARY STAFF
Peterborough,http://opendatacommunities.org/id/unitary-authority/peterborough,Peterborough City Council,Children's & Education Services - Children's Social Care,Other Children's & Families Services,Employees,01/07/2015 00:00,744601,2109,REVENUE,Sanctuary Personnel Ltd,EXTERNAL TEMPORARY STAFF
Peterborough,http://opendatacommunities.org/id/unitary-authority/peterborough,Peterborough City Council,Children's & Education Services - Children's Social Care,Other Children's & Families Services,Employees,01/07/2015 00:00,744602,2127.54,REVENUE,Sanctuary Personnel Ltd,EXTERNAL TEMPORARY STAFF
Peterborough,http://opendatacommunities.org/id/unitary-authority/peterborough,Peterborough City Council,Children's & Education Services - Children's Social Care,Other Children's & Families Services,Employees,01/07/2015 00:00,744604,1909.2,REVENUE,Sanctuary Personnel Ltd,EXTERNAL TEMPORARY STAFF
Peterborough,http://opendatacommunities.org/id/unitary-authority/peterborough,Peterborough City Council,Adult Social Care,Social Care Activities,Third Party Payments,01/07/2015 00:00,744605,912,REVENUE,Sanctuary Personnel Ltd,THIRD PARTY PAYMENTS - CONTRACT
Peterborough,http://opendatacommunities.org/id/unitary-authority/peterborough,Peterborough City Council,Support Services,Support Services,Premises,01/07/2015 00:00,744636,49695,REVENUE,Alps Group Ltd,RENT
Peterborough,http://opendatacommunities.org/id/unitary-authority/peterborough,Peterborough City Council,Support Services,Support Services,Premises,01/07/2015 00:00,744638,17119.14,REVENUE,Alps Group Ltd,SERVICE CHARGES
Peterborough,http://opendatacommunities.org/id/unitary-authority/peterborough,Peterborough City Council,Support Services,Support Services,Supplies and Services,01/07/2015 00:00,744780,7179.09,REVENUE,Capita Business Services Ltd,COMPUTER SOFTWARE
Peterborough,http://opendatacommunities.org/id/unitary-authority/peterborough,Peterborough City Council,Children's & Education Services - Children's Social Care,Other Children's & Families Services,Employees,01/07/2015 00:00,744813,2144.52,REVENUE,Sanctuary Personnel Ltd,EXTERNAL TEMPORARY STAFF
Peterborough,http://opendatacommunities.org/id/unitary-authority/peterborough,Peterborough City Council,Adult Social Care,Older People,Supplies and Services,01/07/2015 00:00,745407,1014.68,REVENUE,ABBEYGATE REST HOME,RESIDENTIAL CARE
Peterborough,http://opendatacommunities.org/id/unitary-authority/peterborough,Peterborough City Council,Children's & Education Services - Children's Social Care,Other Children's & Families Services,Employees,01/07/2015 00:00,745410,1578.66,REVENUE,Service Care Solutions Ltd,EXTERNAL TEMPORARY STAFF
Peterborough,http://opendatacommunities.org/id/unitary-authority/peterborough,Peterborough City Council,Highways and Transport Services,Public Transport,Supplies and Services,01/07/2015 00:00,745437,17055.12,REVENUE,Stagecoach in Peterborough,CONTRACTORS
Peterborough,http://opendatacommunities.org/id/unitary-authority/peterborough,Peterborough City Council,Children's & Education Services - Education,Secondary,Employees,01/07/2015 00:00,745471,4890,REVENUE,Vision for Education Ltd,SUPPLY TEACHERS
Peterborough,http://opendatacommunities.org/id/unitary-authority/peterborough,Peterborough City Council,Adult Social Care,Social Care Activities,Employees,01/07/2015 00:00,745874,1290.78,REVENUE,Caritas Recruitment,EXTERNAL TEMPORARY STAFF
Peterborough,http://opendatacommunities.org/id/unitary-authority/peterborough,Peterborough City Council,Adult Social Care,Social Care Activities,Employees,01/07/2015 00:00,745926,1575,REVENUE,Randstad Care Ltd,EXTERNAL TEMPORARY STAFF
Peterborough,http://opendatacommunities.org/id/unitary-authority/peterborough,Peterborough City Council,Adult Social Care,Adult Learning Disabilities,Supplies and Services,01/07/2015 00:00,745971,4266.4,REVENUE,Mencap,RESIDENTIAL CARE
Peterborough,http://opendatacommunities.org/id/unitary-authority/peterborough,Peterborough City Council,Adult Social Care,Adult Learning Disabilities,Supplies and Services,01/07/2015 00:00,745972,830,REVENUE,Mencap,DAY CARE
Peterborough,http://opendatacommunities.org/id/unitary-authority/peterborough,Peterborough City Council,Adult Social Care,Adult Learning Disabilities,Supplies and Services,01/07/2015 00:00,745973,4266.4,REVENUE,Mencap,RESIDENTIAL CARE
Peterborough,http://opendatacommunities.org/id/unitary-authority/peterborough,Peterborough City Council,Adult Social Care,Older People,Supplies and Services,01/07/2015 00:00,745975,650,REVENUE,BUPA Care Homes,RESIDENTIAL CARE
Peterborough,http://opendatacommunities.org/id/unitary-authority/peterborough,Peterborough City Council,Support Services,Support Services,Employees,01/07/2015 00:00,746032,732.16,REVENUE,Reed Specialist Recruitment,EXTERNAL TEMPORARY STAFF
Peterborough,http://opendatacommunities.org/id/unitary-authority/peterborough,Peterborough City Council,Cultural and Related Services,Recreation & Sport,Employees,01/07/2015 00:00,746035,800.2,REVENUE,Reed Specialist Recruitment,EXTERNAL TEMPORARY STAFF
Peterborough,http://opendatacommunities.org/id/unitary-authority/peterborough,Peterborough City Council,Support Services,Support Services,Employees,01/07/2015 00:00,746037,546.67,REVENUE,Reed Specialist Recruitment,EXTERNAL TEMPORARY STAFF
Peterborough,http://opendatacommunities.org/id/unitary-authority/peterborough,Peterborough City Council,Adult Social Care,Older People,Supplies and Services,01/07/2015 00:00,746038,746.16,REVENUE,Westerleigh Nursing Home,RESIDENTIAL CARE
Peterborough,http://opendatacommunities.org/id/unitary-authority/peterborough,Peterborough City Council,Adult Social Care,Older People,Supplies and Services,01/07/2015 00:00,746040,746.16,REVENUE,Westerleigh Nursing Home,RESIDENTIAL CARE
Peterborough,http://opendatacommunities.org/id/unitary-authority/peterborough,Peterborough City Council,Adult Social Care,Older People,Supplies and Services,01/07/2015 00:00,746047,746.16,REVENUE,Westerleigh Nursing Home,RESIDENTIAL CARE
Peterborough,http://opendatacommunities.org/id/unitary-authority/peterborough,Peterborough City Council,Adult Social Care,Older People,Supplies and Services,01/07/2015 00:00,746052,746.16,REVENUE,Westerleigh Nursing Home,RESIDENTIAL CARE
Peterborough,http://opendatacommunities.org/id/unitary-authority/peterborough,Peterborough City Council,Adult Social Care,Older People,Supplies and Services,01/07/2015 00:00,746053,746.16,REVENUE,Westerleigh Nursing Home,RESIDENTIAL CARE
Peterborough,http://opendatacommunities.org/id/unitary-authority/peterborough,Peterborough City Council,Adult Social Care,Older People,Supplies and Services,01/07/2015 00:00,746054,2016.2,REVENUE,BUPA Care Homes,RESIDENTIAL CARE
Peterborough,http://opendatacommunities.org/id/unitary-authority/peterborough,Peterborough City Council,Adult Social Care,Older People,Supplies and Services,01/07/2015 00:00,746056,2213.12,REVENUE,BUPA Care Homes,RESIDENTIAL CARE
Peterborough,http://opendatacommunities.org/id/unitary-authority/peterborough,Peterborough City Council,Support Services,Support Services,Employees,01/07/2015 00:00,746066,679.56,REVENUE,Reed Specialist Recruitment,EXTERNAL TEMPORARY STAFF
Peterborough,http://opendatacommunities.org/id/unitary-authority/peterborough,Peterborough City Council,Capital,Capital,Capital Pending Update to BS,01/07/2015 00:00,746068,722.39,CAPITAL,Reed Specialist Recruitment,EXTERNAL TEMPORARY STAFF
Peterborough,http://opendatacommunities.org/id/unitary-authority/peterborough,Peterborough City Council,Children's & Education Services - Children's Social Care,Safeguarding Children and Young People Services,Employees,01/07/2015 00:00,746069,622.93,REVENUE,Reed Personnel Services Plc,EXTERNAL TEMPORARY STAFF
Peterborough,http://opendatacommunities.org/id/unitary-authority/peterborough,Peterborough City Council,Capital,Capital,Capital Pending Update to BS,01/07/2015 00:00,746075,826.66,CAPITAL,Reed Specialist Recruitment,EXTERNAL TEMPORARY STAFF
Peterborough,http://opendatacommunities.org/id/unitary-authority/peterborough,Peterborough City Council,Adult Social Care,Older People,Supplies and Services,01/07/2015 00:00,746116,1628.2,REVENUE,BUPA Care Homes,RESIDENTIAL CARE
Peterborough,http://opendatacommunities.org/id/unitary-authority/peterborough,Peterborough City Council,Adult Social Care,Older People,Supplies and Services,01/07/2015 00:00,746119,1648.32,REVENUE,BUPA Care Homes,RESIDENTIAL CARE
Peterborough,http://opendatacommunities.org/id/unitary-authority/peterborough,Peterborough City Council,Adult Social Care,Older People,Supplies and Services,01/07/2015 00:00,746120,2253.76,REVENUE,BUPA Care Homes,RESIDENTIAL CARE
Peterborough,http://opendatacommunities.org/id/unitary-authority/peterborough,Peterborough City Council,Adult Social Care,Older People,Supplies and Services,01/07/2015 00:00,746122,2512,REVENUE,BUPA Care Homes,RESIDENTIAL CARE
Peterborough,http://opendatacommunities.org/id/unitary-authority/peterborough,Peterborough City Council,Adult Social Care,Older People,Supplies and Services,01/07/2015 00:00,746240,746.16,REVENUE,Westerleigh Nursing Home,RESIDENTIAL CARE
Peterborough,http://opendatacommunities.org/id/unitary-authority/peterborough,Peterborough City Council,More than one Service Area Category,More than one Service Division,More than one Expenses Type,01/07/2015 00:00,746272,34825,"Mixture of Capital, Revenue and/or Balance Sheet",Courtside Conversions Ltd,VEHICLE ACQUISITION
Peterborough,http://opendatacommunities.org/id/unitary-authority/peterborough,Peterborough City Council,Children's & Education Services - Children's Social Care,Other Children's & Families Services,Employees,01/07/2015 00:00,746288,1189.55,REVENUE,Sanctuary Personnel Ltd,EXTERNAL TEMPORARY STAFF
Peterborough,http://opendatacommunities.org/id/unitary-authority/peterborough,Peterborough City Council,Adult Social Care,Older People,Supplies and Services,01/07/2015 00:00,746300,1934.79,REVENUE,LAVENDER HOUSE RESIDENTIAL HOME,RESIDENTIAL CARE
Peterborough,http://opendatacommunities.org/id/unitary-authority/peterborough,Peterborough City Council,Children's & Education Services - Children's Social Care,Other Children's & Families Services,Employees,01/07/2015 00:00,746438,2109,REVENUE,Sanctuary Personnel Ltd,EXTERNAL TEMPORARY STAFF
Peterborough,http://opendatacommunities.org/id/unitary-authority/peterborough,Peterborough City Council,Children's & Education Services - Children's Social Care,Other Children's & Families Services,Employees,01/07/2015 00:00,746439,1715.62,REVENUE,Sanctuary Personnel Ltd,EXTERNAL TEMPORARY STAFF
Peterborough,http://opendatacommunities.org/id/unitary-authority/peterborough,Peterborough City Council,Capital,Capital,Capital Pending Update to BS,01/07/2015 00:00,746448,11772.36,CAPITAL,Manor Roofing Limited,BUILDING AND SITE WORKS
Peterborough,http://opendatacommunities.org/id/unitary-authority/peterborough,Peterborough City Council,Adult Social Care,Split,Third Party Payments,01/07/2015 00:00,746490,1821.96,REVENUE,St Margarets Rest Home,THIRD PARTY PAYMENTS - CONTRACT
Peterborough,http://opendatacommunities.org/id/unitary-authority/peterborough,Peterborough City Council,Adult Social Care,Adult Mental Health,Supplies and Services,01/07/2015 00:00,746539,2551.32,REVENUE,The Richmond Fellowship,PROFESSIONAL SERVICES
Peterborough,http://opendatacommunities.org/id/unitary-authority/peterborough,Peterborough City Council,Adult Social Care,Adult Mental Health,Supplies and Services,01/07/2015 00:00,746540,2551.32,REVENUE,The Richmond Fellowship,PROFESSIONAL SERVICES
Peterborough,http://opendatacommunities.org/id/unitary-authority/peterborough,Peterborough City Council,Children's & Education Services - Education,Other Education and Community Budget,Supplies and Services,01/07/2015 00:00,746589,5530,REVENUE,The Deepings School,OUT OF AREA EDUCATION COSTS
Peterborough,http://opendatacommunities.org/id/unitary-authority/peterborough,Peterborough City Council,Capital,Capital,Capital Pending Update to BS,01/07/2015 00:00,746867,53350.93,CAPITAL,Garfield Builders Ltd,BUILDING AND SITE WORKS
Peterborough,http://opendatacommunities.org/id/unitary-authority/peterborough,Peterborough City Council,Children's & Education Services - Education,Sure Start Children's Centres / Flying Start and Early Years,Supplies and Services,01/07/2015 00:00,746959,2253.03,REVENUE,Family Action,GRANT PAYMENT
Peterborough,http://opendatacommunities.org/id/unitary-authority/peterborough,Peterborough City Council,Children's & Education Services - Education,Sure Start Children's Centres / Flying Start and Early Years,Supplies and Services,01/07/2015 00:00,746961,1020.93,REVENUE,Family Action,GRANT PAYMENT
Peterborough,http://opendatacommunities.org/id/unitary-authority/peterborough,Peterborough City Council,Adult Social Care,Older People,Supplies and Services,01/07/2015 00:00,746995,2345.35,REVENUE,Park House Residential Home,RESIDENTIAL CARE
Peterborough,http://opendatacommunities.org/id/unitary-authority/peterborough,Peterborough City Council,Adult Social Care,Older People,Supplies and Services,01/07/2015 00:00,747023,-1366.41,REVENUE,Park House Residential Home,RESIDENTIAL CARE
Peterborough,http://opendatacommunities.org/id/unitary-authority/peterborough,Peterborough City Council,More than one Service Area Category,More than one Service Division,Balance Sheet,01/07/2015 00:00,747026,627,Balance Sheet,Dept for Work & Pensions,INSURANCE CLAIMS
Peterborough,http://opendatacommunities.org/id/unitary-authority/peterborough,Peterborough City Council,Children's & Education Services - Children's Social Care,Children Looked After,Transport,01/07/2015 00:00,747064,761.51,REVENUE,Goldstar Cabs Ltd,HIRED TRANSPORT
Peterborough,http://opendatacommunities.org/id/unitary-authority/peterborough,Peterborough City Council,Children's & Education Services - Education,Other Education and Community Budget,Supplies and Services,01/07/2015 00:00,747128,10000,REVENUE,National Literacy Trust,EDUCATION EXPENSES
Peterborough,http://opendatacommunities.org/id/unitary-authority/peterborough,Peterborough City Council,More than one Service Area Category,More than one Service Division,More than one Expenses Type,01/07/2015 00:00,747158,3400,"Mixture of Capital, Revenue and/or Balance Sheet",Morley Building Services,GRANT PAYMENT
Peterborough,http://opendatacommunities.org/id/unitary-authority/peterborough,Peterborough City Council,Children's & Education Services - Education,Other Education and Community Budget,Supplies and Services,01/07/2015 00:00,747162,1230.45,REVENUE,Redacted Personal Data,HIRED SERVICES
Peterborough,http://opendatacommunities.org/id/unitary-authority/peterborough,Peterborough City Council,More than one Service Area Category,More than one Service Division,Balance Sheet,01/07/2015 00:00,747168,6500,Balance Sheet,Redacted Personal Data,INSURANCE CLAIMS
Peterborough,http://opendatacommunities.org/id/unitary-authority/peterborough,Peterborough City Council,Adult Social Care,Social Care Activities,Third Party Payments,01/07/2015 00:00,747169,3564,REVENUE,Kme Solutions Ltd,THIRD PARTY PAYMENTS - CONTRACT
Peterborough,http://opendatacommunities.org/id/unitary-authority/peterborough,Peterborough City Council,Adult Social Care,Adult Learning Disabilities,Supplies and Services,01/07/2015 00:00,747264,4422.2,REVENUE,Mencap,RESIDENTIAL CARE
Peterborough,http://opendatacommunities.org/id/unitary-authority/peterborough,Peterborough City Council,More than one Service Area Category,More than one Service Division,More than one Expenses Type,01/07/2015 00:00,747271,1835,"Mixture of Capital, Revenue and/or Balance Sheet",Premier Mobility,GRANT PAYMENT
Peterborough,http://opendatacommunities.org/id/unitary-authority/peterborough,Peterborough City Council,Highways and Transport Services,Public Transport,Supplies and Services,01/07/2015 00:00,747292,579.15,REVENUE,Statutory Payment of Concessionary Fares to Bus Provider,CONTRACTORS
Peterborough,http://opendatacommunities.org/id/unitary-authority/peterborough,Peterborough City Council,Adult Social Care,Adult Learning Disabilities,Supplies and Services,01/07/2015 00:00,747293,666,REVENUE,Goldhay Arts,DAY CARE
Peterborough,http://opendatacommunities.org/id/unitary-authority/peterborough,Peterborough City Council,Adult Social Care,Adult Learning Disabilities,Supplies and Services,01/07/2015 00:00,747294,566,REVENUE,Goldhay Arts,DAY CARE
Peterborough,http://opendatacommunities.org/id/unitary-authority/peterborough,Peterborough City Council,Adult Social Care,Adult Learning Disabilities,Supplies and Services,01/07/2015 00:00,747295,566,REVENUE,Goldhay Arts,DAY CARE
Peterborough,http://opendatacommunities.org/id/unitary-authority/peterborough,Peterborough City Council,Adult Social Care,Adult Learning Disabilities,Supplies and Services,01/07/2015 00:00,747297,506,REVENUE,Goldhay Arts,DAY CARE
Peterborough,http://opendatacommunities.org/id/unitary-authority/peterborough,Peterborough City Council,Adult Social Care,Information and Early Intervention,Third Party Payments,01/07/2015 00:00,747342,39264.75,REVENUE,AGE UK,THIRD PARTY PAYMENTS - CONTRACT
Peterborough,http://opendatacommunities.org/id/unitary-authority/peterborough,Peterborough City Council,Children's & Education Services - Children's Social Care,Children Looked After,Transport,01/07/2015 00:00,747349,1003.2,REVENUE,A2B Euro Cars,HIRED TRANSPORT
Peterborough,http://opendatacommunities.org/id/unitary-authority/peterborough,Peterborough City Council,Public Health,Smoking and tobacco,Third Party Payments,01/07/2015 00:00,747392,932.54,REVENUE,Graham Young Pharmacy,THIRD PARTY PAYMENTS - CONTRACT
Peterborough,http://opendatacommunities.org/id/unitary-authority/peterborough,Peterborough City Council,Public Health,Smoking and tobacco,Third Party Payments,01/07/2015 00:00,747397,951.77,REVENUE,Lloyds Pharmacy Orton,THIRD PARTY PAYMENTS - CONTRACT
Peterborough,http://opendatacommunities.org/id/unitary-authority/peterborough,Peterborough City Council,Adult Social Care,Older People,Supplies and Services,01/07/2015 00:00,747616,622.8,REVENUE,Cross Keys Homes,HOME CARE
Peterborough,http://opendatacommunities.org/id/unitary-authority/peterborough,Peterborough City Council,Adult Social Care,Older People,Supplies and Services,01/07/2015 00:00,747627,916,REVENUE,Cross Keys Homes,HOME CARE
Peterborough,http://opendatacommunities.org/id/unitary-authority/peterborough,Peterborough City Council,Adult Social Care,Older People,Supplies and Services,01/07/2015 00:00,747630,771,REVENUE,Cross Keys Homes,HOME CARE
Peterborough,http://opendatacommunities.org/id/unitary-authority/peterborough,Peterborough City Council,Adult Social Care,Older People,Supplies and Services,01/07/2015 00:00,747637,748.8,REVENUE,Cross Keys Homes,HOME CARE
Peterborough,http://opendatacommunities.org/id/unitary-authority/peterborough,Peterborough City Council,Adult Social Care,Older People,Supplies and Services,01/07/2015 00:00,747643,830.2,REVENUE,Cross Keys Homes,HOME CARE
Peterborough,http://opendatacommunities.org/id/unitary-authority/peterborough,Peterborough City Council,Adult Social Care,Older People,Supplies and Services,01/07/2015 00:00,747644,905,REVENUE,Cross Keys Homes,HOME CARE
Peterborough,http://opendatacommunities.org/id/unitary-authority/peterborough,Peterborough City Council,Adult Social Care,Older People,Supplies and Services,01/07/2015 00:00,747648,821.6,REVENUE,Cross Keys Homes,HOME CARE
Peterborough,http://opendatacommunities.org/id/unitary-authority/peterborough,Peterborough City Council,Adult Social Care,Older People,Supplies and Services,01/07/2015 00:00,747663,553.52,REVENUE,Cozy Care,HOME CARE
Peterborough,http://opendatacommunities.org/id/unitary-authority/peterborough,Peterborough City Council,Adult Social Care,Older People,Supplies and Services,01/07/2015 00:00,747664,525.58,REVENUE,Cozy Care,HOME CARE
Peterborough,http://opendatacommunities.org/id/unitary-authority/peterborough,Peterborough City Council,Adult Social Care,Older People,Supplies and Services,01/07/2015 00:00,747665,785.4,REVENUE,Cozy Care,HOME CARE
Peterborough,http://opendatacommunities.org/id/unitary-authority/peterborough,Peterborough City Council,Adult Social Care,Older People,Supplies and Services,01/07/2015 00:00,747669,1374.12,REVENUE,Cozy Care,HOME CARE
Peterborough,http://opendatacommunities.org/id/unitary-authority/peterborough,Peterborough City Council,Adult Social Care,Older People,Supplies and Services,01/07/2015 00:00,747670,526.02,REVENUE,Cozy Care,HOME CARE
Peterborough,http://opendatacommunities.org/id/unitary-authority/peterborough,Peterborough City Council,Adult Social Care,Older People,Supplies and Services,01/07/2015 00:00,747671,550.22,REVENUE,Cozy Care,HOME CARE
Peterborough,http://opendatacommunities.org/id/unitary-authority/peterborough,Peterborough City Council,Adult Social Care,Older People,Supplies and Services,01/07/2015 00:00,747673,756.8,REVENUE,Cozy Care,HOME CARE
Peterborough,http://opendatacommunities.org/id/unitary-authority/peterborough,Peterborough City Council,Adult Social Care,Older People,Supplies and Services,01/07/2015 00:00,747674,684.64,REVENUE,Cozy Care,HOME CARE
Peterborough,http://opendatacommunities.org/id/unitary-authority/peterborough,Peterborough City Council,Adult Social Care,Older People,Supplies and Services,01/07/2015 00:00,747677,1030.7,REVENUE,Cozy Care,HOME CARE
Peterborough,http://opendatacommunities.org/id/unitary-authority/peterborough,Peterborough City Council,Adult Social Care,Older People,Supplies and Services,01/07/2015 00:00,747685,755.7,REVENUE,Cozy Care,HOME CARE
Peterborough,http://opendatacommunities.org/id/unitary-authority/peterborough,Peterborough City Council,Adult Social Care,Adult Physical Disability & Sensory Impairment,Supplies and Services,01/07/2015 00:00,747687,669.24,REVENUE,Cozy Care,HOME CARE
Peterborough,http://opendatacommunities.org/id/unitary-authority/peterborough,Peterborough City Council,Adult Social Care,Older People,Supplies and Services,01/07/2015 00:00,747688,593.78,REVENUE,Cozy Care,HOME CARE
Peterborough,http://opendatacommunities.org/id/unitary-authority/peterborough,Peterborough City Council,Adult Social Care,Older People,Supplies and Services,01/07/2015 00:00,747689,2191.2,REVENUE,Cozy Care,HOME CARE
Peterborough,http://opendatacommunities.org/id/unitary-authority/peterborough,Peterborough City Council,Adult Social Care,Older People,Supplies and Services,01/07/2015 00:00,747692,735.9,REVENUE,Cozy Care,HOME CARE
Peterborough,http://opendatacommunities.org/id/unitary-authority/peterborough,Peterborough City Council,Adult Social Care,Older People,Supplies and Services,01/07/2015 00:00,747693,1547.7,REVENUE,Cozy Care,HOME CARE
Peterborough,http://opendatacommunities.org/id/unitary-authority/peterborough,Peterborough City Council,Adult Social Care,Older People,Supplies and Services,01/07/2015 00:00,747694,715.44,REVENUE,Cozy Care,HOME CARE
Peterborough,http://opendatacommunities.org/id/unitary-authority/peterborough,Peterborough City Council,Adult Social Care,Adult Learning Disabilities,Supplies and Services,01/07/2015 00:00,747741,566,REVENUE,Goldhay Arts,DAY CARE
Peterborough,http://opendatacommunities.org/id/unitary-authority/peterborough,Peterborough City Council,More than one Service Area Category,More than one Service Division,More than one Expenses Type,01/07/2015 00:00,747745,933.6,REVENUE,A2B Euro Cars,HIRED TRANSPORT
Peterborough,http://opendatacommunities.org/id/unitary-authority/peterborough,Peterborough City Council,Children's & Education Services - Children's Social Care,Children Looked After,Transport,01/07/2015 00:00,747746,710.4,REVENUE,A2B Euro Cars,HIRED TRANSPORT
Peterborough,http://opendatacommunities.org/id/unitary-authority/peterborough,Peterborough City Council,Adult Social Care,Older People,Supplies and Services,01/07/2015 00:00,747752,3015.41,REVENUE,Avery House (Peterborough) t/a Brighterkind,RESIDENTIAL CARE
Peterborough,http://opendatacommunities.org/id/unitary-authority/peterborough,Peterborough City Council,Adult Social Care,Older People,Supplies and Services,01/07/2015 00:00,747753,2459.94,REVENUE,Avery House (Peterborough) t/a Brighterkind,RESIDENTIAL CARE
Peterborough,http://opendatacommunities.org/id/unitary-authority/peterborough,Peterborough City Council,Adult Social Care,Older People,Supplies and Services,01/07/2015 00:00,747754,2893.78,REVENUE,Avery House (Peterborough) t/a Brighterkind,RESIDENTIAL CARE
Peterborough,http://opendatacommunities.org/id/unitary-authority/peterborough,Peterborough City Council,Adult Social Care,Older People,Supplies and Services,01/07/2015 00:00,747755,2221.88,REVENUE,Avery House (Peterborough) t/a Brighterkind,RESIDENTIAL CARE
Peterborough,http://opendatacommunities.org/id/unitary-authority/peterborough,Peterborough City Council,Adult Social Care,Older People,Supplies and Services,01/07/2015 00:00,747756,2221.88,REVENUE,Avery House (Peterborough) t/a Brighterkind,RESIDENTIAL CARE
Peterborough,http://opendatacommunities.org/id/unitary-authority/peterborough,Peterborough City Council,Adult Social Care,Older People,Supplies and Services,01/07/2015 00:00,747757,1976.24,REVENUE,Avery House (Peterborough) t/a Brighterkind,RESIDENTIAL CARE
Peterborough,http://opendatacommunities.org/id/unitary-authority/peterborough,Peterborough City Council,Adult Social Care,Older People,Supplies and Services,01/07/2015 00:00,747759,2221.88,REVENUE,Avery House (Peterborough) t/a Brighterkind,RESIDENTIAL CARE
Peterborough,http://opendatacommunities.org/id/unitary-authority/peterborough,Peterborough City Council,Adult Social Care,Older People,Supplies and Services,01/07/2015 00:00,747761,2893.78,REVENUE,Avery House (Peterborough) t/a Brighterkind,RESIDENTIAL CARE
Peterborough,http://opendatacommunities.org/id/unitary-authority/peterborough,Peterborough City Council,Adult Social Care,Older People,Supplies and Services,01/07/2015 00:00,747762,1745.12,REVENUE,Avery House (Peterborough) t/a Brighterkind,RESIDENTIAL CARE
Peterborough,http://opendatacommunities.org/id/unitary-authority/peterborough,Peterborough City Council,Adult Social Care,Older People,Supplies and Services,01/07/2015 00:00,747763,2221.88,REVENUE,Avery House (Peterborough) t/a Brighterkind,RESIDENTIAL CARE
Peterborough,http://opendatacommunities.org/id/unitary-authority/peterborough,Peterborough City Council,Adult Social Care,Older People,Supplies and Services,01/07/2015 00:00,747764,2221.88,REVENUE,Avery House (Peterborough) t/a Brighterkind,RESIDENTIAL CARE
Peterborough,http://opendatacommunities.org/id/unitary-authority/peterborough,Peterborough City Council,Adult Social Care,Older People,Supplies and Services,01/07/2015 00:00,747765,1976.24,REVENUE,Avery House (Peterborough) t/a Brighterkind,RESIDENTIAL CARE
Peterborough,http://opendatacommunities.org/id/unitary-authority/peterborough,Peterborough City Council,Adult Social Care,Older People,Supplies and Services,01/07/2015 00:00,747785,-900.71,REVENUE,Avery House (Peterborough) t/a Brighterkind,RESIDENTIAL CARE
Peterborough,http://opendatacommunities.org/id/unitary-authority/peterborough,Peterborough City Council,Adult Social Care,Older People,Supplies and Services,01/07/2015 00:00,747791,934,REVENUE,Avery House (Peterborough) t/a Brighterkind,RESIDENTIAL CARE
Peterborough,http://opendatacommunities.org/id/unitary-authority/peterborough,Peterborough City Council,Capital,Capital,Capital Pending Update to BS,01/07/2015 00:00,747813,8472,CAPITAL,Richard Masham Building Services,BUILDING AND SITE WORKS
Peterborough,http://opendatacommunities.org/id/unitary-authority/peterborough,Peterborough City Council,Adult Social Care,Adult Learning Disabilities,Supplies and Services,01/07/2015 00:00,747846,616.4,REVENUE,Thera East Anglia,DAY CARE
Peterborough,http://opendatacommunities.org/id/unitary-authority/peterborough,Peterborough City Council,Adult Social Care,Adult Learning Disabilities,Supplies and Services,01/07/2015 00:00,747848,570.86,REVENUE,Thera East Anglia,DAY CARE
Peterborough,http://opendatacommunities.org/id/unitary-authority/peterborough,Peterborough City Council,Adult Social Care,Adult Learning Disabilities,Supplies and Services,01/07/2015 00:00,747850,783.6,REVENUE,Thera East Anglia,DAY CARE
Peterborough,http://opendatacommunities.org/id/unitary-authority/peterborough,Peterborough City Council,Adult Social Care,Adult Learning Disabilities,Supplies and Services,01/07/2015 00:00,747854,783.6,REVENUE,Thera East Anglia,DAY CARE
Peterborough,http://opendatacommunities.org/id/unitary-authority/peterborough,Peterborough City Council,Adult Social Care,Adult Learning Disabilities,Supplies and Services,01/07/2015 00:00,747856,783.6,REVENUE,Thera East Anglia,DAY CARE
Peterborough,http://opendatacommunities.org/id/unitary-authority/peterborough,Peterborough City Council,Adult Social Care,Adult Learning Disabilities,Supplies and Services,01/07/2015 00:00,747857,783.6,REVENUE,Thera East Anglia,DAY CARE
Peterborough,http://opendatacommunities.org/id/unitary-authority/peterborough,Peterborough City Council,Capital,Capital,Capital Pending Update to BS,01/07/2015 00:00,747869,59253.7,CAPITAL,Balfour Beatty Civils Ltd,INFRASTRUCTURE
Peterborough,http://opendatacommunities.org/id/unitary-authority/peterborough,Peterborough City Council,Capital,Capital,Capital Pending Update to BS,01/07/2015 00:00,747886,1486.87,CAPITAL,Enterprise Managed Services Limited,INFRASTRUCTURE
Peterborough,http://opendatacommunities.org/id/unitary-authority/peterborough,Peterborough City Council,More than one Service Area Category,More than one Service Division,More than one Expenses Type,01/07/2015 00:00,747892,559085.29,"Mixture of Capital, Revenue and/or Balance Sheet",Enterprise Managed Services Limited,THIRD PARTY PAYMENTS - CONTRACT
Peterborough,http://opendatacommunities.org/id/unitary-authority/peterborough,Peterborough City Council,Adult Social Care,Adult Learning Disabilities,Supplies and Services,01/07/2015 00:00,747927,2802.5,REVENUE,Thera East Anglia,DAY CARE
Peterborough,http://opendatacommunities.org/id/unitary-authority/peterborough,Peterborough City Council,Adult Social Care,Adult Learning Disabilities,Supplies and Services,01/07/2015 00:00,747929,616.4,REVENUE,Thera East Anglia,DAY CARE
Peterborough,http://opendatacommunities.org/id/unitary-authority/peterborough,Peterborough City Council,Adult Social Care,Adult Learning Disabilities,Supplies and Services,01/07/2015 00:00,747931,2035.2,REVENUE,Thera East Anglia,DAY CARE
Peterborough,http://opendatacommunities.org/id/unitary-authority/peterborough,Peterborough City Council,Adult Social Care,Adult Learning Disabilities,Supplies and Services,01/07/2015 00:00,747934,616.4,REVENUE,Thera East Anglia,DAY CARE
Peterborough,http://opendatacommunities.org/id/unitary-authority/peterborough,Peterborough City Council,Children's & Education Services - Children's Social Care,Other Children's & Families Services,Supplies and Services - Transfer Payments,01/07/2015 00:00,747941,600,REVENUE,Redacted Personal Data,BOARDING OUT ALLOWANCES
Peterborough,http://opendatacommunities.org/id/unitary-authority/peterborough,Peterborough City Council,Children's & Education Services - Children's Social Care,Other Children's & Families Services,Supplies and Services - Transfer Payments,01/07/2015 00:00,747942,613.6,REVENUE,Redacted Personal Data,BOARDING OUT ALLOWANCES
Peterborough,http://opendatacommunities.org/id/unitary-authority/peterborough,Peterborough City Council,Children's & Education Services - Children's Social Care,Children Looked After,Supplies and Services - Transfer Payments,01/07/2015 00:00,747950,580.02,REVENUE,Redacted Personal Data,BOARDING OUT ALLOWANCES
Peterborough,http://opendatacommunities.org/id/unitary-authority/peterborough,Peterborough City Council,Children's & Education Services - Children's Social Care,Children Looked After,Supplies and Services - Transfer Payments,01/07/2015 00:00,747951,580.02,REVENUE,Redacted Personal Data,BOARDING OUT ALLOWANCES
Peterborough,http://opendatacommunities.org/id/unitary-authority/peterborough,Peterborough City Council,Children's & Education Services - Children's Social Care,Children Looked After,Supplies and Services - Transfer Payments,01/07/2015 00:00,747952,580.02,REVENUE,Redacted Personal Data,BOARDING OUT ALLOWANCES
Peterborough,http://opendatacommunities.org/id/unitary-authority/peterborough,Peterborough City Council,Children's & Education Services - Children's Social Care,Children Looked After,Supplies and Services - Transfer Payments,01/07/2015 00:00,747953,622.16,REVENUE,Redacted Personal Data,BOARDING OUT ALLOWANCES
Peterborough,http://opendatacommunities.org/id/unitary-authority/peterborough,Peterborough City Council,Children's & Education Services - Children's Social Care,Children Looked After,Supplies and Services - Transfer Payments,01/07/2015 00:00,747954,580.02,REVENUE,Redacted Personal Data,BOARDING OUT ALLOWANCES
Peterborough,http://opendatacommunities.org/id/unitary-authority/peterborough,Peterborough City Council,Children's & Education Services - Children's Social Care,Children Looked After,Supplies and Services - Transfer Payments,01/07/2015 00:00,747955,622.16,REVENUE,Redacted Personal Data,BOARDING OUT ALLOWANCES
Peterborough,http://opendatacommunities.org/id/unitary-authority/peterborough,Peterborough City Council,Children's & Education Services - Children's Social Care,Children Looked After,Supplies and Services - Transfer Payments,01/07/2015 00:00,747956,580.02,REVENUE,Redacted Personal Data,BOARDING OUT ALLOWANCES
Peterborough,http://opendatacommunities.org/id/unitary-authority/peterborough,Peterborough City Council,Children's & Education Services - Children's Social Care,Children Looked After,Supplies and Services - Transfer Payments,01/07/2015 00:00,747957,580.02,REVENUE,Redacted Personal Data,BOARDING OUT ALLOWANCES
Peterborough,http://opendatacommunities.org/id/unitary-authority/peterborough,Peterborough City Council,Children's & Education Services - Children's Social Care,Children Looked After,Supplies and Services - Transfer Payments,01/07/2015 00:00,747958,524.16,REVENUE,Redacted Personal Data,BOARDING OUT ALLOWANCES
Peterborough,http://opendatacommunities.org/id/unitary-authority/peterborough,Peterborough City Council,Children's & Education Services - Children's Social Care,Children Looked After,Supplies and Services - Transfer Payments,01/07/2015 00:00,747959,524.16,REVENUE,Redacted Personal Data,BOARDING OUT ALLOWANCES
Peterborough,http://opendatacommunities.org/id/unitary-authority/peterborough,Peterborough City Council,Children's & Education Services - Children's Social Care,Children Looked After,Supplies and Services - Transfer Payments,01/07/2015 00:00,747960,580.02,REVENUE,Redacted Personal Data,BOARDING OUT ALLOWANCES
Peterborough,http://opendatacommunities.org/id/unitary-authority/peterborough,Peterborough City Council,Children's & Education Services - Children's Social Care,Children Looked After,Supplies and Services - Transfer Payments,01/07/2015 00:00,747961,580.02,REVENUE,Redacted Personal Data,BOARDING OUT ALLOWANCES
Peterborough,http://opendatacommunities.org/id/unitary-authority/peterborough,Peterborough City Council,Children's & Education Services - Children's Social Care,Children Looked After,Supplies and Services - Transfer Payments,01/07/2015 00:00,747962,580.02,REVENUE,Redacted Personal Data,BOARDING OUT ALLOWANCES
Peterborough,http://opendatacommunities.org/id/unitary-authority/peterborough,Peterborough City Council,Children's & Education Services - Children's Social Care,Children Looked After,Supplies and Services - Transfer Payments,01/07/2015 00:00,747963,580.02,REVENUE,Redacted Personal Data,BOARDING OUT ALLOWANCES
Peterborough,http://opendatacommunities.org/id/unitary-authority/peterborough,Peterborough City Council,Children's & Education Services - Children's Social Care,Children Looked After,Supplies and Services - Transfer Payments,01/07/2015 00:00,747964,580.02,REVENUE,Redacted Personal Data,BOARDING OUT ALLOWANCES
Peterborough,http://opendatacommunities.org/id/unitary-authority/peterborough,Peterborough City Council,Children's & Education Services - Children's Social Care,Children Looked After,Supplies and Services - Transfer Payments,01/07/2015 00:00,747965,580.02,REVENUE,Redacted Personal Data,BOARDING OUT ALLOWANCES
Peterborough,http://opendatacommunities.org/id/unitary-authority/peterborough,Peterborough City Council,Children's & Education Services - Children's Social Care,Children Looked After,Supplies and Services - Transfer Payments,01/07/2015 00:00,747966,885.08,REVENUE,Redacted Personal Data,BOARDING OUT ALLOWANCES
Peterborough,http://opendatacommunities.org/id/unitary-authority/peterborough,Peterborough City Council,Children's & Education Services - Children's Social Care,Children Looked After,Supplies and Services - Transfer Payments,01/07/2015 00:00,747967,524.16,REVENUE,Redacted Personal Data,BOARDING OUT ALLOWANCES
Peterborough,http://opendatacommunities.org/id/unitary-authority/peterborough,Peterborough City Council,Children's & Education Services - Children's Social Care,Children Looked After,Supplies and Services - Transfer Payments,01/07/2015 00:00,747968,580.02,REVENUE,Redacted Personal Data,BOARDING OUT ALLOWANCES
Peterborough,http://opendatacommunities.org/id/unitary-authority/peterborough,Peterborough City Council,Children's & Education Services - Children's Social Care,Children Looked After,Supplies and Services - Transfer Payments,01/07/2015 00:00,747969,580.02,REVENUE,Redacted Personal Data,BOARDING OUT ALLOWANCES
Peterborough,http://opendatacommunities.org/id/unitary-authority/peterborough,Peterborough City Council,Children's & Education Services - Children's Social Care,Children Looked After,Supplies and Services - Transfer Payments,01/07/2015 00:00,747970,580.02,REVENUE,Redacted Personal Data,BOARDING OUT ALLOWANCES
Peterborough,http://opendatacommunities.org/id/unitary-authority/peterborough,Peterborough City Council,Children's & Education Services - Children's Social Care,Children Looked After,Supplies and Services - Transfer Payments,01/07/2015 00:00,747971,580.02,REVENUE,Redacted Personal Data,BOARDING OUT ALLOWANCES
Peterborough,http://opendatacommunities.org/id/unitary-authority/peterborough,Peterborough City Council,Children's & Education Services - Children's Social Care,Children Looked After,Supplies and Services - Transfer Payments,01/07/2015 00:00,747972,885.08,REVENUE,Redacted Personal Data,BOARDING OUT ALLOWANCES
Peterborough,http://opendatacommunities.org/id/unitary-authority/peterborough,Peterborough City Council,Children's & Education Services - Children's Social Care,Children Looked After,Supplies and Services - Transfer Payments,01/07/2015 00:00,747977,622.16,REVENUE,Redacted Personal Data,BOARDING OUT ALLOWANCES
Peterborough,http://opendatacommunities.org/id/unitary-authority/peterborough,Peterborough City Council,Children's & Education Services - Children's Social Care,Children Looked After,Supplies and Services - Transfer Payments,01/07/2015 00:00,747979,524.16,REVENUE,Redacted Personal Data,BOARDING OUT ALLOWANCES
Peterborough,http://opendatacommunities.org/id/unitary-authority/peterborough,Peterborough City Council,Children's & Education Services - Children's Social Care,Children Looked After,Supplies and Services - Transfer Payments,01/07/2015 00:00,747983,580.02,REVENUE,Redacted Personal Data,BOARDING OUT ALLOWANCES
Peterborough,http://opendatacommunities.org/id/unitary-authority/peterborough,Peterborough City Council,Children's & Education Services - Children's Social Care,Children Looked After,Supplies and Services - Transfer Payments,01/07/2015 00:00,747984,524.16,REVENUE,Redacted Personal Data,BOARDING OUT ALLOWANCES
Peterborough,http://opendatacommunities.org/id/unitary-authority/peterborough,Peterborough City Council,Children's & Education Services - Children's Social Care,Children Looked After,Supplies and Services - Transfer Payments,01/07/2015 00:00,747985,524.16,REVENUE,Redacted Personal Data,BOARDING OUT ALLOWANCES
Peterborough,http://opendatacommunities.org/id/unitary-authority/peterborough,Peterborough City Council,Children's & Education Services - Children's Social Care,Children Looked After,Supplies and Services - Transfer Payments,01/07/2015 00:00,747986,524.16,REVENUE,Redacted Personal Data,BOARDING OUT ALLOWANCES
Peterborough,http://opendatacommunities.org/id/unitary-authority/peterborough,Peterborough City Council,Children's & Education Services - Children's Social Care,Children Looked After,Supplies and Services - Transfer Payments,01/07/2015 00:00,747987,580.02,REVENUE,Redacted Personal Data,BOARDING OUT ALLOWANCES
Peterborough,http://opendatacommunities.org/id/unitary-authority/peterborough,Peterborough City Council,Children's & Education Services - Children's Social Care,Children Looked After,Supplies and Services - Transfer Payments,01/07/2015 00:00,747988,580.02,REVENUE,Redacted Personal Data,BOARDING OUT ALLOWANCES
Peterborough,http://opendatacommunities.org/id/unitary-authority/peterborough,Peterborough City Council,Children's & Education Services - Children's Social Care,Children Looked After,Supplies and Services - Transfer Payments,01/07/2015 00:00,747989,594.93,REVENUE,Redacted Personal Data,BOARDING OUT ALLOWANCES
Peterborough,http://opendatacommunities.org/id/unitary-authority/peterborough,Peterborough City Council,Children's & Education Services - Children's Social Care,Children Looked After,Supplies and Services - Transfer Payments,01/07/2015 00:00,747990,580.02,REVENUE,Redacted Personal Data,BOARDING OUT ALLOWANCES
Peterborough,http://opendatacommunities.org/id/unitary-authority/peterborough,Peterborough City Council,Children's & Education Services - Children's Social Care,Children Looked After,Supplies and Services - Transfer Payments,01/07/2015 00:00,747991,885.08,REVENUE,Redacted Personal Data,BOARDING OUT ALLOWANCES
Peterborough,http://opendatacommunities.org/id/unitary-authority/peterborough,Peterborough City Council,Children's & Education Services - Children's Social Care,Children Looked After,Supplies and Services - Transfer Payments,01/07/2015 00:00,747992,580.02,REVENUE,Redacted Personal Data,BOARDING OUT ALLOWANCES
Peterborough,http://opendatacommunities.org/id/unitary-authority/peterborough,Peterborough City Council,Children's & Education Services - Children's Social Care,Children Looked After,Supplies and Services - Transfer Payments,01/07/2015 00:00,748006,622.16,REVENUE,Redacted Personal Data,BOARDING OUT ALLOWANCES
Peterborough,http://opendatacommunities.org/id/unitary-authority/peterborough,Peterborough City Council,Children's & Education Services - Children's Social Care,Children Looked After,Supplies and Services - Transfer Payments,01/07/2015 00:00,748007,580.02,REVENUE,Redacted Personal Data,BOARDING OUT ALLOWANCES
Peterborough,http://opendatacommunities.org/id/unitary-authority/peterborough,Peterborough City Council,Children's & Education Services - Children's Social Care,Children Looked After,Supplies and Services - Transfer Payments,01/07/2015 00:00,748013,1385.08,REVENUE,Redacted Personal Data,BOARDING OUT ALLOWANCES
Peterborough,http://opendatacommunities.org/id/unitary-authority/peterborough,Peterborough City Council,Children's & Education Services - Children's Social Care,Children Looked After,Supplies and Services - Transfer Payments,01/07/2015 00:00,748017,622.16,REVENUE,Redacted Personal Data,BOARDING OUT ALLOWANCES
Peterborough,http://opendatacommunities.org/id/unitary-authority/peterborough,Peterborough City Council,Children's & Education Services - Children's Social Care,Children Looked After,Supplies and Services - Transfer Payments,01/07/2015 00:00,748022,580.02,REVENUE,Redacted Personal Data,BOARDING OUT ALLOWANCES
Peterborough,http://opendatacommunities.org/id/unitary-authority/peterborough,Peterborough City Council,Children's & Education Services - Children's Social Care,Children Looked After,Supplies and Services - Transfer Payments,01/07/2015 00:00,748028,622.16,REVENUE,Redacted Personal Data,BOARDING OUT ALLOWANCES
Peterborough,http://opendatacommunities.org/id/unitary-authority/peterborough,Peterborough City Council,Children's & Education Services - Children's Social Care,Children Looked After,Supplies and Services - Transfer Payments,01/07/2015 00:00,748030,622.16,REVENUE,Redacted Personal Data,BOARDING OUT ALLOWANCES
Peterborough,http://opendatacommunities.org/id/unitary-authority/peterborough,Peterborough City Council,Children's & Education Services - Children's Social Care,Other Children's & Families Services,Supplies and Services - Transfer Payments,01/07/2015 00:00,748031,646.15,REVENUE,Redacted Personal Data,BOARDING OUT ALLOWANCES
Peterborough,http://opendatacommunities.org/id/unitary-authority/peterborough,Peterborough City Council,Children's & Education Services - Children's Social Care,Other Children's & Families Services,Supplies and Services - Transfer Payments,01/07/2015 00:00,748032,646.15,REVENUE,Redacted Personal Data,BOARDING OUT ALLOWANCES
Peterborough,http://opendatacommunities.org/id/unitary-authority/peterborough,Peterborough City Council,Children's & Education Services - Children's Social Care,Children Looked After,Supplies and Services - Transfer Payments,01/07/2015 00:00,748043,1514.38,REVENUE,Redacted Personal Data,BOARDING OUT ALLOWANCES
Peterborough,http://opendatacommunities.org/id/unitary-authority/peterborough,Peterborough City Council,Children's & Education Services - Children's Social Care,Other Children's & Families Services,Supplies and Services - Transfer Payments,01/07/2015 00:00,748049,632.38,REVENUE,Redacted Personal Data,BOARDING OUT ALLOWANCES
Peterborough,http://opendatacommunities.org/id/unitary-authority/peterborough,Peterborough City Council,Children's & Education Services - Children's Social Care,Other Children's & Families Services,Supplies and Services - Transfer Payments,01/07/2015 00:00,748050,632.38,REVENUE,Redacted Personal Data,BOARDING OUT ALLOWANCES
Peterborough,http://opendatacommunities.org/id/unitary-authority/peterborough,Peterborough City Council,Children's & Education Services - Children's Social Care,Children Looked After,Supplies and Services - Transfer Payments,01/07/2015 00:00,748057,580.02,REVENUE,Redacted Personal Data,BOARDING OUT ALLOWANCES
Peterborough,http://opendatacommunities.org/id/unitary-authority/peterborough,Peterborough City Council,Children's & Education Services - Children's Social Care,Other Children's & Families Services,Supplies and Services - Transfer Payments,01/07/2015 00:00,748060,792,REVENUE,Redacted Personal Data,BOARDING OUT ALLOWANCES
Peterborough,http://opendatacommunities.org/id/unitary-authority/peterborough,Peterborough City Council,Children's & Education Services - Children's Social Care,Other Children's & Families Services,Supplies and Services - Transfer Payments,01/07/2015 00:00,748061,792,REVENUE,Redacted Personal Data,BOARDING OUT ALLOWANCES
Peterborough,http://opendatacommunities.org/id/unitary-authority/peterborough,Peterborough City Council,Children's & Education Services - Children's Social Care,Other Children's & Families Services,Supplies and Services - Transfer Payments,01/07/2015 00:00,748068,844.48,REVENUE,Redacted Personal Data,BOARDING OUT ALLOWANCES
Peterborough,http://opendatacommunities.org/id/unitary-authority/peterborough,Peterborough City Council,Children's & Education Services - Children's Social Care,Children Looked After,Supplies and Services - Transfer Payments,01/07/2015 00:00,748071,524.16,REVENUE,Redacted Personal Data,BOARDING OUT ALLOWANCES
Peterborough,http://opendatacommunities.org/id/unitary-authority/peterborough,Peterborough City Council,Children's & Education Services - Children's Social Care,Children Looked After,Supplies and Services - Transfer Payments,01/07/2015 00:00,748073,580.02,REVENUE,Redacted Personal Data,BOARDING OUT ALLOWANCES
Peterborough,http://opendatacommunities.org/id/unitary-authority/peterborough,Peterborough City Council,Children's & Education Services - Children's Social Care,Children Looked After,Supplies and Services - Transfer Payments,01/07/2015 00:00,748074,826.42,REVENUE,Redacted Personal Data,BOARDING OUT ALLOWANCES
Peterborough,http://opendatacommunities.org/id/unitary-authority/peterborough,Peterborough City Council,Children's & Education Services - Children's Social Care,Children Looked After,Supplies and Services - Transfer Payments,01/07/2015 00:00,748075,613.48,REVENUE,Redacted Personal Data,BOARDING OUT ALLOWANCES
Peterborough,http://opendatacommunities.org/id/unitary-authority/peterborough,Peterborough City Council,Children's & Education Services - Children's Social Care,Children Looked After,Supplies and Services - Transfer Payments,01/07/2015 00:00,748077,524.16,REVENUE,Redacted Personal Data,BOARDING OUT ALLOWANCES
Peterborough,http://opendatacommunities.org/id/unitary-authority/peterborough,Peterborough City Council,Children's & Education Services - Children's Social Care,Children Looked After,Supplies and Services - Transfer Payments,01/07/2015 00:00,748087,622.16,REVENUE,Redacted Personal Data,BOARDING OUT ALLOWANCES
Peterborough,http://opendatacommunities.org/id/unitary-authority/peterborough,Peterborough City Council,Children's & Education Services - Children's Social Care,Children Looked After,Supplies and Services - Transfer Payments,01/07/2015 00:00,748088,580.02,REVENUE,Redacted Personal Data,BOARDING OUT ALLOWANCES
Peterborough,http://opendatacommunities.org/id/unitary-authority/peterborough,Peterborough City Council,Children's & Education Services - Children's Social Care,Children Looked After,Supplies and Services - Transfer Payments,01/07/2015 00:00,748093,538.68,REVENUE,Redacted Personal Data,BOARDING OUT ALLOWANCES
Peterborough,http://opendatacommunities.org/id/unitary-authority/peterborough,Peterborough City Council,Children's & Education Services - Children's Social Care,Children Looked After,Supplies and Services - Transfer Payments,01/07/2015 00:00,748094,580.02,REVENUE,Redacted Personal Data,BOARDING OUT ALLOWANCES
Peterborough,http://opendatacommunities.org/id/unitary-authority/peterborough,Peterborough City Council,Children's & Education Services - Children's Social Care,Children Looked After,Supplies and Services - Transfer Payments,01/07/2015 00:00,748102,524.16,REVENUE,Redacted Personal Data,BOARDING OUT ALLOWANCES
Peterborough,http://opendatacommunities.org/id/unitary-authority/peterborough,Peterborough City Council,Children's & Education Services - Children's Social Care,Children Looked After,Supplies and Services - Transfer Payments,01/07/2015 00:00,748103,580.02,REVENUE,Redacted Personal Data,BOARDING OUT ALLOWANCES
Peterborough,http://opendatacommunities.org/id/unitary-authority/peterborough,Peterborough City Council,Children's & Education Services - Children's Social Care,Children Looked After,Supplies and Services - Transfer Payments,01/07/2015 00:00,748110,580.02,REVENUE,Redacted Personal Data,BOARDING OUT ALLOWANCES
Peterborough,http://opendatacommunities.org/id/unitary-authority/peterborough,Peterborough City Council,Children's & Education Services - Children's Social Care,Children Looked After,Supplies and Services - Transfer Payments,01/07/2015 00:00,748112,580.02,REVENUE,Redacted Personal Data,BOARDING OUT ALLOWANCES
Peterborough,http://opendatacommunities.org/id/unitary-authority/peterborough,Peterborough City Council,Children's & Education Services - Children's Social Care,Other Children's & Families Services,Supplies and Services - Transfer Payments,01/07/2015 00:00,748119,646.02,REVENUE,Redacted Personal Data,BOARDING OUT ALLOWANCES
Peterborough,http://opendatacommunities.org/id/unitary-authority/peterborough,Peterborough City Council,Children's & Education Services - Children's Social Care,Children Looked After,Supplies and Services - Transfer Payments,01/07/2015 00:00,748120,524.16,REVENUE,Redacted Personal Data,BOARDING OUT ALLOWANCES
Peterborough,http://opendatacommunities.org/id/unitary-authority/peterborough,Peterborough City Council,Children's & Education Services - Children's Social Care,Children Looked After,Supplies and Services - Transfer Payments,01/07/2015 00:00,748121,524.16,REVENUE,Redacted Personal Data,BOARDING OUT ALLOWANCES
Peterborough,http://opendatacommunities.org/id/unitary-authority/peterborough,Peterborough City Council,Children's & Education Services - Children's Social Care,Children Looked After,Supplies and Services - Transfer Payments,01/07/2015 00:00,748122,622.16,REVENUE,Redacted Personal Data,BOARDING OUT ALLOWANCES
Peterborough,http://opendatacommunities.org/id/unitary-authority/peterborough,Peterborough City Council,Children's & Education Services - Children's Social Care,Children Looked After,Supplies and Services - Transfer Payments,01/07/2015 00:00,748139,900.9,REVENUE,Redacted Personal Data,BOARDING OUT ALLOWANCES
Peterborough,http://opendatacommunities.org/id/unitary-authority/peterborough,Peterborough City Council,Children's & Education Services - Children's Social Care,Children Looked After,Supplies and Services - Transfer Payments,01/07/2015 00:00,748140,524.16,REVENUE,Redacted Personal Data,BOARDING OUT ALLOWANCES
Peterborough,http://opendatacommunities.org/id/unitary-authority/peterborough,Peterborough City Council,Children's & Education Services - Children's Social Care,Children Looked After,Supplies and Services - Transfer Payments,01/07/2015 00:00,748147,580.02,REVENUE,Redacted Personal Data,BOARDING OUT ALLOWANCES
Peterborough,http://opendatacommunities.org/id/unitary-authority/peterborough,Peterborough City Council,Children's & Education Services - Children's Social Care,Children Looked After,Supplies and Services - Transfer Payments,01/07/2015 00:00,748148,622.16,REVENUE,Redacted Personal Data,BOARDING OUT ALLOWANCES
Peterborough,http://opendatacommunities.org/id/unitary-authority/peterborough,Peterborough City Council,Children's & Education Services - Children's Social Care,Children Looked After,Supplies and Services - Transfer Payments,01/07/2015 00:00,748149,580.02,REVENUE,Redacted Personal Data,BOARDING OUT ALLOWANCES
Peterborough,http://opendatacommunities.org/id/unitary-authority/peterborough,Peterborough City Council,Children's & Education Services - Children's Social Care,Other Children's & Families Services,Supplies and Services - Transfer Payments,01/07/2015 00:00,748164,531.88,REVENUE,Redacted Personal Data,BOARDING OUT ALLOWANCES
Peterborough,http://opendatacommunities.org/id/unitary-authority/peterborough,Peterborough City Council,Children's & Education Services - Children's Social Care,Other Children's & Families Services,Supplies and Services - Transfer Payments,01/07/2015 00:00,748165,545.88,REVENUE,Redacted Personal Data,BOARDING OUT ALLOWANCES
Peterborough,http://opendatacommunities.org/id/unitary-authority/peterborough,Peterborough City Council,Children's & Education Services - Children's Social Care,Other Children's & Families Services,Supplies and Services - Transfer Payments,01/07/2015 00:00,748166,545.88,REVENUE,Redacted Personal Data,BOARDING OUT ALLOWANCES
Peterborough,http://opendatacommunities.org/id/unitary-authority/peterborough,Peterborough City Council,Children's & Education Services - Children's Social Care,Other Children's & Families Services,Supplies and Services - Transfer Payments,01/07/2015 00:00,748167,545.88,REVENUE,Redacted Personal Data,BOARDING OUT ALLOWANCES
Peterborough,http://opendatacommunities.org/id/unitary-authority/peterborough,Peterborough City Council,Children's & Education Services - Children's Social Care,Other Children's & Families Services,Supplies and Services - Transfer Payments,01/07/2015 00:00,748168,545.88,REVENUE,Redacted Personal Data,BOARDING OUT ALLOWANCES
Peterborough,http://opendatacommunities.org/id/unitary-authority/peterborough,Peterborough City Council,Children's & Education Services - Children's Social Care,Children Looked After,Supplies and Services - Transfer Payments,01/07/2015 00:00,748260,639.1,REVENUE,Redacted Personal Data,BOARDING OUT ALLOWANCES
Peterborough,http://opendatacommunities.org/id/unitary-authority/peterborough,Peterborough City Council,Children's & Education Services - Children's Social Care,Children Looked After,Supplies and Services - Transfer Payments,01/07/2015 00:00,748261,794.46,REVENUE,Redacted Personal Data,BOARDING OUT ALLOWANCES
Peterborough,http://opendatacommunities.org/id/unitary-authority/peterborough,Peterborough City Council,Children's & Education Services - Children's Social Care,Children Looked After,Supplies and Services - Transfer Payments,01/07/2015 00:00,748262,794.46,REVENUE,Redacted Personal Data,BOARDING OUT ALLOWANCES
Peterborough,http://opendatacommunities.org/id/unitary-authority/peterborough,Peterborough City Council,Children's & Education Services - Children's Social Care,Children Looked After,Supplies and Services - Transfer Payments,01/07/2015 00:00,748263,689.92,REVENUE,Redacted Personal Data,BOARDING OUT ALLOWANCES
Peterborough,http://opendatacommunities.org/id/unitary-authority/peterborough,Peterborough City Council,Children's & Education Services - Children's Social Care,Children Looked After,Supplies and Services - Transfer Payments,01/07/2015 00:00,748264,689.92,REVENUE,Redacted Personal Data,BOARDING OUT ALLOWANCES
Peterborough,http://opendatacommunities.org/id/unitary-authority/peterborough,Peterborough City Council,Children's & Education Services - Children's Social Care,Children Looked After,Supplies and Services - Transfer Payments,01/07/2015 00:00,748265,831.74,REVENUE,Redacted Personal Data,BOARDING OUT ALLOWANCES
Peterborough,http://opendatacommunities.org/id/unitary-authority/peterborough,Peterborough City Council,Children's & Education Services - Children's Social Care,Children Looked After,Supplies and Services - Transfer Payments,01/07/2015 00:00,748266,664.72,REVENUE,Redacted Personal Data,BOARDING OUT ALLOWANCES
Peterborough,http://opendatacommunities.org/id/unitary-authority/peterborough,Peterborough City Council,Children's & Education Services - Children's Social Care,Children Looked After,Supplies and Services - Transfer Payments,01/07/2015 00:00,748267,664.72,REVENUE,Redacted Personal Data,BOARDING OUT ALLOWANCES
Peterborough,http://opendatacommunities.org/id/unitary-authority/peterborough,Peterborough City Council,Children's & Education Services - Children's Social Care,Children Looked After,Supplies and Services - Transfer Payments,01/07/2015 00:00,748268,987.54,REVENUE,Redacted Personal Data,BOARDING OUT ALLOWANCES
Peterborough,http://opendatacommunities.org/id/unitary-authority/peterborough,Peterborough City Council,Children's & Education Services - Children's Social Care,Children Looked After,Supplies and Services - Transfer Payments,01/07/2015 00:00,748269,985.72,REVENUE,Redacted Personal Data,BOARDING OUT ALLOWANCES
Peterborough,http://opendatacommunities.org/id/unitary-authority/peterborough,Peterborough City Council,Children's & Education Services - Children's Social Care,Children Looked After,Supplies and Services - Transfer Payments,01/07/2015 00:00,748270,680.72,REVENUE,Redacted Personal Data,BOARDING OUT ALLOWANCES
Peterborough,http://opendatacommunities.org/id/unitary-authority/peterborough,Peterborough City Council,Children's & Education Services - Children's Social Care,Children Looked After,Supplies and Services - Transfer Payments,01/07/2015 00:00,748271,680.72,REVENUE,Redacted Personal Data,BOARDING OUT ALLOWANCES
Peterborough,http://opendatacommunities.org/id/unitary-authority/peterborough,Peterborough City Council,Children's & Education Services - Children's Social Care,Children Looked After,Supplies and Services - Transfer Payments,01/07/2015 00:00,748272,1013.14,REVENUE,Redacted Personal Data,BOARDING OUT ALLOWANCES
Peterborough,http://opendatacommunities.org/id/unitary-authority/peterborough,Peterborough City Council,Children's & Education Services - Children's Social Care,Children Looked After,Supplies and Services - Transfer Payments,01/07/2015 00:00,748273,928.5,REVENUE,Redacted Personal Data,BOARDING OUT ALLOWANCES
Peterborough,http://opendatacommunities.org/id/unitary-authority/peterborough,Peterborough City Council,Children's & Education Services - Children's Social Care,Children Looked After,Supplies and Services - Transfer Payments,01/07/2015 00:00,748274,788.9,REVENUE,Redacted Personal Data,BOARDING OUT ALLOWANCES
Peterborough,http://opendatacommunities.org/id/unitary-authority/peterborough,Peterborough City Council,Children's & Education Services - Children's Social Care,Children Looked After,Supplies and Services - Transfer Payments,01/07/2015 00:00,748275,788.9,REVENUE,Redacted Personal Data,BOARDING OUT ALLOWANCES
Peterborough,http://opendatacommunities.org/id/unitary-authority/peterborough,Peterborough City Council,Children's & Education Services - Children's Social Care,Children Looked After,Supplies and Services - Transfer Payments,01/07/2015 00:00,748276,723.52,REVENUE,Redacted Personal Data,BOARDING OUT ALLOWANCES
Peterborough,http://opendatacommunities.org/id/unitary-authority/peterborough,Peterborough City Council,Children's & Education Services - Children's Social Care,Family Support Services,Supplies and Services,01/07/2015 00:00,748283,501.34,REVENUE,Redacted Personal Data,FINANCIAL ASSISTANCE
Peterborough,http://opendatacommunities.org/id/unitary-authority/peterborough,Peterborough City Council,Children's & Education Services - Children's Social Care,Children Looked After,Supplies and Services - Transfer Payments,01/07/2015 00:00,748296,580.02,REVENUE,Redacted Personal Data,BOARDING OUT ALLOWANCES
Peterborough,http://opendatacommunities.org/id/unitary-authority/peterborough,Peterborough City Council,Children's & Education Services - Children's Social Care,Children Looked After,Supplies and Services - Transfer Payments,01/07/2015 00:00,748301,524.16,REVENUE,Redacted Personal Data,BOARDING OUT ALLOWANCES
Peterborough,http://opendatacommunities.org/id/unitary-authority/peterborough,Peterborough City Council,Children's & Education Services - Children's Social Care,Family Support Services,Supplies and Services,01/07/2015 00:00,748306,980.42,REVENUE,Redacted Personal Data,FINANCIAL ASSISTANCE
Peterborough,http://opendatacommunities.org/id/unitary-authority/peterborough,Peterborough City Council,Children's & Education Services - Children's Social Care,Children Looked After,Supplies and Services - Transfer Payments,01/07/2015 00:00,748320,580.02,REVENUE,Redacted Personal Data,BOARDING OUT ALLOWANCES
Peterborough,http://opendatacommunities.org/id/unitary-authority/peterborough,Peterborough City Council,Children's & Education Services - Children's Social Care,Children Looked After,Supplies and Services - Transfer Payments,01/07/2015 00:00,748322,580.02,REVENUE,Redacted Personal Data,BOARDING OUT ALLOWANCES
Peterborough,http://opendatacommunities.org/id/unitary-authority/peterborough,Peterborough City Council,Children's & Education Services - Children's Social Care,Children Looked After,Supplies and Services - Transfer Payments,01/07/2015 00:00,748324,700.9,REVENUE,Redacted Personal Data,BOARDING OUT ALLOWANCES
Peterborough,http://opendatacommunities.org/id/unitary-authority/peterborough,Peterborough City Council,Children's & Education Services - Children's Social Care,Children Looked After,Supplies and Services - Transfer Payments,01/07/2015 00:00,748327,806.72,REVENUE,Redacted Personal Data,BOARDING OUT ALLOWANCES
Peterborough,http://opendatacommunities.org/id/unitary-authority/peterborough,Peterborough City Council,Children's & Education Services - Children's Social Care,Children Looked After,Supplies and Services - Transfer Payments,01/07/2015 00:00,748328,723.52,REVENUE,Redacted Personal Data,BOARDING OUT ALLOWANCES
Peterborough,http://opendatacommunities.org/id/unitary-authority/peterborough,Peterborough City Council,Children's & Education Services - Children's Social Care,Children Looked After,Supplies and Services - Transfer Payments,01/07/2015 00:00,748330,622.16,REVENUE,Redacted Personal Data,BOARDING OUT ALLOWANCES
Peterborough,http://opendatacommunities.org/id/unitary-authority/peterborough,Peterborough City Council,Children's & Education Services - Children's Social Care,Children Looked After,Supplies and Services - Transfer Payments,01/07/2015 00:00,748331,622.16,REVENUE,Redacted Personal Data,BOARDING OUT ALLOWANCES
Peterborough,http://opendatacommunities.org/id/unitary-authority/peterborough,Peterborough City Council,Children's & Education Services - Children's Social Care,Children Looked After,Supplies and Services - Transfer Payments,01/07/2015 00:00,748335,673.12,REVENUE,Redacted Personal Data,BOARDING OUT ALLOWANCES
Peterborough,http://opendatacommunities.org/id/unitary-authority/peterborough,Peterborough City Council,Children's & Education Services - Children's Social Care,Children Looked After,Supplies and Services - Transfer Payments,01/07/2015 00:00,748336,673.12,REVENUE,Redacted Personal Data,BOARDING OUT ALLOWANCES
Peterborough,http://opendatacommunities.org/id/unitary-authority/peterborough,Peterborough City Council,Children's & Education Services - Children's Social Care,Other Children's & Families Services,Supplies and Services - Transfer Payments,01/07/2015 00:00,748341,851.48,REVENUE,Redacted Personal Data,BOARDING OUT ALLOWANCES
Peterborough,http://opendatacommunities.org/id/unitary-authority/peterborough,Peterborough City Council,Children's & Education Services - Children's Social Care,Children Looked After,Supplies and Services - Transfer Payments,01/07/2015 00:00,748344,840,REVENUE,Redacted Personal Data,BOARDING OUT ALLOWANCES
Peterborough,http://opendatacommunities.org/id/unitary-authority/peterborough,Peterborough City Council,Children's & Education Services - Children's Social Care,Children Looked After,Supplies and Services - Transfer Payments,01/07/2015 00:00,748345,840,REVENUE,Redacted Personal Data,BOARDING OUT ALLOWANCES
Peterborough,http://opendatacommunities.org/id/unitary-authority/peterborough,Peterborough City Council,Children's & Education Services - Children's Social Care,Other Children's & Families Services,Supplies and Services - Transfer Payments,01/07/2015 00:00,748351,554.48,REVENUE,Redacted Personal Data,BOARDING OUT ALLOWANCES
Peterborough,http://opendatacommunities.org/id/unitary-authority/peterborough,Peterborough City Council,Children's & Education Services - Children's Social Care,Children Looked After,Supplies and Services - Transfer Payments,01/07/2015 00:00,748355,524.16,REVENUE,Redacted Personal Data,BOARDING OUT ALLOWANCES
Peterborough,http://opendatacommunities.org/id/unitary-authority/peterborough,Peterborough City Council,Children's & Education Services - Children's Social Care,Children Looked After,Supplies and Services - Transfer Payments,01/07/2015 00:00,748356,580.02,REVENUE,Redacted Personal Data,BOARDING OUT ALLOWANCES
Peterborough,http://opendatacommunities.org/id/unitary-authority/peterborough,Peterborough City Council,Children's & Education Services - Children's Social Care,Children Looked After,Supplies and Services - Transfer Payments,01/07/2015 00:00,748357,551.45,REVENUE,Redacted Personal Data,BOARDING OUT ALLOWANCES
Peterborough,http://opendatacommunities.org/id/unitary-authority/peterborough,Peterborough City Council,Children's & Education Services - Children's Social Care,Children Looked After,Supplies and Services - Transfer Payments,01/07/2015 00:00,748359,1988,REVENUE,Redacted Personal Data,BOARDING OUT ALLOWANCES
Peterborough,http://opendatacommunities.org/id/unitary-authority/peterborough,Peterborough City Council,Children's & Education Services - Children's Social Care,Children Looked After,Supplies and Services - Transfer Payments,01/07/2015 00:00,748392,666.6,REVENUE,Redacted Personal Data,BOARDING OUT ALLOWANCES
Peterborough,http://opendatacommunities.org/id/unitary-authority/peterborough,Peterborough City Council,Children's & Education Services - Children's Social Care,Children Looked After,Supplies and Services - Transfer Payments,01/07/2015 00:00,748393,524.16,REVENUE,Redacted Personal Data,BOARDING OUT ALLOWANCES
Peterborough,http://opendatacommunities.org/id/unitary-authority/peterborough,Peterborough City Council,Children's & Education Services - Children's Social Care,Children Looked After,Supplies and Services - Transfer Payments,01/07/2015 00:00,748399,662.88,REVENUE,Redacted Personal Data,BOARDING OUT ALLOWANCES
Peterborough,http://opendatacommunities.org/id/unitary-authority/peterborough,Peterborough City Council,Adult Social Care,Older People,Supplies and Services,01/07/2015 00:00,748426,520.54,REVENUE,Park Vista Care Home,RESIDENTIAL CARE
Peterborough,http://opendatacommunities.org/id/unitary-authority/peterborough,Peterborough City Council,Adult Social Care,Adult Learning Disabilities,Supplies and Services,01/07/2015 00:00,748428,5226.7,REVENUE,Consensus Support Services Ltd,RESIDENTIAL CARE
Peterborough,http://opendatacommunities.org/id/unitary-authority/peterborough,Peterborough City Council,Housing Services,Homelessness,Supplies and Services,01/07/2015 00:00,748460,1380,REVENUE,Woodcock Holmes,FINANCIAL ASSISTANCE
Peterborough,http://opendatacommunities.org/id/unitary-authority/peterborough,Peterborough City Council,Housing Services,Homelessness,Supplies and Services,01/07/2015 00:00,748465,695,REVENUE,Woodcock Holmes,FINANCIAL ASSISTANCE
Peterborough,http://opendatacommunities.org/id/unitary-authority/peterborough,Peterborough City Council,Housing Services,Homelessness,Supplies and Services,01/07/2015 00:00,748467,1090,REVENUE,Capitol Lettors,FINANCIAL ASSISTANCE
Peterborough,http://opendatacommunities.org/id/unitary-authority/peterborough,Peterborough City Council,Housing Services,Homelessness,Supplies and Services,01/07/2015 00:00,748469,500,REVENUE,Redacted Personal Data,FINANCIAL ASSISTANCE
Peterborough,http://opendatacommunities.org/id/unitary-authority/peterborough,Peterborough City Council,Housing Services,Homelessness,Supplies and Services,01/07/2015 00:00,748470,579.6,REVENUE,Eastfield Guesthouse,HOMELESSNESS BED AND BREAKFAST
Peterborough,http://opendatacommunities.org/id/unitary-authority/peterborough,Peterborough City Council,Adult Social Care,Social Care Activities,More than one Expenses Type,01/07/2015 00:00,748474,2252.5,REVENUE,Fieldwork Admin Team (IMPREST),Numerous
Peterborough,http://opendatacommunities.org/id/unitary-authority/peterborough,Peterborough City Council,Adult Social Care,Older People,Supplies and Services,03/07/2015 00:00,696981,-2418.21,REVENUE,PSYCARE LIMITED,RESIDENTIAL CARE
Peterborough,http://opendatacommunities.org/id/unitary-authority/peterborough,Peterborough City Council,Capital,Capital,Capital Pending Update to BS,03/07/2015 00:00,699356,4800,CAPITAL,Enterprise Managed Services Limited,STUDIES
Peterborough,http://opendatacommunities.org/id/unitary-authority/peterborough,Peterborough City Council,Children's & Education Services - Children's Social Care,Other Children's & Families Services,Employees,03/07/2015 00:00,705828,1334.4,REVENUE,Medicare First,EXTERNAL TEMPORARY STAFF
Peterborough,http://opendatacommunities.org/id/unitary-authority/peterborough,Peterborough City Council,More than one Service Area Category,More than one Service Division,Employees,03/07/2015 00:00,713317,4500,REVENUE,University of Durham,TRAINING
Peterborough,http://opendatacommunities.org/id/unitary-authority/peterborough,Peterborough City Council,Adult Social Care,Information and Early Intervention,Third Party Payments,03/07/2015 00:00,728942,16176,REVENUE,Dial Peterborough,THIRD PARTY PAYMENTS - CONTRACT
Peterborough,http://opendatacommunities.org/id/unitary-authority/peterborough,Peterborough City Council,Children's & Education Services - Children's Social Care,Children Looked After,Employees,03/07/2015 00:00,729451,589.68,REVENUE,Randstad Care Ltd,EXTERNAL TEMPORARY STAFF
Peterborough,http://opendatacommunities.org/id/unitary-authority/peterborough,Peterborough City Council,Children's & Education Services - Children's Social Care,Children Looked After,Supplies and Services - Transfer Payments,03/07/2015 00:00,734924,3000,REVENUE,I S P,BOARDING OUT ALLOWANCES
Peterborough,http://opendatacommunities.org/id/unitary-authority/peterborough,Peterborough City Council,Children's & Education Services - Children's Social Care,Children Looked After,Supplies and Services - Transfer Payments,03/07/2015 00:00,734925,5460.96,REVENUE,I S P,BOARDING OUT ALLOWANCES
Peterborough,http://opendatacommunities.org/id/unitary-authority/peterborough,Peterborough City Council,Children's & Education Services - Children's Social Care,Children Looked After,Supplies and Services - Transfer Payments,03/07/2015 00:00,734926,5466.85,REVENUE,I S P,BOARDING OUT ALLOWANCES
Peterborough,http://opendatacommunities.org/id/unitary-authority/peterborough,Peterborough City Council,Children's & Education Services - Children's Social Care,Children Looked After,Supplies and Services - Transfer Payments,03/07/2015 00:00,734927,1550,REVENUE,I S P,BOARDING OUT ALLOWANCES
Peterborough,http://opendatacommunities.org/id/unitary-authority/peterborough,Peterborough City Council,Children's & Education Services - Children's Social Care,Children Looked After,Supplies and Services - Transfer Payments,03/07/2015 00:00,734928,5637.97,REVENUE,I S P,BOARDING OUT ALLOWANCES
Peterborough,http://opendatacommunities.org/id/unitary-authority/peterborough,Peterborough City Council,Children's & Education Services - Children's Social Care,Children Looked After,Supplies and Services - Transfer Payments,03/07/2015 00:00,735367,1722.96,REVENUE,Key2,BOARDING OUT ALLOWANCES
Peterborough,http://opendatacommunities.org/id/unitary-authority/peterborough,Peterborough City Council,Children's & Education Services - Children's Social Care,Family Support Services,More than one Expenses Type,03/07/2015 00:00,737542,2641,REVENUE,Ofsted,REGISTRATION FEES
Peterborough,http://opendatacommunities.org/id/unitary-authority/peterborough,Peterborough City Council,Children's & Education Services - Children's Social Care,Children Looked After,Supplies and Services - Transfer Payments,03/07/2015 00:00,739826,4052.62,REVENUE,I S P,BOARDING OUT ALLOWANCES
Peterborough,http://opendatacommunities.org/id/unitary-authority/peterborough,Peterborough City Council,Children's & Education Services - Children's Social Care,Children Looked After,Supplies and Services - Transfer Payments,03/07/2015 00:00,739827,5290.5,REVENUE,I S P,BOARDING OUT ALLOWANCES
Peterborough,http://opendatacommunities.org/id/unitary-authority/peterborough,Peterborough City Council,Children's & Education Services - Children's Social Care,Children Looked After,Supplies and Services - Transfer Payments,03/07/2015 00:00,739828,5456.1,REVENUE,I S P,BOARDING OUT ALLOWANCES
Peterborough,http://opendatacommunities.org/id/unitary-authority/peterborough,Peterborough City Council,Children's & Education Services - Children's Social Care,Children Looked After,Supplies and Services - Transfer Payments,03/07/2015 00:00,739829,4052.62,REVENUE,I S P,BOARDING OUT ALLOWANCES
Peterborough,http://opendatacommunities.org/id/unitary-authority/peterborough,Peterborough City Council,Children's & Education Services - Children's Social Care,Children Looked After,Supplies and Services - Transfer Payments,03/07/2015 00:00,739830,5284.8,REVENUE,I S P,BOARDING OUT ALLOWANCES
Peterborough,http://opendatacommunities.org/id/unitary-authority/peterborough,Peterborough City Council,Children's & Education Services - Children's Social Care,Children Looked After,Supplies and Services - Transfer Payments,03/07/2015 00:00,739831,1500,REVENUE,I S P,BOARDING OUT ALLOWANCES
Peterborough,http://opendatacommunities.org/id/unitary-authority/peterborough,Peterborough City Council,Children's & Education Services - Children's Social Care,Children Looked After,Supplies and Services - Transfer Payments,03/07/2015 00:00,739844,-3868.41,REVENUE,I S P,BOARDING OUT ALLOWANCES
Peterborough,http://opendatacommunities.org/id/unitary-authority/peterborough,Peterborough City Council,Capital,Capital,Capital Pending Update to BS,03/07/2015 00:00,739851,900,CAPITAL,"Wylie, Mr Neil",PROFESSIONAL/LEGAL FEES
Peterborough,http://opendatacommunities.org/id/unitary-authority/peterborough,Peterborough City Council,Public Health,Obesity,More than one Expenses Type,03/07/2015 00:00,743332,4833.33,REVENUE,Cambridgeshire Community Services,THIRD PARTY PAYMENTS - CONTRACT
Peterborough,http://opendatacommunities.org/id/unitary-authority/peterborough,Peterborough City Council,Children's & Education Services - Education,Other Education and Community Budget,Supplies and Services - Transfer Payments,03/07/2015 00:00,743345,39613,REVENUE,Chelfham Mill School Ltd,BOARDING OUT ALLOWANCES
Peterborough,http://opendatacommunities.org/id/unitary-authority/peterborough,Peterborough City Council,Support Services,Support Services,Supplies and Services,03/07/2015 00:00,743975,7751.03,REVENUE,GSL Dardan Ltd,SECURITY
Peterborough,http://opendatacommunities.org/id/unitary-authority/peterborough,Peterborough City Council,Children's & Education Services - Children's Social Care,Children Looked After,Supplies and Services - Transfer Payments,03/07/2015 00:00,744026,15000,REVENUE,Barford Children's Services,BOARDING OUT ALLOWANCES
Peterborough,http://opendatacommunities.org/id/unitary-authority/peterborough,Peterborough City Council,Capital,Capital,Capital Pending Update to BS,03/07/2015 00:00,744087,11449.2,CAPITAL,Harmony Roofing Serv. Ltd,BUILDING AND SITE WORKS
Peterborough,http://opendatacommunities.org/id/unitary-authority/peterborough,Peterborough City Council,Non Distributed Cost,Pensions,Third Party Payments,03/07/2015 00:00,746123,25498.34,REVENUE,Cambridgeshire County Council,PENSIONS
Peterborough,http://opendatacommunities.org/id/unitary-authority/peterborough,Peterborough City Council,Adult Social Care,Split,Third Party Payments,03/07/2015 00:00,747238,60548.12,REVENUE,HEREWARD CARE SERVICES LIMITED,THIRD PARTY PAYMENTS - CONTRACT
Peterborough,http://opendatacommunities.org/id/unitary-authority/peterborough,Peterborough City Council,Capital,Capital,Capital Pending Update to BS,03/07/2015 00:00,747740,4856.77,CAPITAL,Enterprise Managed Services Limited,PROPERTY SERVICES FEES
Peterborough,http://opendatacommunities.org/id/unitary-authority/peterborough,Peterborough City Council,Cultural and Related Services,Support Services & Management Costs,Supplies and Services,03/07/2015 00:00,748452,3456.38,REVENUE,Vivacity Culture and Leisure,MISCELLANEOUS
Peterborough,http://opendatacommunities.org/id/unitary-authority/peterborough,Peterborough City Council,Planning Services,Economic Development,Supplies and Services,03/07/2015 00:00,748549,1454.9,REVENUE,Whitworth Bros Limited,SECURITY
Peterborough,http://opendatacommunities.org/id/unitary-authority/peterborough,Peterborough City Council,Planning Services,Economic Development,Supplies and Services,03/07/2015 00:00,748626,1776,REVENUE,Whitworth Bros Limited,SECURITY
Peterborough,http://opendatacommunities.org/id/unitary-authority/peterborough,Peterborough City Council,Planning Services,Economic Development,Supplies and Services,03/07/2015 00:00,748630,1420.8,REVENUE,Whitworth Bros Limited,SECURITY
Peterborough,http://opendatacommunities.org/id/unitary-authority/peterborough,Peterborough City Council,Children's & Education Services - Children's Social Care,Services to Young People,Supplies and Services,03/07/2015 00:00,748654,3740.03,REVENUE,Barnardos,HIRED SERVICES
Peterborough,http://opendatacommunities.org/id/unitary-authority/peterborough,Peterborough City Council,Children's & Education Services - Children's Social Care,Other Children's & Families Services,Supplies and Services,03/07/2015 00:00,748767,2842.8,REVENUE,J C Associates,CONSULTANTS FEES
Peterborough,http://opendatacommunities.org/id/unitary-authority/peterborough,Peterborough City Council,More than one Service Area Category,More than one Service Division,Balance Sheet,03/07/2015 00:00,748796,742357.36,Balance Sheet,Teachers Pensions,PENSIONS
Peterborough,http://opendatacommunities.org/id/unitary-authority/peterborough,Peterborough City Council,Children's & Education Services - Children's Social Care,Other Children's & Families Services,Employees,03/07/2015 00:00,748800,2127.54,REVENUE,Sanctuary Personnel Ltd,EXTERNAL TEMPORARY STAFF
Peterborough,http://opendatacommunities.org/id/unitary-authority/peterborough,Peterborough City Council,Children's & Education Services - Children's Social Care,Other Children's & Families Services,Employees,03/07/2015 00:00,748801,1702.03,REVENUE,Sanctuary Personnel Ltd,EXTERNAL TEMPORARY STAFF
Peterborough,http://opendatacommunities.org/id/unitary-authority/peterborough,Peterborough City Council,More than one Service Area Category,More than one Service Division,Premises,03/07/2015 00:00,748854,929.18,REVENUE,British Gas Business,ELECTRICITY
Peterborough,http://opendatacommunities.org/id/unitary-authority/peterborough,Peterborough City Council,Children's & Education Services - Education,Secondary,Premises,03/07/2015 00:00,748864,1788.38,REVENUE,Eastern Shires Purchasing Organisation,GAS
Peterborough,http://opendatacommunities.org/id/unitary-authority/peterborough,Peterborough City Council,Children's & Education Services - Education,Other Education and Community Budget,Supplies and Services,03/07/2015 00:00,748886,2205,REVENUE,Families First Ltd,EDUCATION EXPENSES
Peterborough,http://opendatacommunities.org/id/unitary-authority/peterborough,Peterborough City Council,Support Services,Support Services,Premises,03/07/2015 00:00,748912,1060,REVENUE,Zurich Insurance Company,INSURANCE PREMIUMS
Peterborough,http://opendatacommunities.org/id/unitary-authority/peterborough,Peterborough City Council,Public Health,Obesity,Supplies and Services,03/07/2015 00:00,748916,-800,REVENUE,QWI Design and Print,PRINTING
Peterborough,http://opendatacommunities.org/id/unitary-authority/peterborough,Peterborough City Council,Children's & Education Services - Education,Other Education and Community Budget,Employees,03/07/2015 00:00,748920,25374.38,REVENUE,Teachers Pensions,PENSIONS
Peterborough,http://opendatacommunities.org/id/unitary-authority/peterborough,Peterborough City Council,More than one Service Area Category,More than one Service Division,More than one Expenses Type,03/07/2015 00:00,748925,-5546,"Mixture of Capital, Revenue and/or Balance Sheet",EMS Stairlifts,GRANT PAYMENT
Peterborough,http://opendatacommunities.org/id/unitary-authority/peterborough,Peterborough City Council,More than one Service Area Category,More than one Service Division,More than one Expenses Type,03/07/2015 00:00,748927,-640,"Mixture of Capital, Revenue and/or Balance Sheet",EMS Stairlifts,GRANT PAYMENT
Peterborough,http://opendatacommunities.org/id/unitary-authority/peterborough,Peterborough City Council,Planning Services,Community Development,Premises,03/07/2015 00:00,748928,4169.9,REVENUE,E.ON Energy,ELECTRICITY
Peterborough,http://opendatacommunities.org/id/unitary-authority/peterborough,Peterborough City Council,Highways and Transport Services,Public Transport,Supplies and Services,03/07/2015 00:00,748931,-8349.61,REVENUE,National Express Ltd,CONTRACTORS
Peterborough,http://opendatacommunities.org/id/unitary-authority/peterborough,Peterborough City Council,Children's & Education Services - Children's Social Care,Children Looked After,Supplies and Services,03/07/2015 00:00,748933,-1893.29,REVENUE,Unipol Student Homes,COURSE FEES
Peterborough,http://opendatacommunities.org/id/unitary-authority/peterborough,Peterborough City Council,Planning Services,Community Development,Third Party Payments,03/07/2015 00:00,749022,8968,REVENUE,Peterborough Womens Aid,THIRD PARTY PAYMENTS - CONTRACT
Peterborough,http://opendatacommunities.org/id/unitary-authority/peterborough,Peterborough City Council,Children's & Education Services - Children's Social Care,More than one Service Division,Supplies and Services - Transfer Payments,06/07/2015 00:00,723777,47390.98,REVENUE,Cambian Autism Services Ltd,BOARDING OUT ALLOWANCES
Peterborough,http://opendatacommunities.org/id/unitary-authority/peterborough,Peterborough City Council,Capital,Capital,Capital Pending Update to BS,06/07/2015 00:00,730659,660,CAPITAL,Freeth Cartwright LLP,PROFESSIONAL/LEGAL FEES
Peterborough,http://opendatacommunities.org/id/unitary-authority/peterborough,Peterborough City Council,Children's & Education Services - Children's Social Care,Children Looked After,Supplies and Services,06/07/2015 00:00,731358,500.72,REVENUE,Excell Network Solutions Ltd,TELEPHONES
Peterborough,http://opendatacommunities.org/id/unitary-authority/peterborough,Peterborough City Council,Children's & Education Services - Children's Social Care,Services to Young People,Supplies and Services,06/07/2015 00:00,733649,621.6,REVENUE,Redacted Personal Data,FOSTERING
Peterborough,http://opendatacommunities.org/id/unitary-authority/peterborough,Peterborough City Council,Children's & Education Services - Children's Social Care,Services to Young People,Supplies and Services,06/07/2015 00:00,733650,715.7,REVENUE,Redacted Personal Data,FOSTERING
Peterborough,http://opendatacommunities.org/id/unitary-authority/peterborough,Peterborough City Council,Children's & Education Services - Children's Social Care,Children Looked After,Supplies and Services - Transfer Payments,06/07/2015 00:00,735306,16135.71,REVENUE,Halliwell Homes Ltd,BOARDING OUT ALLOWANCES
Peterborough,http://opendatacommunities.org/id/unitary-authority/peterborough,Peterborough City Council,Children's & Education Services - Children's Social Care,Children Looked After,Supplies and Services - Transfer Payments,06/07/2015 00:00,741456,18578.61,REVENUE,Young Options College Ltd,BOARDING OUT ALLOWANCES
Peterborough,http://opendatacommunities.org/id/unitary-authority/peterborough,Peterborough City Council,Children's & Education Services - Children's Social Care,Children Looked After,Supplies and Services - Transfer Payments,06/07/2015 00:00,742346,17378.57,REVENUE,Halliwell Homes Ltd,BOARDING OUT ALLOWANCES
Peterborough,http://opendatacommunities.org/id/unitary-authority/peterborough,Peterborough City Council,Environmental and Regulatory Services,Waste Collection,Supplies and Services,06/07/2015 00:00,742584,-2884.72,REVENUE,AmeyCespa (East) Ltd,RECYCLING
Peterborough,http://opendatacommunities.org/id/unitary-authority/peterborough,Peterborough City Council,Environmental and Regulatory Services,Waste Collection,Supplies and Services,06/07/2015 00:00,742585,-3528.05,REVENUE,AmeyCespa (East) Ltd,RECYCLING
Peterborough,http://opendatacommunities.org/id/unitary-authority/peterborough,Peterborough City Council,Support Services,Support Services,Premises,06/07/2015 00:00,742711,1879.92,REVENUE,Beebys Ltd,CLEANING
Peterborough,http://opendatacommunities.org/id/unitary-authority/peterborough,Peterborough City Council,Support Services,Support Services,Supplies and Services,06/07/2015 00:00,743294,1173,REVENUE,Go Management Ltd TA GoUmbrella,EXTERNAL TEMPORARY STAFF
Peterborough,http://opendatacommunities.org/id/unitary-authority/peterborough,Peterborough City Council,Environmental and Regulatory Services,Waste Collection,Supplies and Services,06/07/2015 00:00,743429,23812.18,REVENUE,AmeyCespa (East) Ltd,RECYCLING
Peterborough,http://opendatacommunities.org/id/unitary-authority/peterborough,Peterborough City Council,Children's & Education Services - Children's Social Care,Children Looked After,Supplies and Services,06/07/2015 00:00,743604,6800.75,REVENUE,DRINKSENSE,HIRED SERVICES
Peterborough,http://opendatacommunities.org/id/unitary-authority/peterborough,Peterborough City Council,Capital,Capital,Capital Pending Update to BS,06/07/2015 00:00,743615,7156.8,CAPITAL,H & A Height Services,BUILDING AND SITE WORKS
Peterborough,http://opendatacommunities.org/id/unitary-authority/peterborough,Peterborough City Council,Children's & Education Services - Children's Social Care,Family Support Services,Supplies and Services,06/07/2015 00:00,743779,914.25,REVENUE,Action on Hearing Loss,EQUIPMENT
Peterborough,http://opendatacommunities.org/id/unitary-authority/peterborough,Peterborough City Council,Deficit/(Surplus) on Trading Undertakings,Trading Account Surpluses & Deficits,Premises,06/07/2015 00:00,743936,4380,REVENUE,Tesam Distribution Ltd,BUILDING MAINTENANCE
Peterborough,http://opendatacommunities.org/id/unitary-authority/peterborough,Peterborough City Council,Children's & Education Services - Education,Other Education and Community Budget,Supplies and Services,06/07/2015 00:00,743941,720,REVENUE,Top Class Tutors,EDUCATION EXPENSES
Peterborough,http://opendatacommunities.org/id/unitary-authority/peterborough,Peterborough City Council,Children's & Education Services - Education,Other Education and Community Budget,Supplies and Services,06/07/2015 00:00,743944,816,REVENUE,Top Class Tutors,EDUCATION EXPENSES
Peterborough,http://opendatacommunities.org/id/unitary-authority/peterborough,Peterborough City Council,More than one Service Area Category,More than one Service Division,Supplies and Services,06/07/2015 00:00,743958,533.29,REVENUE,O2 (UK) Ltd,MOBILE TELEPHONES
Peterborough,http://opendatacommunities.org/id/unitary-authority/peterborough,Peterborough City Council,Children's & Education Services - Children's Social Care,Children Looked After,Employees,06/07/2015 00:00,743993,1272,REVENUE,The K A Wing Group Ltd,BUILDING MAINTENANCE
Peterborough,http://opendatacommunities.org/id/unitary-authority/peterborough,Peterborough City Council,Children's & Education Services - Children's Social Care,Other Children's & Families Services,Employees,06/07/2015 00:00,744006,1056,REVENUE,Eden Brown Ltd,EXTERNAL TEMPORARY STAFF
Peterborough,http://opendatacommunities.org/id/unitary-authority/peterborough,Peterborough City Council,Children's & Education Services - Children's Social Care,Other Children's & Families Services,Employees,06/07/2015 00:00,744008,1649.04,REVENUE,Eden Brown Ltd,EXTERNAL TEMPORARY STAFF
Peterborough,http://opendatacommunities.org/id/unitary-authority/peterborough,Peterborough City Council,Children's & Education Services - Children's Social Care,Other Children's & Families Services,Employees,06/07/2015 00:00,744010,1888.38,REVENUE,Eden Brown Ltd,EXTERNAL TEMPORARY STAFF
Peterborough,http://opendatacommunities.org/id/unitary-authority/peterborough,Peterborough City Council,Children's & Education Services - Children's Social Care,Other Children's & Families Services,Employees,06/07/2015 00:00,744014,1753.38,REVENUE,Eden Brown Ltd,EXTERNAL TEMPORARY STAFF
Peterborough,http://opendatacommunities.org/id/unitary-authority/peterborough,Peterborough City Council,Children's & Education Services - Education,Services to Young People,Supplies and Services,06/07/2015 00:00,744016,10620,REVENUE,C J Camps,PROGRAMMES
Peterborough,http://opendatacommunities.org/id/unitary-authority/peterborough,Peterborough City Council,Environmental and Regulatory Services,Regulatory services,Employees,06/07/2015 00:00,744028,1258.26,REVENUE,The Synergy Group,EXTERNAL TEMPORARY STAFF
Peterborough,http://opendatacommunities.org/id/unitary-authority/peterborough,Peterborough City Council,Children's & Education Services - Children's Social Care,Children Looked After,Employees,06/07/2015 00:00,744031,974.4,REVENUE,Wrixon Care Services,EXTERNAL TEMPORARY STAFF
Peterborough,http://opendatacommunities.org/id/unitary-authority/peterborough,Peterborough City Council,Children's & Education Services - Children's Social Care,Children Looked After,Supplies and Services - Transfer Payments,06/07/2015 00:00,744040,15000,REVENUE,Barford Children's Services,BOARDING OUT ALLOWANCES
Peterborough,http://opendatacommunities.org/id/unitary-authority/peterborough,Peterborough City Council,Cultural and Related Services,Recreation & Sport,Supplies and Services,06/07/2015 00:00,744055,720,REVENUE,RMIS Ltd,ADMINISTRATION EXPENSES
Peterborough,http://opendatacommunities.org/id/unitary-authority/peterborough,Peterborough City Council,Planning Services,More than one Service Division,Supplies and Services,06/07/2015 00:00,744065,2520,REVENUE,The Wildlife Trust BCNP,CONSERVATION AND BIO DIVERSITY PROJECTS
Peterborough,http://opendatacommunities.org/id/unitary-authority/peterborough,Peterborough City Council,Planning Services,Environmental Initiatives,Supplies and Services,06/07/2015 00:00,744066,2839.5,REVENUE,Deloitte LLP,CONSULTANTS FEES
Peterborough,http://opendatacommunities.org/id/unitary-authority/peterborough,Peterborough City Council,Planning Services,Environmental Initiatives,Supplies and Services,06/07/2015 00:00,744067,14189.1,REVENUE,Deloitte LLP,CONSULTANTS FEES
Peterborough,http://opendatacommunities.org/id/unitary-authority/peterborough,Peterborough City Council,Planning Services,Environmental Initiatives,Supplies and Services,06/07/2015 00:00,744068,749.4,REVENUE,Deloitte LLP,CONSULTANTS FEES
Peterborough,http://opendatacommunities.org/id/unitary-authority/peterborough,Peterborough City Council,Planning Services,Environmental Initiatives,Supplies and Services,06/07/2015 00:00,744071,18593.38,REVENUE,Deloitte LLP,CONSULTANTS FEES
Peterborough,http://opendatacommunities.org/id/unitary-authority/peterborough,Peterborough City Council,Planning Services,Environmental Initiatives,Supplies and Services,06/07/2015 00:00,744072,12667.8,REVENUE,Deloitte LLP,CONSULTANTS FEES
Peterborough,http://opendatacommunities.org/id/unitary-authority/peterborough,Peterborough City Council,Planning Services,Environmental Initiatives,Supplies and Services,06/07/2015 00:00,744073,2997.6,REVENUE,Deloitte LLP,CONSULTANTS FEES
Peterborough,http://opendatacommunities.org/id/unitary-authority/peterborough,Peterborough City Council,Children's & Education Services - Education,Support Services & Management Costs,Employees,06/07/2015 00:00,744081,936,REVENUE,The ADCS Ltd,TRAINING
Peterborough,http://opendatacommunities.org/id/unitary-authority/peterborough,Peterborough City Council,Planning Services,Economic Development,Supplies and Services,06/07/2015 00:00,744084,684,REVENUE,Fastsigns Peterborough,ADVERTISING
Peterborough,http://opendatacommunities.org/id/unitary-authority/peterborough,Peterborough City Council,Planning Services,Environmental Initiatives,Supplies and Services,06/07/2015 00:00,744090,749.4,REVENUE,Deloitte LLP,CONSULTANTS FEES
Peterborough,http://opendatacommunities.org/id/unitary-authority/peterborough,Peterborough City Council,Planning Services,Environmental Initiatives,Supplies and Services,06/07/2015 00:00,744091,1873.5,REVENUE,Deloitte LLP,CONSULTANTS FEES
Peterborough,http://opendatacommunities.org/id/unitary-authority/peterborough,Peterborough City Council,Planning Services,Environmental Initiatives,Supplies and Services,06/07/2015 00:00,744092,4104,REVENUE,Deloitte LLP,CONSULTANTS FEES
Peterborough,http://opendatacommunities.org/id/unitary-authority/peterborough,Peterborough City Council,Housing Services,Homelessness,Supplies and Services,06/07/2015 00:00,744115,786.1,REVENUE,DA Rosalia Hotel,HOMELESSNESS BED AND BREAKFAST
Peterborough,http://opendatacommunities.org/id/unitary-authority/peterborough,Peterborough City Council,Support Services,Support Services,Employees,06/07/2015 00:00,744124,1228.5,REVENUE,Venn Group Ltd,EXTERNAL TEMPORARY STAFF
Peterborough,http://opendatacommunities.org/id/unitary-authority/peterborough,Peterborough City Council,Support Services,Support Services,Employees,06/07/2015 00:00,744125,1081.5,REVENUE,Venn Group Ltd,EXTERNAL TEMPORARY STAFF
Peterborough,http://opendatacommunities.org/id/unitary-authority/peterborough,Peterborough City Council,Support Services,Support Services,Employees,06/07/2015 00:00,744126,966,REVENUE,Venn Group Ltd,EXTERNAL TEMPORARY STAFF
Peterborough,http://opendatacommunities.org/id/unitary-authority/peterborough,Peterborough City Council,More than one Service Area Category,More than one Service Division,More than one Expenses Type,06/07/2015 00:00,744142,2100,REVENUE,Mouchel Ltd,COMPUTER SOFTWARE
Peterborough,http://opendatacommunities.org/id/unitary-authority/peterborough,Peterborough City Council,Support Services,Support Services,Employees,06/07/2015 00:00,744318,1074,REVENUE,PHF Training Ltd,TRAINING
Peterborough,http://opendatacommunities.org/id/unitary-authority/peterborough,Peterborough City Council,Central Services to the Public,Elections,Supplies and Services,06/07/2015 00:00,744340,4153.2,REVENUE,Peterborough Arena,COMPUTER HARDWARE
Peterborough,http://opendatacommunities.org/id/unitary-authority/peterborough,Peterborough City Council,Children's & Education Services - Education,Services to Young People,Supplies and Services,06/07/2015 00:00,744360,630,REVENUE,City College Peterborough,PROGRAMMES
Peterborough,http://opendatacommunities.org/id/unitary-authority/peterborough,Peterborough City Council,Support Services,Support Services,Employees,06/07/2015 00:00,744361,560,REVENUE,City College Peterborough,TRAINING
Peterborough,http://opendatacommunities.org/id/unitary-authority/peterborough,Peterborough City Council,Children's & Education Services - Children's Social Care,Children Looked After,Employees,06/07/2015 00:00,744377,543,REVENUE,Wrixon Care Services,EXTERNAL TEMPORARY STAFF
Peterborough,http://opendatacommunities.org/id/unitary-authority/peterborough,Peterborough City Council,Children's & Education Services - Children's Social Care,Children Looked After,Employees,06/07/2015 00:00,744378,1038,REVENUE,Wrixon Care Services,EXTERNAL TEMPORARY STAFF
Peterborough,http://opendatacommunities.org/id/unitary-authority/peterborough,Peterborough City Council,Support Services,Support Services,Employees,06/07/2015 00:00,744380,1989.9,REVENUE,The Synergy Group,EXTERNAL TEMPORARY STAFF
Peterborough,http://opendatacommunities.org/id/unitary-authority/peterborough,Peterborough City Council,Children's & Education Services - Children's Social Care,Children Looked After,Employees,06/07/2015 00:00,744381,525,REVENUE,Wrixon Care Services,EXTERNAL TEMPORARY STAFF
Peterborough,http://opendatacommunities.org/id/unitary-authority/peterborough,Peterborough City Council,Support Services,Support Services,Employees,06/07/2015 00:00,744382,1967.8,REVENUE,The Synergy Group,EXTERNAL TEMPORARY STAFF
Peterborough,http://opendatacommunities.org/id/unitary-authority/peterborough,Peterborough City Council,Support Services,Support Services,Employees,06/07/2015 00:00,744385,1835.14,REVENUE,The Synergy Group,EXTERNAL TEMPORARY STAFF
Peterborough,http://opendatacommunities.org/id/unitary-authority/peterborough,Peterborough City Council,Children's & Education Services - Children's Social Care,More than one Service Division,Supplies and Services - Transfer Payments,06/07/2015 00:00,744389,12903.6,REVENUE,Windows for Children,BOARDING OUT ALLOWANCES
Peterborough,http://opendatacommunities.org/id/unitary-authority/peterborough,Peterborough City Council,Children's & Education Services - Education,Services to Young People,Supplies and Services,06/07/2015 00:00,744392,560,REVENUE,Stagecoach in Peterborough,PROGRAMMES
Peterborough,http://opendatacommunities.org/id/unitary-authority/peterborough,Peterborough City Council,Children's & Education Services - Children's Social Care,Children Looked After,Supplies and Services,06/07/2015 00:00,744394,9166.67,REVENUE,St Andrew's Healthcare,HIRED SERVICES
Peterborough,http://opendatacommunities.org/id/unitary-authority/peterborough,Peterborough City Council,Highways and Transport Services,Traffic management & Road Safety,Supplies and Services,06/07/2015 00:00,744397,931.14,REVENUE,Imtech Traffic & Infra UK Ltd,CONTRACTORS
Peterborough,http://opendatacommunities.org/id/unitary-authority/peterborough,Peterborough City Council,Children's & Education Services - Children's Social Care,Other Children's & Families Services,Employees,06/07/2015 00:00,744404,2042.4,REVENUE,Eden Brown Ltd,EXTERNAL TEMPORARY STAFF
Peterborough,http://opendatacommunities.org/id/unitary-authority/peterborough,Peterborough City Council,More than one Service Area Category,More than one Service Division,Supplies and Services,06/07/2015 00:00,744405,1779.54,REVENUE,Whistl London Ltd,POSTAGE
Peterborough,http://opendatacommunities.org/id/unitary-authority/peterborough,Peterborough City Council,Children's & Education Services - Children's Social Care,Children Looked After,Supplies and Services,06/07/2015 00:00,744410,1776,REVENUE,Johnston Press Midlands Division,ADVERTISING
Peterborough,http://opendatacommunities.org/id/unitary-authority/peterborough,Peterborough City Council,Highways and Transport Services,Street Lighting,Supplies and Services,06/07/2015 00:00,744477,594,REVENUE,UK Power Networks (operations) Ltd,CONTRACTORS
Peterborough,http://opendatacommunities.org/id/unitary-authority/peterborough,Peterborough City Council,Highways and Transport Services,Street Lighting,Supplies and Services,06/07/2015 00:00,744479,594,REVENUE,UK Power Networks (operations) Ltd,CONTRACTORS
Peterborough,http://opendatacommunities.org/id/unitary-authority/peterborough,Peterborough City Council,Highways and Transport Services,Street Lighting,Supplies and Services,06/07/2015 00:00,744480,594,REVENUE,UK Power Networks (operations) Ltd,CONTRACTORS
Peterborough,http://opendatacommunities.org/id/unitary-authority/peterborough,Peterborough City Council,Capital,Capital,Capital Pending Update to BS,06/07/2015 00:00,744481,1518,CAPITAL,UK Power Networks (operations) Ltd,INFRASTRUCTURE
Peterborough,http://opendatacommunities.org/id/unitary-authority/peterborough,Peterborough City Council,Highways and Transport Services,Street Lighting,Supplies and Services,06/07/2015 00:00,744482,594,REVENUE,UK Power Networks (operations) Ltd,CONTRACTORS
Peterborough,http://opendatacommunities.org/id/unitary-authority/peterborough,Peterborough City Council,Highways and Transport Services,Parking Services,Supplies and Services,06/07/2015 00:00,744489,535.8,REVENUE,Parkeon Transit Ltd,FURNITURE AND EQUIP REPAIRS
Peterborough,http://opendatacommunities.org/id/unitary-authority/peterborough,Peterborough City Council,Highways and Transport Services,Parking Services,Supplies and Services,06/07/2015 00:00,744490,535.8,REVENUE,Parkeon Transit Ltd,FURNITURE AND EQUIP REPAIRS
Peterborough,http://opendatacommunities.org/id/unitary-authority/peterborough,Peterborough City Council,Support Services,Support Services,Supplies and Services,06/07/2015 00:00,744493,656.32,REVENUE,Serco Ltd,COMPUTER SOFTWARE
Peterborough,http://opendatacommunities.org/id/unitary-authority/peterborough,Peterborough City Council,Support Services,Support Services,Supplies and Services,06/07/2015 00:00,744497,656.32,REVENUE,Serco Ltd,COMPUTER SOFTWARE
Peterborough,http://opendatacommunities.org/id/unitary-authority/peterborough,Peterborough City Council,Support Services,Support Services,Supplies and Services,06/07/2015 00:00,744499,656.32,REVENUE,Serco Ltd,COMPUTER SOFTWARE
Peterborough,http://opendatacommunities.org/id/unitary-authority/peterborough,Peterborough City Council,Support Services,Support Services,Supplies and Services,06/07/2015 00:00,744501,717.48,REVENUE,Serco Ltd,COMPUTER SOFTWARE
Peterborough,http://opendatacommunities.org/id/unitary-authority/peterborough,Peterborough City Council,Support Services,Support Services,Supplies and Services,06/07/2015 00:00,744502,686.89,REVENUE,Serco Ltd,COMPUTER SOFTWARE
Peterborough,http://opendatacommunities.org/id/unitary-authority/peterborough,Peterborough City Council,Support Services,Support Services,Supplies and Services,06/07/2015 00:00,744503,656.32,REVENUE,Serco Ltd,COMPUTER SOFTWARE
Peterborough,http://opendatacommunities.org/id/unitary-authority/peterborough,Peterborough City Council,Capital,Capital,Capital Pending Update to BS,06/07/2015 00:00,744504,1353,CAPITAL,Serco Ltd,BUILDING AND SITE WORKS
Peterborough,http://opendatacommunities.org/id/unitary-authority/peterborough,Peterborough City Council,Support Services,Support Services,Supplies and Services,06/07/2015 00:00,744506,1312.63,REVENUE,Serco Ltd,COMPUTER SOFTWARE
Peterborough,http://opendatacommunities.org/id/unitary-authority/peterborough,Peterborough City Council,Capital,Capital,Capital Pending Update to BS,06/07/2015 00:00,744511,860.4,CAPITAL,UK Power Networks (operations) Ltd,ENVIRONMENTAL WORKS
Peterborough,http://opendatacommunities.org/id/unitary-authority/peterborough,Peterborough City Council,Capital,Capital,Capital Pending Update to BS,06/07/2015 00:00,744512,675.6,CAPITAL,UK Power Networks (operations) Ltd,INFRASTRUCTURE
Peterborough,http://opendatacommunities.org/id/unitary-authority/peterborough,Peterborough City Council,Environmental and Regulatory Services,Waste Collection,Supplies and Services,06/07/2015 00:00,744517,533.76,REVENUE,Glasdon UK Ltd,RECYCLING
Peterborough,http://opendatacommunities.org/id/unitary-authority/peterborough,Peterborough City Council,Capital,Capital,Capital Pending Update to BS,06/07/2015 00:00,744519,860.4,CAPITAL,UK Power Networks (operations) Ltd,INFRASTRUCTURE
Peterborough,http://opendatacommunities.org/id/unitary-authority/peterborough,Peterborough City Council,Children's & Education Services - Children's Social Care,Other Children's & Families Services,Employees,06/07/2015 00:00,744521,4560,REVENUE,Guardian News & Media Ltd,RECRUITMENT FEES
Peterborough,http://opendatacommunities.org/id/unitary-authority/peterborough,Peterborough City Council,Environmental and Regulatory Services,Regulatory services,Employees,06/07/2015 00:00,744531,684,REVENUE,Kenyon Block Consultants,EXTERNAL TEMPORARY STAFF
Peterborough,http://opendatacommunities.org/id/unitary-authority/peterborough,Peterborough City Council,Court Services,Coroner's Court Service,Supplies and Services,06/07/2015 00:00,744554,650,REVENUE,Imperial College Consultants Ltd,SCIENTIFIC TESTING
Peterborough,http://opendatacommunities.org/id/unitary-authority/peterborough,Peterborough City Council,Children's & Education Services - Children's Social Care,Other Children's & Families Services,Employees,06/07/2015 00:00,744609,4089.6,REVENUE,Reed Business Information Ltd,RECRUITMENT FEES
Peterborough,http://opendatacommunities.org/id/unitary-authority/peterborough,Peterborough City Council,Court Services,Coroner's Court Service,More than one Expenses Type,06/07/2015 00:00,744610,1992.2,REVENUE,Redacted Personal Data,POST MORTEM CHARGES
Peterborough,http://opendatacommunities.org/id/unitary-authority/peterborough,Peterborough City Council,Children's & Education Services - Education,Other Education and Community Budget,Employees,06/07/2015 00:00,744613,3567.3,REVENUE,Top Class Tutors,SUPPLY TEACHERS
Peterborough,http://opendatacommunities.org/id/unitary-authority/peterborough,Peterborough City Council,Adult Social Care,Social Care Activities,Third Party Payments,06/07/2015 00:00,744621,848,REVENUE,Redacted Personal Data,THIRD PARTY PAYMENTS - CONTRACT
Peterborough,http://opendatacommunities.org/id/unitary-authority/peterborough,Peterborough City Council,Capital,Capital,Capital Pending Update to BS,06/07/2015 00:00,744622,19672.5,CAPITAL,Tesam Distribution Ltd,BUILDING AND SITE WORKS
Peterborough,http://opendatacommunities.org/id/unitary-authority/peterborough,Peterborough City Council,Children's & Education Services - Education,Services to Young People,Supplies and Services,06/07/2015 00:00,744639,7070,REVENUE,City College Peterborough,PROGRAMMES
Peterborough,http://opendatacommunities.org/id/unitary-authority/peterborough,Peterborough City Council,Highways and Transport Services,Traffic management & Road Safety,Supplies and Services,06/07/2015 00:00,744644,1154.31,REVENUE,Johnston Press Midlands Division,ADVERTISING
Peterborough,http://opendatacommunities.org/id/unitary-authority/peterborough,Peterborough City Council,Adult Social Care,Split,Supplies and Services,06/07/2015 00:00,744699,48000,REVENUE,Essex Cares Ltd,CONSULTANTS FEES
Peterborough,http://opendatacommunities.org/id/unitary-authority/peterborough,Peterborough City Council,Planning Services,Economic Development,Third Party Payments,06/07/2015 00:00,744769,897.6,REVENUE,Enterprise Managed Services Limited,THIRD PARTY PAYMENTS - CONTRACT
Peterborough,http://opendatacommunities.org/id/unitary-authority/peterborough,Peterborough City Council,Deficit/(Surplus) on Trading Undertakings,Trading Account Surpluses & Deficits,Supplies and Services,06/07/2015 00:00,744862,13765.44,REVENUE,BW Aluminium Ltd,ITEMS FOR RESALE
Peterborough,http://opendatacommunities.org/id/unitary-authority/peterborough,Peterborough City Council,Children's & Education Services - Children's Social Care,Children Looked After,Premises,06/07/2015 00:00,745372,1157.5,REVENUE,Xtreme Clean,CLEANING
Peterborough,http://opendatacommunities.org/id/unitary-authority/peterborough,Peterborough City Council,Adult Social Care,Social Care Activities,Employees,06/07/2015 00:00,745405,2814,REVENUE,Caritas Recruitment,EXTERNAL TEMPORARY STAFF
Peterborough,http://opendatacommunities.org/id/unitary-authority/peterborough,Peterborough City Council,Capital,Capital,Capital Pending Update to BS,06/07/2015 00:00,745422,38364,CAPITAL,Ernest Doe & Sons Ltd,FURNITURE AND EQUIPMENT PURCHASE
Peterborough,http://opendatacommunities.org/id/unitary-authority/peterborough,Peterborough City Council,Highways and Transport Services,Public Transport,Supplies and Services,06/07/2015 00:00,745432,181530.5,REVENUE,Stagecoach in Peterborough,CONTRACTORS
Peterborough,http://opendatacommunities.org/id/unitary-authority/peterborough,Peterborough City Council,Adult Social Care,Older People,Supplies and Services,06/07/2015 00:00,745490,1152.08,REVENUE,BUPA Care Homes,RESIDENTIAL CARE
Peterborough,http://opendatacommunities.org/id/unitary-authority/peterborough,Peterborough City Council,Adult Social Care,Adult Learning Disabilities,Supplies and Services,06/07/2015 00:00,745533,6831.92,REVENUE,NEW BOUNDARIES COMMUNITY SERVICES LTD,RESIDENTIAL CARE
Peterborough,http://opendatacommunities.org/id/unitary-authority/peterborough,Peterborough City Council,Adult Social Care,Older People,Supplies and Services,06/07/2015 00:00,745667,548.18,REVENUE,COMFORCARE SENIOR SERVICES,HOME CARE
Peterborough,http://opendatacommunities.org/id/unitary-authority/peterborough,Peterborough City Council,Adult Social Care,Older People,Supplies and Services,06/07/2015 00:00,745668,750.73,REVENUE,COMFORCARE SENIOR SERVICES,HOME CARE
Peterborough,http://opendatacommunities.org/id/unitary-authority/peterborough,Peterborough City Council,Adult Social Care,Older People,Supplies and Services,06/07/2015 00:00,745670,655.82,REVENUE,COMFORCARE SENIOR SERVICES,HOME CARE
Peterborough,http://opendatacommunities.org/id/unitary-authority/peterborough,Peterborough City Council,Adult Social Care,Older People,Supplies and Services,06/07/2015 00:00,745671,801.1,REVENUE,COMFORCARE SENIOR SERVICES,HOME CARE
Peterborough,http://opendatacommunities.org/id/unitary-authority/peterborough,Peterborough City Council,Adult Social Care,Older People,Supplies and Services,06/07/2015 00:00,745672,1065.51,REVENUE,COMFORCARE SENIOR SERVICES,HOME CARE
Peterborough,http://opendatacommunities.org/id/unitary-authority/peterborough,Peterborough City Council,Adult Social Care,Older People,Supplies and Services,06/07/2015 00:00,745673,792.43,REVENUE,COMFORCARE SENIOR SERVICES,HOME CARE
Peterborough,http://opendatacommunities.org/id/unitary-authority/peterborough,Peterborough City Council,Adult Social Care,Older People,Supplies and Services,06/07/2015 00:00,745674,1849.91,REVENUE,COMFORCARE SENIOR SERVICES,HOME CARE
Peterborough,http://opendatacommunities.org/id/unitary-authority/peterborough,Peterborough City Council,Adult Social Care,Older People,Supplies and Services,06/07/2015 00:00,745675,558.75,REVENUE,COMFORCARE SENIOR SERVICES,HOME CARE
Peterborough,http://opendatacommunities.org/id/unitary-authority/peterborough,Peterborough City Council,Adult Social Care,Older People,Supplies and Services,06/07/2015 00:00,745679,965.2,REVENUE,COMFORCARE SENIOR SERVICES,HOME CARE
Peterborough,http://opendatacommunities.org/id/unitary-authority/peterborough,Peterborough City Council,Adult Social Care,Older People,Supplies and Services,06/07/2015 00:00,745680,552,REVENUE,COMFORCARE SENIOR SERVICES,HOME CARE
Peterborough,http://opendatacommunities.org/id/unitary-authority/peterborough,Peterborough City Council,Adult Social Care,Older People,Supplies and Services,06/07/2015 00:00,745681,623.06,REVENUE,COMFORCARE SENIOR SERVICES,HOME CARE
Peterborough,http://opendatacommunities.org/id/unitary-authority/peterborough,Peterborough City Council,Adult Social Care,Older People,Supplies and Services,06/07/2015 00:00,745682,549.8,REVENUE,COMFORCARE SENIOR SERVICES,HOME CARE
Peterborough,http://opendatacommunities.org/id/unitary-authority/peterborough,Peterborough City Council,Adult Social Care,Older People,Supplies and Services,06/07/2015 00:00,745684,1207.36,REVENUE,COMFORCARE SENIOR SERVICES,HOME CARE
Peterborough,http://opendatacommunities.org/id/unitary-authority/peterborough,Peterborough City Council,Adult Social Care,Older People,Supplies and Services,06/07/2015 00:00,745687,1647.1,REVENUE,COMFORCARE SENIOR SERVICES,HOME CARE
Peterborough,http://opendatacommunities.org/id/unitary-authority/peterborough,Peterborough City Council,Adult Social Care,Older People,Supplies and Services,06/07/2015 00:00,745689,830.04,REVENUE,COMFORCARE SENIOR SERVICES,HOME CARE
Peterborough,http://opendatacommunities.org/id/unitary-authority/peterborough,Peterborough City Council,Adult Social Care,Older People,Supplies and Services,06/07/2015 00:00,745690,1030.22,REVENUE,COMFORCARE SENIOR SERVICES,HOME CARE
Peterborough,http://opendatacommunities.org/id/unitary-authority/peterborough,Peterborough City Council,Adult Social Care,Older People,Supplies and Services,06/07/2015 00:00,745691,589.83,REVENUE,COMFORCARE SENIOR SERVICES,HOME CARE
Peterborough,http://opendatacommunities.org/id/unitary-authority/peterborough,Peterborough City Council,Adult Social Care,Older People,Supplies and Services,06/07/2015 00:00,745692,1717.86,REVENUE,COMFORCARE SENIOR SERVICES,HOME CARE
Peterborough,http://opendatacommunities.org/id/unitary-authority/peterborough,Peterborough City Council,Adult Social Care,Older People,Supplies and Services,06/07/2015 00:00,745693,2545.19,REVENUE,COMFORCARE SENIOR SERVICES,HOME CARE
Peterborough,http://opendatacommunities.org/id/unitary-authority/peterborough,Peterborough City Council,Adult Social Care,Older People,Supplies and Services,06/07/2015 00:00,745696,851.63,REVENUE,COMFORCARE SENIOR SERVICES,HOME CARE
Peterborough,http://opendatacommunities.org/id/unitary-authority/peterborough,Peterborough City Council,Adult Social Care,Older People,Supplies and Services,06/07/2015 00:00,745697,849.83,REVENUE,COMFORCARE SENIOR SERVICES,HOME CARE
Peterborough,http://opendatacommunities.org/id/unitary-authority/peterborough,Peterborough City Council,Adult Social Care,Older People,Supplies and Services,06/07/2015 00:00,745703,751.82,REVENUE,COMFORCARE SENIOR SERVICES,HOME CARE
Peterborough,http://opendatacommunities.org/id/unitary-authority/peterborough,Peterborough City Council,Adult Social Care,Older People,Supplies and Services,06/07/2015 00:00,745704,905.13,REVENUE,COMFORCARE SENIOR SERVICES,HOME CARE
Peterborough,http://opendatacommunities.org/id/unitary-authority/peterborough,Peterborough City Council,Adult Social Care,Older People,Supplies and Services,06/07/2015 00:00,745744,864.07,REVENUE,Housing 21,HOME CARE
Peterborough,http://opendatacommunities.org/id/unitary-authority/peterborough,Peterborough City Council,Adult Social Care,Older People,Supplies and Services,06/07/2015 00:00,745745,531.3,REVENUE,Housing 21,HOME CARE
Peterborough,http://opendatacommunities.org/id/unitary-authority/peterborough,Peterborough City Council,Adult Social Care,Older People,Supplies and Services,06/07/2015 00:00,745746,745.8,REVENUE,Housing 21,HOME CARE
Peterborough,http://opendatacommunities.org/id/unitary-authority/peterborough,Peterborough City Council,Adult Social Care,Older People,Supplies and Services,06/07/2015 00:00,745753,836.48,REVENUE,Housing 21,HOME CARE
Peterborough,http://opendatacommunities.org/id/unitary-authority/peterborough,Peterborough City Council,Adult Social Care,Older People,Supplies and Services,06/07/2015 00:00,745754,902.75,REVENUE,Housing 21,HOME CARE
Peterborough,http://opendatacommunities.org/id/unitary-authority/peterborough,Peterborough City Council,Adult Social Care,Older People,Supplies and Services,06/07/2015 00:00,745761,602.32,REVENUE,Housing 21,HOME CARE
Peterborough,http://opendatacommunities.org/id/unitary-authority/peterborough,Peterborough City Council,Adult Social Care,Older People,Supplies and Services,06/07/2015 00:00,745762,650.36,REVENUE,Housing 21,HOME CARE
Peterborough,http://opendatacommunities.org/id/unitary-authority/peterborough,Peterborough City Council,Adult Social Care,Older People,Supplies and Services,06/07/2015 00:00,745765,648.38,REVENUE,Housing 21,HOME CARE
Peterborough,http://opendatacommunities.org/id/unitary-authority/peterborough,Peterborough City Council,Adult Social Care,Older People,Supplies and Services,06/07/2015 00:00,745766,544.37,REVENUE,Housing 21,HOME CARE
Peterborough,http://opendatacommunities.org/id/unitary-authority/peterborough,Peterborough City Council,Adult Social Care,Adult Mental Health,Supplies and Services,06/07/2015 00:00,745768,778.8,REVENUE,Housing 21,HOME CARE
Peterborough,http://opendatacommunities.org/id/unitary-authority/peterborough,Peterborough City Council,Adult Social Care,Older People,Supplies and Services,06/07/2015 00:00,745769,1516.15,REVENUE,Housing 21,HOME CARE
Peterborough,http://opendatacommunities.org/id/unitary-authority/peterborough,Peterborough City Council,Adult Social Care,Older People,Supplies and Services,06/07/2015 00:00,745773,1085.7,REVENUE,Housing 21,HOME CARE
Peterborough,http://opendatacommunities.org/id/unitary-authority/peterborough,Peterborough City Council,Adult Social Care,Older People,Supplies and Services,06/07/2015 00:00,745776,617.63,REVENUE,Housing 21,HOME CARE
Peterborough,http://opendatacommunities.org/id/unitary-authority/peterborough,Peterborough City Council,Adult Social Care,Older People,Supplies and Services,06/07/2015 00:00,745777,900.11,REVENUE,Housing 21,HOME CARE
Peterborough,http://opendatacommunities.org/id/unitary-authority/peterborough,Peterborough City Council,Adult Social Care,Older People,Supplies and Services,06/07/2015 00:00,745779,1477.48,REVENUE,Housing 21,HOME CARE
Peterborough,http://opendatacommunities.org/id/unitary-authority/peterborough,Peterborough City Council,Adult Social Care,Older People,Supplies and Services,06/07/2015 00:00,745781,871.2,REVENUE,Housing 21,HOME CARE
Peterborough,http://opendatacommunities.org/id/unitary-authority/peterborough,Peterborough City Council,Adult Social Care,Older People,Supplies and Services,06/07/2015 00:00,745789,526.94,REVENUE,Housing 21,HOME CARE
Peterborough,http://opendatacommunities.org/id/unitary-authority/peterborough,Peterborough City Council,Adult Social Care,Older People,Supplies and Services,06/07/2015 00:00,745796,554.4,REVENUE,Augusta Care Ltd,HOME CARE
Peterborough,http://opendatacommunities.org/id/unitary-authority/peterborough,Peterborough City Council,Adult Social Care,Older People,Supplies and Services,06/07/2015 00:00,745797,1491.6,REVENUE,Augusta Care Ltd,HOME CARE
Peterborough,http://opendatacommunities.org/id/unitary-authority/peterborough,Peterborough City Council,Adult Social Care,Adult Learning Disabilities,Supplies and Services,06/07/2015 00:00,745799,5861.57,REVENUE,Augusta Care Ltd,HOME CARE
Peterborough,http://opendatacommunities.org/id/unitary-authority/peterborough,Peterborough City Council,Adult Social Care,Adult Learning Disabilities,Supplies and Services,06/07/2015 00:00,745800,1900.8,REVENUE,Augusta Care Ltd,HOME CARE
Peterborough,http://opendatacommunities.org/id/unitary-authority/peterborough,Peterborough City Council,Adult Social Care,Older People,Supplies and Services,06/07/2015 00:00,745801,2661.12,REVENUE,Augusta Care Ltd,HOME CARE
Peterborough,http://opendatacommunities.org/id/unitary-authority/peterborough,Peterborough City Council,Adult Social Care,Older People,Supplies and Services,06/07/2015 00:00,745802,879.12,REVENUE,Augusta Care Ltd,HOME CARE
Peterborough,http://opendatacommunities.org/id/unitary-authority/peterborough,Peterborough City Council,Adult Social Care,Older People,Supplies and Services,06/07/2015 00:00,745803,1455.12,REVENUE,Augusta Care Ltd,HOME CARE
Peterborough,http://opendatacommunities.org/id/unitary-authority/peterborough,Peterborough City Council,Adult Social Care,Older People,Supplies and Services,06/07/2015 00:00,745804,1560.72,REVENUE,Augusta Care Ltd,HOME CARE
Peterborough,http://opendatacommunities.org/id/unitary-authority/peterborough,Peterborough City Council,Adult Social Care,Older People,Supplies and Services,06/07/2015 00:00,745805,4852.8,REVENUE,Augusta Care Ltd,HOME CARE
Peterborough,http://opendatacommunities.org/id/unitary-authority/peterborough,Peterborough City Council,Adult Social Care,Older People,Supplies and Services,06/07/2015 00:00,745806,8452.8,REVENUE,Augusta Care Ltd,HOME CARE
Peterborough,http://opendatacommunities.org/id/unitary-authority/peterborough,Peterborough City Council,Adult Social Care,Older People,Supplies and Services,06/07/2015 00:00,745807,4852.8,REVENUE,Augusta Care Ltd,HOME CARE
Peterborough,http://opendatacommunities.org/id/unitary-authority/peterborough,Peterborough City Council,Adult Social Care,Adult Learning Disabilities,Supplies and Services,06/07/2015 00:00,745808,528,REVENUE,Augusta Care Ltd,HOME CARE
Peterborough,http://opendatacommunities.org/id/unitary-authority/peterborough,Peterborough City Council,Adult Social Care,Adult Learning Disabilities,Supplies and Services,06/07/2015 00:00,745811,10348.8,REVENUE,Augusta Care Ltd,HOME CARE
Peterborough,http://opendatacommunities.org/id/unitary-authority/peterborough,Peterborough City Council,Adult Social Care,Adult Learning Disabilities,Supplies and Services,06/07/2015 00:00,745812,6854.4,REVENUE,Augusta Care Ltd,HOME CARE
Peterborough,http://opendatacommunities.org/id/unitary-authority/peterborough,Peterborough City Council,Adult Social Care,Adult Learning Disabilities,Supplies and Services,06/07/2015 00:00,745815,6675.52,REVENUE,Augusta Care Ltd,HOME CARE
Peterborough,http://opendatacommunities.org/id/unitary-authority/peterborough,Peterborough City Council,Adult Social Care,Older People,Supplies and Services,06/07/2015 00:00,745817,1808.4,REVENUE,Augusta Care Ltd,HOME CARE
Peterborough,http://opendatacommunities.org/id/unitary-authority/peterborough,Peterborough City Council,Adult Social Care,Adult Learning Disabilities,Supplies and Services,06/07/2015 00:00,745818,3075.96,REVENUE,Augusta Care Ltd,HOME CARE
Peterborough,http://opendatacommunities.org/id/unitary-authority/peterborough,Peterborough City Council,Adult Social Care,Older People,Supplies and Services,06/07/2015 00:00,745819,13591.2,REVENUE,Augusta Care Ltd,HOME CARE
Peterborough,http://opendatacommunities.org/id/unitary-authority/peterborough,Peterborough City Council,Adult Social Care,Adult Learning Disabilities,Supplies and Services,06/07/2015 00:00,745820,1703.2,REVENUE,Augusta Care Ltd,HOME CARE
Peterborough,http://opendatacommunities.org/id/unitary-authority/peterborough,Peterborough City Council,Adult Social Care,Adult Learning Disabilities,Supplies and Services,06/07/2015 00:00,745821,792,REVENUE,Augusta Care Ltd,HOME CARE
Peterborough,http://opendatacommunities.org/id/unitary-authority/peterborough,Peterborough City Council,Adult Social Care,Adult Learning Disabilities,Supplies and Services,06/07/2015 00:00,745822,1732.8,REVENUE,Augusta Care Ltd,HOME CARE
Peterborough,http://opendatacommunities.org/id/unitary-authority/peterborough,Peterborough City Council,Adult Social Care,Older People,Supplies and Services,06/07/2015 00:00,745835,1284.64,REVENUE,Bondcare,RESIDENTIAL CARE
Peterborough,http://opendatacommunities.org/id/unitary-authority/peterborough,Peterborough City Council,Adult Social Care,Older People,Supplies and Services,06/07/2015 00:00,745853,827.36,REVENUE,Westerleigh Nursing Home,RESIDENTIAL CARE
Peterborough,http://opendatacommunities.org/id/unitary-authority/peterborough,Peterborough City Council,Adult Social Care,Older People,Supplies and Services,06/07/2015 00:00,745857,1282.6,REVENUE,St Georges Glatton Hall,RESIDENTIAL CARE
Peterborough,http://opendatacommunities.org/id/unitary-authority/peterborough,Peterborough City Council,Adult Social Care,Social Care Activities,Employees,06/07/2015 00:00,745877,1578.84,REVENUE,Caritas Recruitment,EXTERNAL TEMPORARY STAFF
Peterborough,http://opendatacommunities.org/id/unitary-authority/peterborough,Peterborough City Council,Adult Social Care,Social Care Activities,Employees,06/07/2015 00:00,745882,777,REVENUE,Caritas Recruitment,EXTERNAL TEMPORARY STAFF
Peterborough,http://opendatacommunities.org/id/unitary-authority/peterborough,Peterborough City Council,Adult Social Care,Learning Disability Support - Adults (18-64),Employees,06/07/2015 00:00,745921,1236.24,REVENUE,Pulse,EXTERNAL TEMPORARY STAFF
Peterborough,http://opendatacommunities.org/id/unitary-authority/peterborough,Peterborough City Council,Adult Social Care,Learning Disability Support - Adults (18-64),Employees,06/07/2015 00:00,745922,1545.3,REVENUE,Pulse,EXTERNAL TEMPORARY STAFF
Peterborough,http://opendatacommunities.org/id/unitary-authority/peterborough,Peterborough City Council,Capital,Capital,Capital Pending Update to BS,06/07/2015 00:00,745968,590,CAPITAL,Smooth Removals (Peterborough) Ltd,BUILDING AND SITE WORKS
Peterborough,http://opendatacommunities.org/id/unitary-authority/peterborough,Peterborough City Council,More than one Service Area Category,More than one Service Division,Balance Sheet,06/07/2015 00:00,746018,544.49,Balance Sheet,Rossendales C B Ltd,DEBT COLLECTION SERVICES
Peterborough,http://opendatacommunities.org/id/unitary-authority/peterborough,Peterborough City Council,Adult Social Care,Split,Third Party Payments,06/07/2015 00:00,746044,4765.5,REVENUE,ABOUT ME CARE AND SUPPORT LTD,THIRD PARTY PAYMENTS - CONTRACT
Peterborough,http://opendatacommunities.org/id/unitary-authority/peterborough,Peterborough City Council,Adult Social Care,Adult Learning Disabilities,Supplies and Services,06/07/2015 00:00,746061,14723.92,REVENUE,WESTWARD CARE HOMES LTD (Westward Healthcare),RESIDENTIAL CARE
Peterborough,http://opendatacommunities.org/id/unitary-authority/peterborough,Peterborough City Council,Children's & Education Services - Children's Social Care,Family Support Services,Supplies and Services,06/07/2015 00:00,746079,824.98,REVENUE,Sahara Community Care Services,PURCHASED SOCIAL CARE SERVICES
Peterborough,http://opendatacommunities.org/id/unitary-authority/peterborough,Peterborough City Council,Children's & Education Services - Children's Social Care,Family Support Services,Supplies and Services,06/07/2015 00:00,746082,815.05,REVENUE,Sahara Community Care Services,PURCHASED SOCIAL CARE SERVICES
Peterborough,http://opendatacommunities.org/id/unitary-authority/peterborough,Peterborough City Council,Highways and Transport Services,"Transport planning, policy and strategy",Supplies and Services,06/07/2015 00:00,746098,1000,REVENUE,R J Mason Blacksmith & Farrier,HIRED SERVICES
Peterborough,http://opendatacommunities.org/id/unitary-authority/peterborough,Peterborough City Council,Deficit/(Surplus) on Trading Undertakings,Trading Account Surpluses & Deficits,Supplies and Services,06/07/2015 00:00,746104,658.63,REVENUE,Safetykleen UK Ltd,CLEANING
Peterborough,http://opendatacommunities.org/id/unitary-authority/peterborough,Peterborough City Council,Adult Social Care,Older People,Supplies and Services,06/07/2015 00:00,746125,1303,REVENUE,BUPA Care Homes,RESIDENTIAL CARE
Peterborough,http://opendatacommunities.org/id/unitary-authority/peterborough,Peterborough City Council,Adult Social Care,Older People,Supplies and Services,06/07/2015 00:00,746127,1564.36,REVENUE,BUPA Care Homes,RESIDENTIAL CARE
Peterborough,http://opendatacommunities.org/id/unitary-authority/peterborough,Peterborough City Council,Adult Social Care,Older People,Supplies and Services,06/07/2015 00:00,746129,1165.68,REVENUE,BUPA Care Homes,RESIDENTIAL CARE
Peterborough,http://opendatacommunities.org/id/unitary-authority/peterborough,Peterborough City Council,Adult Social Care,Older People,Supplies and Services,06/07/2015 00:00,746130,1590.2,REVENUE,BUPA Care Homes,RESIDENTIAL CARE
Peterborough,http://opendatacommunities.org/id/unitary-authority/peterborough,Peterborough City Council,Adult Social Care,Older People,Supplies and Services,06/07/2015 00:00,746132,1057.04,REVENUE,BUPA Care Homes,RESIDENTIAL CARE
Peterborough,http://opendatacommunities.org/id/unitary-authority/peterborough,Peterborough City Council,Adult Social Care,Older People,Supplies and Services,06/07/2015 00:00,746133,1326.08,REVENUE,BUPA Care Homes,RESIDENTIAL CARE
Peterborough,http://opendatacommunities.org/id/unitary-authority/peterborough,Peterborough City Council,Adult Social Care,Older People,Supplies and Services,06/07/2015 00:00,746135,963.44,REVENUE,BUPA Care Homes,RESIDENTIAL CARE
Peterborough,http://opendatacommunities.org/id/unitary-authority/peterborough,Peterborough City Council,Children's & Education Services - Education,Other Education and Community Budget,Supplies and Services,06/07/2015 00:00,746136,9647.92,REVENUE,Shropshire County Council,EDUCATION EXPENSES
Peterborough,http://opendatacommunities.org/id/unitary-authority/peterborough,Peterborough City Council,Adult Social Care,Older People,Supplies and Services,06/07/2015 00:00,746137,3158.2,REVENUE,BUPA Care Homes,RESIDENTIAL CARE
Peterborough,http://opendatacommunities.org/id/unitary-authority/peterborough,Peterborough City Council,Adult Social Care,Older People,Supplies and Services,06/07/2015 00:00,746138,1267,REVENUE,BUPA Care Homes,RESIDENTIAL CARE
Peterborough,http://opendatacommunities.org/id/unitary-authority/peterborough,Peterborough City Council,Adult Social Care,Older People,Supplies and Services,06/07/2015 00:00,746148,1309.97,REVENUE,BUPA Care Homes,RESIDENTIAL CARE
Peterborough,http://opendatacommunities.org/id/unitary-authority/peterborough,Peterborough City Council,Adult Social Care,Older People,Supplies and Services,06/07/2015 00:00,746149,1595.2,REVENUE,BUPA Care Homes,RESIDENTIAL CARE
Peterborough,http://opendatacommunities.org/id/unitary-authority/peterborough,Peterborough City Council,Adult Social Care,Older People,Supplies and Services,06/07/2015 00:00,746150,1326.08,REVENUE,BUPA Care Homes,RESIDENTIAL CARE
Peterborough,http://opendatacommunities.org/id/unitary-authority/peterborough,Peterborough City Council,Adult Social Care,Older People,Supplies and Services,06/07/2015 00:00,746151,859.84,REVENUE,BUPA Care Homes,RESIDENTIAL CARE
Peterborough,http://opendatacommunities.org/id/unitary-authority/peterborough,Peterborough City Council,Adult Social Care,Older People,Supplies and Services,06/07/2015 00:00,746152,1440.32,REVENUE,BUPA Care Homes,RESIDENTIAL CARE
Peterborough,http://opendatacommunities.org/id/unitary-authority/peterborough,Peterborough City Council,Adult Social Care,Older People,Supplies and Services,06/07/2015 00:00,746153,1623.72,REVENUE,BUPA Care Homes,RESIDENTIAL CARE
Peterborough,http://opendatacommunities.org/id/unitary-authority/peterborough,Peterborough City Council,Adult Social Care,Older People,Supplies and Services,06/07/2015 00:00,746154,1326.08,REVENUE,BUPA Care Homes,RESIDENTIAL CARE
Peterborough,http://opendatacommunities.org/id/unitary-authority/peterborough,Peterborough City Council,Adult Social Care,Older People,Supplies and Services,06/07/2015 00:00,746155,1454.76,REVENUE,BUPA Care Homes,RESIDENTIAL CARE
Peterborough,http://opendatacommunities.org/id/unitary-authority/peterborough,Peterborough City Council,Adult Social Care,Older People,Supplies and Services,06/07/2015 00:00,746156,977,REVENUE,BUPA Care Homes,RESIDENTIAL CARE
Peterborough,http://opendatacommunities.org/id/unitary-authority/peterborough,Peterborough City Council,Adult Social Care,Older People,Supplies and Services,06/07/2015 00:00,746161,1616.56,REVENUE,BUPA Care Homes,RESIDENTIAL CARE
Peterborough,http://opendatacommunities.org/id/unitary-authority/peterborough,Peterborough City Council,Adult Social Care,Older People,Supplies and Services,06/07/2015 00:00,746162,1485.68,REVENUE,BUPA Care Homes,RESIDENTIAL CARE
Peterborough,http://opendatacommunities.org/id/unitary-authority/peterborough,Peterborough City Council,Adult Social Care,Older People,Supplies and Services,06/07/2015 00:00,746163,2940,REVENUE,BUPA Care Homes,RESIDENTIAL CARE
Peterborough,http://opendatacommunities.org/id/unitary-authority/peterborough,Peterborough City Council,Adult Social Care,Older People,Supplies and Services,06/07/2015 00:00,746164,1645.08,REVENUE,BUPA Care Homes,RESIDENTIAL CARE
Peterborough,http://opendatacommunities.org/id/unitary-authority/peterborough,Peterborough City Council,Adult Social Care,Older People,Supplies and Services,06/07/2015 00:00,746192,1238.72,REVENUE,BUPA Care Homes,RESIDENTIAL CARE
Peterborough,http://opendatacommunities.org/id/unitary-authority/peterborough,Peterborough City Council,Adult Social Care,Older People,Supplies and Services,06/07/2015 00:00,746194,1488.84,REVENUE,BUPA Care Homes,RESIDENTIAL CARE
Peterborough,http://opendatacommunities.org/id/unitary-authority/peterborough,Peterborough City Council,Adult Social Care,Older People,Supplies and Services,06/07/2015 00:00,746195,1326.08,REVENUE,BUPA Care Homes,RESIDENTIAL CARE
Peterborough,http://opendatacommunities.org/id/unitary-authority/peterborough,Peterborough City Council,Adult Social Care,Older People,Supplies and Services,06/07/2015 00:00,746196,1378.48,REVENUE,BUPA Care Homes,RESIDENTIAL CARE
Peterborough,http://opendatacommunities.org/id/unitary-authority/peterborough,Peterborough City Council,Adult Social Care,Older People,Supplies and Services,06/07/2015 00:00,746197,1553.24,REVENUE,BUPA Care Homes,RESIDENTIAL CARE
Peterborough,http://opendatacommunities.org/id/unitary-authority/peterborough,Peterborough City Council,Adult Social Care,Older People,Supplies and Services,06/07/2015 00:00,746199,1190.32,REVENUE,BUPA Care Homes,RESIDENTIAL CARE
Peterborough,http://opendatacommunities.org/id/unitary-authority/peterborough,Peterborough City Council,Adult Social Care,Older People,Supplies and Services,06/07/2015 00:00,746200,1623.72,REVENUE,BUPA Care Homes,RESIDENTIAL CARE
Peterborough,http://opendatacommunities.org/id/unitary-authority/peterborough,Peterborough City Council,Adult Social Care,Older People,Supplies and Services,06/07/2015 00:00,746202,1629.6,REVENUE,BUPA Care Homes,RESIDENTIAL CARE
Peterborough,http://opendatacommunities.org/id/unitary-authority/peterborough,Peterborough City Council,Adult Social Care,Older People,Supplies and Services,06/07/2015 00:00,746203,788.4,REVENUE,BUPA Care Homes,RESIDENTIAL CARE
Peterborough,http://opendatacommunities.org/id/unitary-authority/peterborough,Peterborough City Council,Adult Social Care,Older People,Supplies and Services,06/07/2015 00:00,746204,1821.88,REVENUE,BUPA Care Homes,RESIDENTIAL CARE
Peterborough,http://opendatacommunities.org/id/unitary-authority/peterborough,Peterborough City Council,Adult Social Care,Older People,Supplies and Services,06/07/2015 00:00,746207,1001.92,REVENUE,BUPA Care Homes,RESIDENTIAL CARE
Peterborough,http://opendatacommunities.org/id/unitary-authority/peterborough,Peterborough City Council,Adult Social Care,Older People,Supplies and Services,06/07/2015 00:00,746208,944.92,REVENUE,BUPA Care Homes,RESIDENTIAL CARE
Peterborough,http://opendatacommunities.org/id/unitary-authority/peterborough,Peterborough City Council,Adult Social Care,Older People,Supplies and Services,06/07/2015 00:00,746209,1545.56,REVENUE,BUPA Care Homes,RESIDENTIAL CARE
Peterborough,http://opendatacommunities.org/id/unitary-authority/peterborough,Peterborough City Council,Adult Social Care,Older People,Supplies and Services,06/07/2015 00:00,746210,2128.92,REVENUE,BUPA Care Homes,RESIDENTIAL CARE
Peterborough,http://opendatacommunities.org/id/unitary-authority/peterborough,Peterborough City Council,Adult Social Care,Older People,Supplies and Services,06/07/2015 00:00,746212,936.44,REVENUE,BUPA Care Homes,RESIDENTIAL CARE
Peterborough,http://opendatacommunities.org/id/unitary-authority/peterborough,Peterborough City Council,Adult Social Care,Older People,Supplies and Services,06/07/2015 00:00,746215,1336.4,REVENUE,BUPA Care Homes,RESIDENTIAL CARE
Peterborough,http://opendatacommunities.org/id/unitary-authority/peterborough,Peterborough City Council,Adult Social Care,Older People,Supplies and Services,06/07/2015 00:00,746216,2128.92,REVENUE,BUPA Care Homes,RESIDENTIAL CARE
Peterborough,http://opendatacommunities.org/id/unitary-authority/peterborough,Peterborough City Council,Adult Social Care,Older People,Supplies and Services,06/07/2015 00:00,746217,1633.12,REVENUE,BUPA Care Homes,RESIDENTIAL CARE
Peterborough,http://opendatacommunities.org/id/unitary-authority/peterborough,Peterborough City Council,Adult Social Care,Older People,Supplies and Services,06/07/2015 00:00,746218,1180.52,REVENUE,BUPA Care Homes,RESIDENTIAL CARE
Peterborough,http://opendatacommunities.org/id/unitary-authority/peterborough,Peterborough City Council,Children's & Education Services - Children's Social Care,Other Children's & Families Services,Employees,06/07/2015 00:00,746253,1262.93,REVENUE,Service Care Solutions Ltd,EXTERNAL TEMPORARY STAFF
Peterborough,http://opendatacommunities.org/id/unitary-authority/peterborough,Peterborough City Council,Adult Social Care,Older People,Supplies and Services,06/07/2015 00:00,746262,1548.73,REVENUE,BUPA Care Homes,RESIDENTIAL CARE
Peterborough,http://opendatacommunities.org/id/unitary-authority/peterborough,Peterborough City Council,Adult Social Care,Social Care Activities,Employees,06/07/2015 00:00,746286,1554,REVENUE,Caritas Recruitment,EXTERNAL TEMPORARY STAFF
Peterborough,http://opendatacommunities.org/id/unitary-authority/peterborough,Peterborough City Council,Adult Social Care,Social Care Activities,Employees,06/07/2015 00:00,746290,1554,REVENUE,Caritas Recruitment,EXTERNAL TEMPORARY STAFF
Peterborough,http://opendatacommunities.org/id/unitary-authority/peterborough,Peterborough City Council,Children's & Education Services - Children's Social Care,Other Children's & Families Services,Employees,06/07/2015 00:00,746292,1112.28,REVENUE,Service Care Solutions Ltd,EXTERNAL TEMPORARY STAFF
Peterborough,http://opendatacommunities.org/id/unitary-authority/peterborough,Peterborough City Council,Adult Social Care,Social Care Activities,Employees,06/07/2015 00:00,746294,1554,REVENUE,Caritas Recruitment,EXTERNAL TEMPORARY STAFF
Peterborough,http://opendatacommunities.org/id/unitary-authority/peterborough,Peterborough City Council,Adult Social Care,Social Care Activities,Employees,06/07/2015 00:00,746296,945,REVENUE,Caritas Recruitment,EXTERNAL TEMPORARY STAFF
Peterborough,http://opendatacommunities.org/id/unitary-authority/peterborough,Peterborough City Council,Adult Social Care,Adult Learning Disabilities,Supplies and Services,06/07/2015 00:00,746386,600,REVENUE,SOCIAL CARE SOLUTIONS LTD,HOME CARE
Peterborough,http://opendatacommunities.org/id/unitary-authority/peterborough,Peterborough City Council,Adult Social Care,Adult Learning Disabilities,Supplies and Services,06/07/2015 00:00,746387,7929.6,REVENUE,SOCIAL CARE SOLUTIONS LTD,HOME CARE
Peterborough,http://opendatacommunities.org/id/unitary-authority/peterborough,Peterborough City Council,Adult Social Care,Adult Learning Disabilities,Supplies and Services,06/07/2015 00:00,746388,49151,REVENUE,CAMBIAN CARE SERVICES LIMITED,RESIDENTIAL CARE
Peterborough,http://opendatacommunities.org/id/unitary-authority/peterborough,Peterborough City Council,Adult Social Care,Adult Learning Disabilities,Supplies and Services,06/07/2015 00:00,746389,3064.8,REVENUE,SOCIAL CARE SOLUTIONS LTD,HOME CARE
Peterborough,http://opendatacommunities.org/id/unitary-authority/peterborough,Peterborough City Council,Adult Social Care,Adult Learning Disabilities,Supplies and Services,06/07/2015 00:00,746390,4463.2,REVENUE,SOCIAL CARE SOLUTIONS LTD,HOME CARE
Peterborough,http://opendatacommunities.org/id/unitary-authority/peterborough,Peterborough City Council,Adult Social Care,Adult Learning Disabilities,Supplies and Services,06/07/2015 00:00,746391,3740.12,REVENUE,SOCIAL CARE SOLUTIONS LTD,HOME CARE
Peterborough,http://opendatacommunities.org/id/unitary-authority/peterborough,Peterborough City Council,Adult Social Care,Adult Learning Disabilities,Supplies and Services,06/07/2015 00:00,746392,3211.2,REVENUE,SOCIAL CARE SOLUTIONS LTD,HOME CARE
Peterborough,http://opendatacommunities.org/id/unitary-authority/peterborough,Peterborough City Council,Adult Social Care,Adult Learning Disabilities,Supplies and Services,06/07/2015 00:00,746393,3223.2,REVENUE,SOCIAL CARE SOLUTIONS LTD,HOME CARE
Peterborough,http://opendatacommunities.org/id/unitary-authority/peterborough,Peterborough City Council,Adult Social Care,Adult Learning Disabilities,Supplies and Services,06/07/2015 00:00,746394,2863.2,REVENUE,SOCIAL CARE SOLUTIONS LTD,HOME CARE
Peterborough,http://opendatacommunities.org/id/unitary-authority/peterborough,Peterborough City Council,Adult Social Care,Adult Learning Disabilities,Supplies and Services,06/07/2015 00:00,746396,3223.2,REVENUE,SOCIAL CARE SOLUTIONS LTD,HOME CARE
Peterborough,http://opendatacommunities.org/id/unitary-authority/peterborough,Peterborough City Council,Adult Social Care,Adult Mental Health,Supplies and Services,06/07/2015 00:00,746397,2015,REVENUE,Klair House Residential Care Homes,RESIDENTIAL CARE
Peterborough,http://opendatacommunities.org/id/unitary-authority/peterborough,Peterborough City Council,Adult Social Care,Adult Learning Disabilities,Supplies and Services,06/07/2015 00:00,746402,2100,REVENUE,SOCIAL CARE SOLUTIONS LTD,HOME CARE
Peterborough,http://opendatacommunities.org/id/unitary-authority/peterborough,Peterborough City Council,Adult Social Care,Adult Learning Disabilities,Supplies and Services,06/07/2015 00:00,746403,4834.8,REVENUE,SOCIAL CARE SOLUTIONS LTD,HOME CARE
Peterborough,http://opendatacommunities.org/id/unitary-authority/peterborough,Peterborough City Council,Adult Social Care,Adult Learning Disabilities,Supplies and Services,06/07/2015 00:00,746405,2983.2,REVENUE,SOCIAL CARE SOLUTIONS LTD,HOME CARE
Peterborough,http://opendatacommunities.org/id/unitary-authority/peterborough,Peterborough City Council,Adult Social Care,Adult Learning Disabilities,Supplies and Services,06/07/2015 00:00,746407,6064.8,REVENUE,SOCIAL CARE SOLUTIONS LTD,HOME CARE
Peterborough,http://opendatacommunities.org/id/unitary-authority/peterborough,Peterborough City Council,Adult Social Care,Adult Learning Disabilities,Supplies and Services,06/07/2015 00:00,746409,3903.2,REVENUE,SOCIAL CARE SOLUTIONS LTD,HOME CARE
Peterborough,http://opendatacommunities.org/id/unitary-authority/peterborough,Peterborough City Council,Adult Social Care,Adult Learning Disabilities,Supplies and Services,06/07/2015 00:00,746411,3210.8,REVENUE,Craegmoor Priory Group,RESIDENTIAL CARE
Peterborough,http://opendatacommunities.org/id/unitary-authority/peterborough,Peterborough City Council,Adult Social Care,Adult Learning Disabilities,Supplies and Services,06/07/2015 00:00,746416,4538.04,REVENUE,Craegmoor Priory Group,RESIDENTIAL CARE
Peterborough,http://opendatacommunities.org/id/unitary-authority/peterborough,Peterborough City Council,Adult Social Care,Adult Mental Health,Supplies and Services,06/07/2015 00:00,746422,-4280.76,REVENUE,Craegmoor Priory Group,RESIDENTIAL CARE
Peterborough,http://opendatacommunities.org/id/unitary-authority/peterborough,Peterborough City Council,Adult Social Care,Adult Learning Disabilities,Supplies and Services,06/07/2015 00:00,746424,4604.6,REVENUE,Craegmoor Priory Group,RESIDENTIAL CARE
Peterborough,http://opendatacommunities.org/id/unitary-authority/peterborough,Peterborough City Council,Adult Social Care,Adult Learning Disabilities,Supplies and Services,06/07/2015 00:00,746428,920.44,REVENUE,Craegmoor Priory Group,RESIDENTIAL CARE
Peterborough,http://opendatacommunities.org/id/unitary-authority/peterborough,Peterborough City Council,Adult Social Care,Adult Mental Health,Supplies and Services,06/07/2015 00:00,746430,3333.6,REVENUE,Craegmoor Priory Group,RESIDENTIAL CARE
Peterborough,http://opendatacommunities.org/id/unitary-authority/peterborough,Peterborough City Council,Adult Social Care,Adult Mental Health,Supplies and Services,06/07/2015 00:00,746431,4756,REVENUE,Craegmoor Priory Group,RESIDENTIAL CARE
Peterborough,http://opendatacommunities.org/id/unitary-authority/peterborough,Peterborough City Council,Children's & Education Services - Children's Social Care,Other Children's & Families Services,Employees,06/07/2015 00:00,746436,1591.32,REVENUE,Sanctuary Personnel Ltd,EXTERNAL TEMPORARY STAFF
Peterborough,http://opendatacommunities.org/id/unitary-authority/peterborough,Peterborough City Council,Children's & Education Services - Children's Social Care,Other Children's & Families Services,Employees,06/07/2015 00:00,746441,2144.52,REVENUE,Sanctuary Personnel Ltd,EXTERNAL TEMPORARY STAFF
Peterborough,http://opendatacommunities.org/id/unitary-authority/peterborough,Peterborough City Council,Children's & Education Services - Children's Social Care,Other Children's & Families Services,Employees,06/07/2015 00:00,746443,1998,REVENUE,Sanctuary Personnel Ltd,EXTERNAL TEMPORARY STAFF
Peterborough,http://opendatacommunities.org/id/unitary-authority/peterborough,Peterborough City Council,Children's & Education Services - Children's Social Care,Other Children's & Families Services,Employees,06/07/2015 00:00,746449,2097.9,REVENUE,Sanctuary Personnel Ltd,EXTERNAL TEMPORARY STAFF
Peterborough,http://opendatacommunities.org/id/unitary-authority/peterborough,Peterborough City Council,Children's & Education Services - Children's Social Care,Other Children's & Families Services,Employees,06/07/2015 00:00,746451,2109,REVENUE,Sanctuary Personnel Ltd,EXTERNAL TEMPORARY STAFF
Peterborough,http://opendatacommunities.org/id/unitary-authority/peterborough,Peterborough City Council,Children's & Education Services - Children's Social Care,Other Children's & Families Services,Employees,06/07/2015 00:00,746452,2144.52,REVENUE,Sanctuary Personnel Ltd,EXTERNAL TEMPORARY STAFF
Peterborough,http://opendatacommunities.org/id/unitary-authority/peterborough,Peterborough City Council,Children's & Education Services - Children's Social Care,Other Children's & Families Services,Employees,06/07/2015 00:00,746453,1982.58,REVENUE,Sanctuary Personnel Ltd,EXTERNAL TEMPORARY STAFF
Peterborough,http://opendatacommunities.org/id/unitary-authority/peterborough,Peterborough City Council,Children's & Education Services - Children's Social Care,Other Children's & Families Services,Employees,06/07/2015 00:00,746455,2144.52,REVENUE,Sanctuary Personnel Ltd,EXTERNAL TEMPORARY STAFF
Peterborough,http://opendatacommunities.org/id/unitary-authority/peterborough,Peterborough City Council,Children's & Education Services - Children's Social Care,Other Children's & Families Services,Employees,06/07/2015 00:00,746456,2092.8,REVENUE,Sanctuary Personnel Ltd,EXTERNAL TEMPORARY STAFF
Peterborough,http://opendatacommunities.org/id/unitary-authority/peterborough,Peterborough City Council,Children's & Education Services - Children's Social Care,Other Children's & Families Services,Employees,06/07/2015 00:00,746457,720,REVENUE,Sanctuary Personnel Ltd,EXTERNAL TEMPORARY STAFF
Peterborough,http://opendatacommunities.org/id/unitary-authority/peterborough,Peterborough City Council,Children's & Education Services - Children's Social Care,Other Children's & Families Services,Employees,06/07/2015 00:00,746458,2127.54,REVENUE,Sanctuary Personnel Ltd,EXTERNAL TEMPORARY STAFF
Peterborough,http://opendatacommunities.org/id/unitary-authority/peterborough,Peterborough City Council,Children's & Education Services - Children's Social Care,Other Children's & Families Services,Employees,06/07/2015 00:00,746462,1800,REVENUE,Sanctuary Personnel Ltd,EXTERNAL TEMPORARY STAFF
Peterborough,http://opendatacommunities.org/id/unitary-authority/peterborough,Peterborough City Council,Children's & Education Services - Children's Social Care,Other Children's & Families Services,Employees,06/07/2015 00:00,746465,2144.52,REVENUE,Sanctuary Personnel Ltd,EXTERNAL TEMPORARY STAFF
Peterborough,http://opendatacommunities.org/id/unitary-authority/peterborough,Peterborough City Council,Children's & Education Services - Children's Social Care,Other Children's & Families Services,Employees,06/07/2015 00:00,746466,2144.52,REVENUE,Sanctuary Personnel Ltd,EXTERNAL TEMPORARY STAFF
Peterborough,http://opendatacommunities.org/id/unitary-authority/peterborough,Peterborough City Council,Children's & Education Services - Children's Social Care,Other Children's & Families Services,Employees,06/07/2015 00:00,746467,1909.2,REVENUE,Sanctuary Personnel Ltd,EXTERNAL TEMPORARY STAFF
Peterborough,http://opendatacommunities.org/id/unitary-authority/peterborough,Peterborough City Council,Children's & Education Services - Children's Social Care,Other Children's & Families Services,Employees,06/07/2015 00:00,746473,1715.62,REVENUE,Sanctuary Personnel Ltd,EXTERNAL TEMPORARY STAFF
Peterborough,http://opendatacommunities.org/id/unitary-authority/peterborough,Peterborough City Council,Corporate & Democratic Core,Democratic Representation & Managemetn,Employees,06/07/2015 00:00,746482,594,REVENUE,Frontline Consulting Associates,TRAINING
Peterborough,http://opendatacommunities.org/id/unitary-authority/peterborough,Peterborough City Council,Adult Social Care,Adult Learning Disabilities,Supplies and Services,06/07/2015 00:00,746494,2094.56,REVENUE,Thera East Anglia,DAY CARE
Peterborough,http://opendatacommunities.org/id/unitary-authority/peterborough,Peterborough City Council,Adult Social Care,Adult Learning Disabilities,Supplies and Services,06/07/2015 00:00,746495,585.58,REVENUE,Thera East Anglia,DAY CARE
Peterborough,http://opendatacommunities.org/id/unitary-authority/peterborough,Peterborough City Council,Adult Social Care,Adult Learning Disabilities,Supplies and Services,06/07/2015 00:00,746496,585.58,REVENUE,Thera East Anglia,DAY CARE
Peterborough,http://opendatacommunities.org/id/unitary-authority/peterborough,Peterborough City Council,Adult Social Care,Adult Learning Disabilities,Supplies and Services,06/07/2015 00:00,746498,645.76,REVENUE,Thera East Anglia,DAY CARE
Peterborough,http://opendatacommunities.org/id/unitary-authority/peterborough,Peterborough City Council,Adult Social Care,Adult Learning Disabilities,Supplies and Services,06/07/2015 00:00,746499,744.42,REVENUE,Thera East Anglia,DAY CARE
Peterborough,http://opendatacommunities.org/id/unitary-authority/peterborough,Peterborough City Council,Planning Services,Development Control,Supplies and Services,06/07/2015 00:00,746528,912,REVENUE,Johnston Press Midlands Division,ADVERTISING
Peterborough,http://opendatacommunities.org/id/unitary-authority/peterborough,Peterborough City Council,Adult Social Care,Adult Learning Disabilities,Supplies and Services,06/07/2015 00:00,746591,742.71,REVENUE,Thera East Anglia,DAY CARE
Peterborough,http://opendatacommunities.org/id/unitary-authority/peterborough,Peterborough City Council,Adult Social Care,Adult Learning Disabilities,Supplies and Services,06/07/2015 00:00,746597,744.42,REVENUE,Thera East Anglia,DAY CARE
Peterborough,http://opendatacommunities.org/id/unitary-authority/peterborough,Peterborough City Council,Adult Social Care,Adult Learning Disabilities,Supplies and Services,06/07/2015 00:00,746602,3270.66,REVENUE,Thera East Anglia,DAY CARE
Peterborough,http://opendatacommunities.org/id/unitary-authority/peterborough,Peterborough City Council,Adult Social Care,Adult Learning Disabilities,Supplies and Services,06/07/2015 00:00,746606,585.58,REVENUE,Thera East Anglia,DAY CARE
Peterborough,http://opendatacommunities.org/id/unitary-authority/peterborough,Peterborough City Council,Adult Social Care,Adult Learning Disabilities,Supplies and Services,06/07/2015 00:00,746610,630.9,REVENUE,Thera East Anglia,DAY CARE
Peterborough,http://opendatacommunities.org/id/unitary-authority/peterborough,Peterborough City Council,Adult Social Care,Adult Learning Disabilities,Supplies and Services,06/07/2015 00:00,746611,1933.44,REVENUE,Thera East Anglia,DAY CARE
Peterborough,http://opendatacommunities.org/id/unitary-authority/peterborough,Peterborough City Council,Adult Social Care,Adult Learning Disabilities,Supplies and Services,06/07/2015 00:00,746614,2094.56,REVENUE,Thera East Anglia,DAY CARE
Peterborough,http://opendatacommunities.org/id/unitary-authority/peterborough,Peterborough City Council,Adult Social Care,Adult Learning Disabilities,Supplies and Services,06/07/2015 00:00,746616,744.42,REVENUE,Thera East Anglia,DAY CARE
Peterborough,http://opendatacommunities.org/id/unitary-authority/peterborough,Peterborough City Council,Adult Social Care,Adult Learning Disabilities,Supplies and Services,06/07/2015 00:00,746617,585.58,REVENUE,Thera East Anglia,DAY CARE
Peterborough,http://opendatacommunities.org/id/unitary-authority/peterborough,Peterborough City Council,Adult Social Care,Adult Learning Disabilities,Supplies and Services,06/07/2015 00:00,746618,638.02,REVENUE,Thera East Anglia,DAY CARE
Peterborough,http://opendatacommunities.org/id/unitary-authority/peterborough,Peterborough City Council,Adult Social Care,Adult Learning Disabilities,Supplies and Services,06/07/2015 00:00,746620,1933.44,REVENUE,Thera East Anglia,DAY CARE
Peterborough,http://opendatacommunities.org/id/unitary-authority/peterborough,Peterborough City Council,Adult Social Care,Older People,Supplies and Services,06/07/2015 00:00,746621,670.8,REVENUE,FIELD HOUSE (EYE) LTD,RESIDENTIAL CARE
Peterborough,http://opendatacommunities.org/id/unitary-authority/peterborough,Peterborough City Council,Adult Social Care,Adult Learning Disabilities,Supplies and Services,06/07/2015 00:00,746622,585.58,REVENUE,Thera East Anglia,DAY CARE
Peterborough,http://opendatacommunities.org/id/unitary-authority/peterborough,Peterborough City Council,Adult Social Care,Adult Learning Disabilities,Supplies and Services,06/07/2015 00:00,746623,1968,REVENUE,Thera East Anglia,DAY CARE
Peterborough,http://opendatacommunities.org/id/unitary-authority/peterborough,Peterborough City Council,Adult Social Care,Adult Learning Disabilities,Supplies and Services,06/07/2015 00:00,746625,546.15,REVENUE,Thera East Anglia,DAY CARE
Peterborough,http://opendatacommunities.org/id/unitary-authority/peterborough,Peterborough City Council,Adult Social Care,Adult Learning Disabilities,Supplies and Services,06/07/2015 00:00,746626,725.04,REVENUE,Thera East Anglia,DAY CARE
Peterborough,http://opendatacommunities.org/id/unitary-authority/peterborough,Peterborough City Council,Adult Social Care,Split,Third Party Payments,06/07/2015 00:00,746673,1576.24,REVENUE,Pilgrim Havens,THIRD PARTY PAYMENTS - CONTRACT
Peterborough,http://opendatacommunities.org/id/unitary-authority/peterborough,Peterborough City Council,Adult Social Care,Older People,Supplies and Services,06/07/2015 00:00,746682,1068.76,REVENUE,Pilgrim Havens,RESIDENTIAL CARE
Peterborough,http://opendatacommunities.org/id/unitary-authority/peterborough,Peterborough City Council,Adult Social Care,Older People,Supplies and Services,06/07/2015 00:00,746684,-848.72,REVENUE,Pilgrim Havens,RESIDENTIAL CARE
Peterborough,http://opendatacommunities.org/id/unitary-authority/peterborough,Peterborough City Council,Adult Social Care,Older People,Supplies and Services,06/07/2015 00:00,746690,857.06,REVENUE,Pilgrim Havens,RESIDENTIAL CARE
Peterborough,http://opendatacommunities.org/id/unitary-authority/peterborough,Peterborough City Council,Capital,Capital,Capital Pending Update to BS,06/07/2015 00:00,746868,826.66,CAPITAL,Reed Specialist Recruitment,EXTERNAL TEMPORARY STAFF
Peterborough,http://opendatacommunities.org/id/unitary-authority/peterborough,Peterborough City Council,Support Services,Support Services,Employees,06/07/2015 00:00,746869,517.39,REVENUE,Reed Specialist Recruitment,EXTERNAL TEMPORARY STAFF
Peterborough,http://opendatacommunities.org/id/unitary-authority/peterborough,Peterborough City Council,Support Services,Support Services,Employees,06/07/2015 00:00,746875,679.56,REVENUE,Reed Specialist Recruitment,EXTERNAL TEMPORARY STAFF
Peterborough,http://opendatacommunities.org/id/unitary-authority/peterborough,Peterborough City Council,Children's & Education Services - Children's Social Care,Safeguarding Children and Young People Services,Employees,06/07/2015 00:00,746878,606.1,REVENUE,Reed Personnel Services Plc,EXTERNAL TEMPORARY STAFF
Peterborough,http://opendatacommunities.org/id/unitary-authority/peterborough,Peterborough City Council,Capital,Capital,Capital Pending Update to BS,06/07/2015 00:00,746886,722.39,CAPITAL,Reed Specialist Recruitment,EXTERNAL TEMPORARY STAFF
Peterborough,http://opendatacommunities.org/id/unitary-authority/peterborough,Peterborough City Council,Cultural and Related Services,Recreation & Sport,Employees,06/07/2015 00:00,746888,687.23,REVENUE,Reed Specialist Recruitment,EXTERNAL TEMPORARY STAFF
Peterborough,http://opendatacommunities.org/id/unitary-authority/peterborough,Peterborough City Council,Adult Social Care,Older People,Supplies and Services,06/07/2015 00:00,746963,1463.65,REVENUE,Barchester Healthcare (Werrington Lodge),RESIDENTIAL CARE
Peterborough,http://opendatacommunities.org/id/unitary-authority/peterborough,Peterborough City Council,Children's & Education Services - Children's Social Care,Family Support Services,Supplies and Services,06/07/2015 00:00,747009,945.74,REVENUE,Action on Hearing Loss,EQUIPMENT
Peterborough,http://opendatacommunities.org/id/unitary-authority/peterborough,Peterborough City Council,Children's & Education Services - Children's Social Care,Children Looked After,Transport,06/07/2015 00:00,747065,785.76,REVENUE,Goldstar Cabs Ltd,HIRED TRANSPORT
Peterborough,http://opendatacommunities.org/id/unitary-authority/peterborough,Peterborough City Council,Adult Social Care,Adult Physical Disability & Sensory Impairment,Supplies and Services,06/07/2015 00:00,747095,2856.6,REVENUE,LESTER HALL APARTMENTS LTD,RESIDENTIAL CARE
Peterborough,http://opendatacommunities.org/id/unitary-authority/peterborough,Peterborough City Council,Adult Social Care,Older People,Supplies and Services,06/07/2015 00:00,747112,869,REVENUE,Cambridgeshirehomecare,HOME CARE
Peterborough,http://opendatacommunities.org/id/unitary-authority/peterborough,Peterborough City Council,Deficit/(Surplus) on Trading Undertakings,Trading Account Surpluses & Deficits,Supplies and Services,06/07/2015 00:00,747126,727.2,REVENUE,Barron Clark Castings Ltd,ITEMS FOR RESALE
Peterborough,http://opendatacommunities.org/id/unitary-authority/peterborough,Peterborough City Council,Support Services,Support Services,Premises,06/07/2015 00:00,747178,9600,REVENUE,Jardine Lloyd Thompson (JLT),INSURANCE PREMIUMS
Peterborough,http://opendatacommunities.org/id/unitary-authority/peterborough,Peterborough City Council,Children's & Education Services - Children's Social Care,Children Looked After,Supplies and Services - Transfer Payments,06/07/2015 00:00,747202,3399,REVENUE,Archway Care Ltd,BOARDING OUT ALLOWANCES
Peterborough,http://opendatacommunities.org/id/unitary-authority/peterborough,Peterborough City Council,Adult Social Care,Social Care Activities,Third Party Payments,06/07/2015 00:00,747316,1870,REVENUE,Redacted Personal Data,THIRD PARTY PAYMENTS - CONTRACT
Peterborough,http://opendatacommunities.org/id/unitary-authority/peterborough,Peterborough City Council,Environmental and Regulatory Services,Regulatory services,Premises,06/07/2015 00:00,747339,1532.16,REVENUE,Armadillo Self Storage,HIRE OF PREMISES
Peterborough,http://opendatacommunities.org/id/unitary-authority/peterborough,Peterborough City Council,Adult Social Care,Older People,Supplies and Services,06/07/2015 00:00,747448,544.59,REVENUE,Sagecare,HOME CARE
Peterborough,http://opendatacommunities.org/id/unitary-authority/peterborough,Peterborough City Council,Adult Social Care,Older People,Supplies and Services,06/07/2015 00:00,747449,653.22,REVENUE,Sagecare,HOME CARE
Peterborough,http://opendatacommunities.org/id/unitary-authority/peterborough,Peterborough City Council,Adult Social Care,Older People,Supplies and Services,06/07/2015 00:00,747450,829.31,REVENUE,Sagecare,HOME CARE
Peterborough,http://opendatacommunities.org/id/unitary-authority/peterborough,Peterborough City Council,Adult Social Care,Older People,Supplies and Services,06/07/2015 00:00,747456,642.07,REVENUE,Sagecare,HOME CARE
Peterborough,http://opendatacommunities.org/id/unitary-authority/peterborough,Peterborough City Council,Adult Social Care,Older People,Supplies and Services,06/07/2015 00:00,747460,1323.59,REVENUE,Sagecare,HOME CARE
Peterborough,http://opendatacommunities.org/id/unitary-authority/peterborough,Peterborough City Council,Adult Social Care,Older People,Supplies and Services,06/07/2015 00:00,747468,568.32,REVENUE,Sagecare,HOME CARE
Peterborough,http://opendatacommunities.org/id/unitary-authority/peterborough,Peterborough City Council,Adult Social Care,Older People,Supplies and Services,06/07/2015 00:00,747473,1741.51,REVENUE,Sagecare,HOME CARE
Peterborough,http://opendatacommunities.org/id/unitary-authority/peterborough,Peterborough City Council,Adult Social Care,Older People,Supplies and Services,06/07/2015 00:00,747475,500.07,REVENUE,Sagecare,HOME CARE
Peterborough,http://opendatacommunities.org/id/unitary-authority/peterborough,Peterborough City Council,Adult Social Care,Older People,Supplies and Services,06/07/2015 00:00,747477,1038.67,REVENUE,Sagecare,HOME CARE
Peterborough,http://opendatacommunities.org/id/unitary-authority/peterborough,Peterborough City Council,Adult Social Care,Older People,Supplies and Services,06/07/2015 00:00,747478,504.18,REVENUE,Sagecare,HOME CARE
Peterborough,http://opendatacommunities.org/id/unitary-authority/peterborough,Peterborough City Council,Adult Social Care,Older People,Supplies and Services,06/07/2015 00:00,747480,516.87,REVENUE,Sagecare,HOME CARE
Peterborough,http://opendatacommunities.org/id/unitary-authority/peterborough,Peterborough City Council,Adult Social Care,Older People,Supplies and Services,06/07/2015 00:00,747481,1873.96,REVENUE,Sagecare,HOME CARE
Peterborough,http://opendatacommunities.org/id/unitary-authority/peterborough,Peterborough City Council,Adult Social Care,Older People,Supplies and Services,06/07/2015 00:00,747483,728.18,REVENUE,Sagecare,HOME CARE
Peterborough,http://opendatacommunities.org/id/unitary-authority/peterborough,Peterborough City Council,Adult Social Care,Older People,Supplies and Services,06/07/2015 00:00,747484,829.2,REVENUE,Sagecare,HOME CARE
Peterborough,http://opendatacommunities.org/id/unitary-authority/peterborough,Peterborough City Council,Adult Social Care,Older People,Supplies and Services,06/07/2015 00:00,747485,647.79,REVENUE,Sagecare,HOME CARE
Peterborough,http://opendatacommunities.org/id/unitary-authority/peterborough,Peterborough City Council,Adult Social Care,Older People,Supplies and Services,06/07/2015 00:00,747489,1005.36,REVENUE,Sagecare,HOME CARE
Peterborough,http://opendatacommunities.org/id/unitary-authority/peterborough,Peterborough City Council,Adult Social Care,Older People,Supplies and Services,06/07/2015 00:00,747491,662.28,REVENUE,Sagecare,HOME CARE
Peterborough,http://opendatacommunities.org/id/unitary-authority/peterborough,Peterborough City Council,Adult Social Care,Older People,Supplies and Services,06/07/2015 00:00,747493,526.53,REVENUE,Sagecare,HOME CARE
Peterborough,http://opendatacommunities.org/id/unitary-authority/peterborough,Peterborough City Council,Adult Social Care,Older People,Supplies and Services,06/07/2015 00:00,747495,1641.12,REVENUE,Sagecare,HOME CARE
Peterborough,http://opendatacommunities.org/id/unitary-authority/peterborough,Peterborough City Council,Adult Social Care,Older People,Supplies and Services,06/07/2015 00:00,747497,506.78,REVENUE,Sagecare,HOME CARE
Peterborough,http://opendatacommunities.org/id/unitary-authority/peterborough,Peterborough City Council,Adult Social Care,Older People,Supplies and Services,06/07/2015 00:00,747500,604.38,REVENUE,Sagecare,HOME CARE
Peterborough,http://opendatacommunities.org/id/unitary-authority/peterborough,Peterborough City Council,Adult Social Care,Adult Learning Disabilities,Supplies and Services,06/07/2015 00:00,747514,1532.1,REVENUE,Sagecare,HOME CARE
Peterborough,http://opendatacommunities.org/id/unitary-authority/peterborough,Peterborough City Council,Adult Social Care,Older People,Supplies and Services,06/07/2015 00:00,747516,811.2,REVENUE,Sagecare,HOME CARE
Peterborough,http://opendatacommunities.org/id/unitary-authority/peterborough,Peterborough City Council,Adult Social Care,Older People,Supplies and Services,06/07/2015 00:00,747523,1178.48,REVENUE,Sagecare,HOME CARE
Peterborough,http://opendatacommunities.org/id/unitary-authority/peterborough,Peterborough City Council,Adult Social Care,Older People,Supplies and Services,06/07/2015 00:00,747532,589.44,REVENUE,Sagecare,HOME CARE
Peterborough,http://opendatacommunities.org/id/unitary-authority/peterborough,Peterborough City Council,Adult Social Care,Older People,Supplies and Services,06/07/2015 00:00,747533,715.26,REVENUE,Sagecare,HOME CARE
Peterborough,http://opendatacommunities.org/id/unitary-authority/peterborough,Peterborough City Council,Adult Social Care,Older People,Supplies and Services,06/07/2015 00:00,747535,612.1,REVENUE,Sagecare,HOME CARE
Peterborough,http://opendatacommunities.org/id/unitary-authority/peterborough,Peterborough City Council,Adult Social Care,Older People,Supplies and Services,06/07/2015 00:00,747538,647.19,REVENUE,Sagecare,HOME CARE
Peterborough,http://opendatacommunities.org/id/unitary-authority/peterborough,Peterborough City Council,Adult Social Care,Older People,Supplies and Services,06/07/2015 00:00,747547,1143.14,REVENUE,Sagecare,HOME CARE
Peterborough,http://opendatacommunities.org/id/unitary-authority/peterborough,Peterborough City Council,Adult Social Care,Older People,Supplies and Services,06/07/2015 00:00,747550,608.31,REVENUE,Sagecare,HOME CARE
Peterborough,http://opendatacommunities.org/id/unitary-authority/peterborough,Peterborough City Council,Adult Social Care,Older People,Supplies and Services,06/07/2015 00:00,747553,659.63,REVENUE,Sagecare,HOME CARE
Peterborough,http://opendatacommunities.org/id/unitary-authority/peterborough,Peterborough City Council,Adult Social Care,Older People,Supplies and Services,06/07/2015 00:00,747559,1515.33,REVENUE,Sagecare,HOME CARE
Peterborough,http://opendatacommunities.org/id/unitary-authority/peterborough,Peterborough City Council,Adult Social Care,Older People,Supplies and Services,06/07/2015 00:00,747561,636.48,REVENUE,Sagecare,HOME CARE
Peterborough,http://opendatacommunities.org/id/unitary-authority/peterborough,Peterborough City Council,Adult Social Care,Older People,Supplies and Services,06/07/2015 00:00,747562,729.78,REVENUE,Sagecare,HOME CARE
Peterborough,http://opendatacommunities.org/id/unitary-authority/peterborough,Peterborough City Council,Adult Social Care,Older People,Supplies and Services,06/07/2015 00:00,747564,579.65,REVENUE,Sagecare,HOME CARE
Peterborough,http://opendatacommunities.org/id/unitary-authority/peterborough,Peterborough City Council,Adult Social Care,Older People,Supplies and Services,06/07/2015 00:00,747567,683.52,REVENUE,Sagecare,HOME CARE
Peterborough,http://opendatacommunities.org/id/unitary-authority/peterborough,Peterborough City Council,Adult Social Care,Older People,Supplies and Services,06/07/2015 00:00,747568,506.15,REVENUE,Sagecare,HOME CARE
Peterborough,http://opendatacommunities.org/id/unitary-authority/peterborough,Peterborough City Council,Adult Social Care,Older People,Supplies and Services,06/07/2015 00:00,747569,874.56,REVENUE,Sagecare,HOME CARE
Peterborough,http://opendatacommunities.org/id/unitary-authority/peterborough,Peterborough City Council,Adult Social Care,Older People,Supplies and Services,06/07/2015 00:00,747570,831.19,REVENUE,Sagecare,HOME CARE
Peterborough,http://opendatacommunities.org/id/unitary-authority/peterborough,Peterborough City Council,Adult Social Care,Older People,Supplies and Services,06/07/2015 00:00,747572,1006.71,REVENUE,Sagecare,HOME CARE
Peterborough,http://opendatacommunities.org/id/unitary-authority/peterborough,Peterborough City Council,Adult Social Care,Older People,Supplies and Services,06/07/2015 00:00,747575,788.58,REVENUE,Sagecare,HOME CARE
Peterborough,http://opendatacommunities.org/id/unitary-authority/peterborough,Peterborough City Council,Adult Social Care,Older People,Supplies and Services,06/07/2015 00:00,747583,523.95,REVENUE,Sagecare,HOME CARE
Peterborough,http://opendatacommunities.org/id/unitary-authority/peterborough,Peterborough City Council,Adult Social Care,Older People,Supplies and Services,06/07/2015 00:00,747585,684.24,REVENUE,Sagecare,HOME CARE
Peterborough,http://opendatacommunities.org/id/unitary-authority/peterborough,Peterborough City Council,Adult Social Care,Older People,Supplies and Services,06/07/2015 00:00,747586,911.28,REVENUE,Sagecare,HOME CARE
Peterborough,http://opendatacommunities.org/id/unitary-authority/peterborough,Peterborough City Council,Adult Social Care,Older People,Supplies and Services,06/07/2015 00:00,747587,1332.54,REVENUE,Sagecare,HOME CARE
Peterborough,http://opendatacommunities.org/id/unitary-authority/peterborough,Peterborough City Council,Adult Social Care,Older People,Supplies and Services,06/07/2015 00:00,747588,545.82,REVENUE,Sagecare,HOME CARE
Peterborough,http://opendatacommunities.org/id/unitary-authority/peterborough,Peterborough City Council,Adult Social Care,Older People,Supplies and Services,06/07/2015 00:00,747590,704.47,REVENUE,Sagecare,HOME CARE
Peterborough,http://opendatacommunities.org/id/unitary-authority/peterborough,Peterborough City Council,Adult Social Care,Adult Learning Disabilities,Supplies and Services,06/07/2015 00:00,747591,620.79,REVENUE,Sagecare,HOME CARE
Peterborough,http://opendatacommunities.org/id/unitary-authority/peterborough,Peterborough City Council,Adult Social Care,Older People,Supplies and Services,06/07/2015 00:00,747594,1264.5,REVENUE,Sagecare,HOME CARE
Peterborough,http://opendatacommunities.org/id/unitary-authority/peterborough,Peterborough City Council,Adult Social Care,Older People,Supplies and Services,06/07/2015 00:00,747595,794.78,REVENUE,Sagecare,HOME CARE
Peterborough,http://opendatacommunities.org/id/unitary-authority/peterborough,Peterborough City Council,Adult Social Care,Older People,Supplies and Services,06/07/2015 00:00,747598,517.71,REVENUE,Sagecare,HOME CARE
Peterborough,http://opendatacommunities.org/id/unitary-authority/peterborough,Peterborough City Council,Adult Social Care,Older People,Supplies and Services,06/07/2015 00:00,747600,527.16,REVENUE,Sagecare,HOME CARE
Peterborough,http://opendatacommunities.org/id/unitary-authority/peterborough,Peterborough City Council,Adult Social Care,Older People,Supplies and Services,06/07/2015 00:00,747602,563.13,REVENUE,Sagecare,HOME CARE
Peterborough,http://opendatacommunities.org/id/unitary-authority/peterborough,Peterborough City Council,Adult Social Care,Older People,Supplies and Services,06/07/2015 00:00,747607,550.09,REVENUE,Sagecare,HOME CARE
Peterborough,http://opendatacommunities.org/id/unitary-authority/peterborough,Peterborough City Council,Adult Social Care,Older People,Supplies and Services,06/07/2015 00:00,747696,8022.3,REVENUE,Cambridgeshirehomecare,HOME CARE
Peterborough,http://opendatacommunities.org/id/unitary-authority/peterborough,Peterborough City Council,Adult Social Care,Older People,Supplies and Services,06/07/2015 00:00,747697,949,REVENUE,Cambridgeshirehomecare,HOME CARE
Peterborough,http://opendatacommunities.org/id/unitary-authority/peterborough,Peterborough City Council,Adult Social Care,Older People,Supplies and Services,06/07/2015 00:00,747698,524.25,REVENUE,Cambridgeshirehomecare,HOME CARE
Peterborough,http://opendatacommunities.org/id/unitary-authority/peterborough,Peterborough City Council,Adult Social Care,Adult Mental Health,Supplies and Services,06/07/2015 00:00,747699,5747.17,REVENUE,Cambridgeshirehomecare,HOME CARE
Peterborough,http://opendatacommunities.org/id/unitary-authority/peterborough,Peterborough City Council,Adult Social Care,Older People,Supplies and Services,06/07/2015 00:00,747700,2104,REVENUE,Cambridgeshirehomecare,HOME CARE
Peterborough,http://opendatacommunities.org/id/unitary-authority/peterborough,Peterborough City Council,Adult Social Care,Older People,Supplies and Services,06/07/2015 00:00,747702,519.79,REVENUE,Cambridgeshirehomecare,HOME CARE
Peterborough,http://opendatacommunities.org/id/unitary-authority/peterborough,Peterborough City Council,Adult Social Care,Older People,Supplies and Services,06/07/2015 00:00,747704,573,REVENUE,Cambridgeshirehomecare,HOME CARE
Peterborough,http://opendatacommunities.org/id/unitary-authority/peterborough,Peterborough City Council,Adult Social Care,Older People,Supplies and Services,06/07/2015 00:00,747705,1605.75,REVENUE,Cambridgeshirehomecare,HOME CARE
Peterborough,http://opendatacommunities.org/id/unitary-authority/peterborough,Peterborough City Council,Adult Social Care,Older People,Supplies and Services,06/07/2015 00:00,747706,522.25,REVENUE,Cambridgeshirehomecare,HOME CARE
Peterborough,http://opendatacommunities.org/id/unitary-authority/peterborough,Peterborough City Council,Adult Social Care,Adult Learning Disabilities,Supplies and Services,06/07/2015 00:00,747708,2009.75,REVENUE,Cambridgeshirehomecare,HOME CARE
Peterborough,http://opendatacommunities.org/id/unitary-authority/peterborough,Peterborough City Council,Adult Social Care,Older People,Supplies and Services,06/07/2015 00:00,747709,1399.5,REVENUE,Cambridgeshirehomecare,HOME CARE
Peterborough,http://opendatacommunities.org/id/unitary-authority/peterborough,Peterborough City Council,Adult Social Care,Older People,Supplies and Services,06/07/2015 00:00,747710,711.75,REVENUE,Cambridgeshirehomecare,HOME CARE
Peterborough,http://opendatacommunities.org/id/unitary-authority/peterborough,Peterborough City Council,Adult Social Care,Older People,Supplies and Services,06/07/2015 00:00,747711,1616.25,REVENUE,Cambridgeshirehomecare,HOME CARE
Peterborough,http://opendatacommunities.org/id/unitary-authority/peterborough,Peterborough City Council,Adult Social Care,Older People,Supplies and Services,06/07/2015 00:00,747712,608,REVENUE,Cambridgeshirehomecare,HOME CARE
Peterborough,http://opendatacommunities.org/id/unitary-authority/peterborough,Peterborough City Council,Adult Social Care,Older People,Supplies and Services,06/07/2015 00:00,747713,1991.94,REVENUE,Cambridgeshirehomecare,HOME CARE
Peterborough,http://opendatacommunities.org/id/unitary-authority/peterborough,Peterborough City Council,Adult Social Care,Adult Learning Disabilities,Supplies and Services,06/07/2015 00:00,747714,1600.64,REVENUE,Cambridgeshirehomecare,HOME CARE
Peterborough,http://opendatacommunities.org/id/unitary-authority/peterborough,Peterborough City Council,Adult Social Care,Older People,Supplies and Services,06/07/2015 00:00,747716,620.75,REVENUE,Cambridgeshirehomecare,HOME CARE
Peterborough,http://opendatacommunities.org/id/unitary-authority/peterborough,Peterborough City Council,Adult Social Care,Learning Disability Support - Adults (18-64),Employees,06/07/2015 00:00,747877,569.02,REVENUE,Jark Healthcare,EXTERNAL TEMPORARY STAFF
Peterborough,http://opendatacommunities.org/id/unitary-authority/peterborough,Peterborough City Council,Children's & Education Services - Children's Social Care,Other Children's & Families Services,Employees,06/07/2015 00:00,748495,1296,REVENUE,Medicare First,EXTERNAL TEMPORARY STAFF
Peterborough,http://opendatacommunities.org/id/unitary-authority/peterborough,Peterborough City Council,Adult Social Care,Adult Learning Disabilities,Supplies and Services,06/07/2015 00:00,748526,10726.08,REVENUE,Community Care Solutions Ltd,RESIDENTIAL CARE
Peterborough,http://opendatacommunities.org/id/unitary-authority/peterborough,Peterborough City Council,Support Services,Support Services,Supplies and Services,06/07/2015 00:00,748569,658.27,REVENUE,Children's Supervised Contact and Assessment Ltd,JURORS/EXPERT WITNESSES
Peterborough,http://opendatacommunities.org/id/unitary-authority/peterborough,Peterborough City Council,Highways and Transport Services,Public Transport,Supplies and Services,06/07/2015 00:00,748572,9582.09,REVENUE,National Express Ltd,CONTRACTORS
Peterborough,http://opendatacommunities.org/id/unitary-authority/peterborough,Peterborough City Council,Children's & Education Services - Children's Social Care,Other Children's & Families Services,Premises,06/07/2015 00:00,748589,40500.08,REVENUE,Lambert Smith Hampton,RENT
Peterborough,http://opendatacommunities.org/id/unitary-authority/peterborough,Peterborough City Council,Children's & Education Services - Education,Other Education and Community Budget,Employees,06/07/2015 00:00,748611,1200,REVENUE,Lind Associates,EXTERNAL TEMPORARY STAFF
Peterborough,http://opendatacommunities.org/id/unitary-authority/peterborough,Peterborough City Council,Support Services,Support Services,Supplies and Services,06/07/2015 00:00,748623,11542.8,REVENUE,Vivacity Culture and Leisure,COMPUTER SOFTWARE
Peterborough,http://opendatacommunities.org/id/unitary-authority/peterborough,Peterborough City Council,More than one Service Area Category,More than one Service Division,Balance Sheet,06/07/2015 00:00,748720,668.81,Balance Sheet,Rossendales C B Ltd,DEBT COLLECTION SERVICES
Peterborough,http://opendatacommunities.org/id/unitary-authority/peterborough,Peterborough City Council,Children's & Education Services - Children's Social Care,Asylum Seekers,Supplies and Services - Transfer Payments,06/07/2015 00:00,748794,765,REVENUE,PC Homes,BOARDING OUT ALLOWANCES
Peterborough,http://opendatacommunities.org/id/unitary-authority/peterborough,Peterborough City Council,Adult Social Care,Social Care Activities,Employees,06/07/2015 00:00,748826,1575,REVENUE,Randstad Care Ltd,EXTERNAL TEMPORARY STAFF
Peterborough,http://opendatacommunities.org/id/unitary-authority/peterborough,Peterborough City Council,Capital,Capital,Capital Pending Update to BS,06/07/2015 00:00,748881,427584.46,CAPITAL,Kier Eastern,BUILDING AND SITE WORKS
Peterborough,http://opendatacommunities.org/id/unitary-authority/peterborough,Peterborough City Council,Highways and Transport Services,Public Transport,Supplies and Services,06/07/2015 00:00,748891,1734,REVENUE,Stagecoach in Peterborough,CONTRACTORS
Peterborough,http://opendatacommunities.org/id/unitary-authority/peterborough,Peterborough City Council,Support Services,Support Services,Supplies and Services,06/07/2015 00:00,748924,660,REVENUE,"Elliott, Ms Margot",LEGAL COSTS
Peterborough,http://opendatacommunities.org/id/unitary-authority/peterborough,Peterborough City Council,Capital,Capital,Capital Pending Update to BS,06/07/2015 00:00,748993,810.6,CAPITAL,Freeth Cartwright LLP,PROFESSIONAL/LEGAL FEES
